Workbook

Sheet Settings (hidden)
C1: Department Database | D1: Entities name ENE Publication | E1: Entities name Database | F1: Examiner | G1: ExamTel | H1: ExamMail | I1: TechName | J1: TechTel | K1: TechMail | L1: Type | M1: Consol | N1: PFMA | O1: PE_No1 | P1: PE_No | Q1: Entity Abbreviation | S1: FinYear | CK1: =INDEX(($CK$17:$CK$244),MATCH($E$2,$E$17:$E$244,0)) -> 0
C2: =INDEX(($C$17:$C$244),MATCH($E$2,$E$17:$E$244,0)) -> Higher Education and Training | D2: =INDEX(($D$17:$D$244),MATCH($E$2,$E$17:$E$244,0)) -> Culture, Arts, Tourism, Hospitality and Sports Education and Training Authority | E2: =Information!A14 -> Culture, Arts, Tourism, Hospitality and Sports Education and Training Authority | F2: =INDEX(($F$17:$F$244),MATCH($E$2,$E$17:$E$244,0)) -> Spencer Janari | G2: =INDEX(($G$17:$G$244),MATCH($E$2,$E$17:$E$244,0)) -> (012) 315 5436 | H2: =INDEX(($H$17:$H$244),MATCH($E$2,$E$17:$E$244,0)) -> Spencer.Janari@treasury.gov.za | I2: =INDEX(($I$17:$I$244),MATCH($E$2,$E$17:$E$244,0)) -> Lionel Botsane | J2: =INDEX(($J$17:$J$244),MATCH($E$2,$E$17:$E$244,0)) -> (012) 315 5749 | K2: =INDEX(($K$17:$K$244),MATCH($E$2,$E$17:$E$244,0)) -> Lionel.Botsane@treasury.gov.za | L2: =INDEX(($L$17:$L$244),MATCH($E$2,$E$17:$E$244,0)) -> 2 | M2: =INDEX(($M$17:$M$244),MATCH($E$2,$E$17:$E$244,0)) -> 3 | N2: =INDEX(($N$17:$N$244),MATCH($E$2,$E$17:$E$244,0)) -> 3A | O2: =INDEX(($O$17:$O$244),MATCH($E$2,$E$17:$E$244,0)) -> PE206 | P2: =INDEX(($P$17:$P$244),MATCH($E$2,$E$17:$E$244,0)) -> 206 | Q2: =INDEX(($Q$17:$Q$244),MATCH($E$2,$E$17:$E$244,0)) -> CATHSETA | R2: =INDEX(($R$17:$R$244),MATCH($E$2,$E$17:$E$244,0)) -> 3 | S2: =INDEX(($S$17:$S$244),MATCH($E$2,$E$17:$E$244,0)) -> 202526
L5: =INDEX(($L$17:$L$244),MATCH($E$2,$E$17:$E$244,0)) -> 2
AA14: Related Party | AP14: Personnel | BG14: Infrastructure | BW14: Related Party Transfers
AC15: =COUNTA(AC18:AC236) -> 42 | AD15: =COUNTA(AD18:AD239) -> 192 | AE15: =COUNTA(AE18:AE235) -> 16 | AF15: =COUNTA(AF18:AF236) -> 14 | AG15: 16 | AH15: 14 | AI15: 13 | AJ15: 14 | AK15: 15 | AL15: 14 | AM15: 15 | AT15: =COUNTA(AT18:AT20) -> 3 | AU15: =COUNTA(AU18:AU20) -> 3 | AV15: =COUNTA(AV18:AV19) -> 2 | AW15: 2 | AX15: 2 | AY15: 2 | AZ15: 2 | BA15: 2 | BX15: =COUNTA(BX18:BX59) -> 42 | BY15: =COUNTA(BY18:BY239) -> 192 | BZ15: =COUNTA(BZ18:BZ59) -> 16 | CA15: =COUNTA(CA18:CA59) -> 14 | CB15: 16 | CC15: 14 | CD15: 13 | CE15: 14 | CF15: 15 | CG15: 14 | CH15: 15 | CI15: 42
C16: Department | D16: EntityNameENE | E16: EntityName | F16: Examiner | G16: ExamTel | H16: ExamMail | I16: TechName | J16: TechTel | K16: TechMail | L16: Type_Code | M16: ConsolIndi | N16: PFMA | O16: PE_No1 | P16: PE_No | Q16: ENT_Abrev | R16: RelatedPartyID | S16: FinYear | U16: Years | X16: Priorities | AA16: Entity revenue | AB16: Related Party category | AC16: Related Party Name | AP16: Level | AQ16: Salary Level 202425 | AR16: Salary Level 202324 | AS16: Occupation | BB16: Category | BC16: Occupation | BD16: Components of Remuneration | BG16: SIP Category | BH16: InfraList1 | BI16: InfraList2 | BJ16: InfraList3 | BK16: InfraList4 | BL16: SCOA level | BP16: Headings | BS16: Transfers receipt/payment | BU16: Currency | BW16: Related Party Transfer category | CK16: ODA
C17: Science and Innovation | D17: Academy of Science of South Africa | E17: Academy of Science of South Africa | F17: Humbelani Ramuedzisi | G17: (012) 315 5585 | H17: Humbelani.Ramuedzisi@treasury.gov.za | I17: Patrick Mbedzi | J17: (012) 315 5912 | K17: Patrick.Mbedzi@treasury.gov.za | L17: 1 | M17: 1 | N17: Not listed | O17: PE8 | P17: 8 | Q17: ASSAF | R17: 3 | S17: 202526 | U17: 2021/22 | X17: Priority 1: A Capable, Ethical and Developmental State | AA17: Advertising | AB17: National Department | AC17: National Department | AD17: Other Public Entities | AE17: Eastern Cape | AF17: Free State | AG17: Gauteng | AH17: Kwazulu-Natal | AI17: Limpopo | AJ17: Mpumalanga | AK17: Northern Cape | AL17: North West | AM17: Western Cape | AP17: 1 | AQ17: ≤130 503 | AR17: ≤123 741 | AS17: Executive Board Members | AT17: Executive Board Members | AU17: Executive Management | AV17: Senior Management | AW17: Middle Management | AX17: Professionals | AY17: Skilled | AZ17: Semi-skilled | BA17: Very low skilled | BB17: Permanent | BC17: Actors | BD17: Guaranteed package | BG17: Not related to SIPs | BH17: Programme | BI17: New infrastructure assets | BJ17: Site identification | BK17: Mega | BL17: Residential buildings | BP17: Audited outcome | BS17: Receipt | BU17: CAD | BW17: Other national departments | BX17: Other national departments | BY17: Departmental agencies and accounts | BZ17: Provincial department - Eastern Cape | CA17: Provincial department - Free State | CB17: Provincial department - Gauteng | CC17: Provincial department - Kwazulu-Natal | CD17: Provincial department - Limpopo | CE17: Provincial department - Mpumalanga | CF17: Provincial department - Northern Cape | CG17: Provincial department - North West | CH17: Provincial department - Western Cape | CI17: National government | CK17: 0
C18: National Treasury | D18: Accounting Standards Board | E18: Accounting Standards Board | F18: Mokgatla Tema | G18: (012) 315 5948 | H18: Mokgatla.Tema@treasury.gov.za | I18: Patrick Mbedzi | J18: (012) 315 5912 | K18: Patrick.Mbedzi@treasury.gov.za | L18: 1 | M18: 1 | N18: 3A | O18: PE7 | P18: 7 | Q18: ASB | R18: 3 | S18: 202526 | U18: 2022/23 | X18: Priority 2: Economic Transformation and Job Creation | AA18: Communication (G&S) | AB18: Other Public Entities | AC18: The Presidency | AD18: Academy of Science of South Africa | AE18: Education | AF18: Education | AG18: Education | AH18: Education | AI18: Education | AJ18: Education | AK18: Education | AL18: Education | AM18: Education | AP18: 2 | AQ18: 130 504 - 154 626 | AR18: 123 742 - 145 077 | AS18: Executive Management | AT18: Guaranteed package | AU18: Guaranteed package | AV18: Guaranteed package | AW18: Guaranteed package | AX18: Guaranteed package | AY18: Guaranteed package | AZ18: Guaranteed package | BA18: Guaranteed package | BB18: Temporary/Contract | BC18: Adjudicators | BD18: Performance bonus | BG18: SIP 1: Unlocking the northern mineral belt with Waterberg as Catalyst | BH18: Project | BI18: Upgrading and additions | BJ18: Pre-feasibility | BK18: Large | BL18: Non-residential buildings | BP18: Audited outcome | BS18: Payment | BU18: CHF | BW18: Departmental agencies and accounts | BX18: The Presidency | BY18: Academy of Science of South Africa | BZ18: Education | CA18: Education | CB18: Education | CC18: Education | CD18: Education | CE18: Education | CF18: Education | CG18: Education | CH18: Education | CI18: The Presidency | CK18: 0
C19: International Relations and Cooperation | D19: African Renaissance and International Cooperation Fund | E19: African Renaissance and International Cooperation Fund | F19: George Tembo | G19: (012) 315 5514 | H19: George.Tembo@treasury.gov.za | I19: Samson Mlambo | J19: 0 | K19: Samson.Mlambo@treasury.gov.za | L19: 3 | M19: 1 | N19: 3A | O19: PE2 | P19: 2 | Q19: ARICF | R19: 3 | S19: 202526 | U19: 2023/24 | X19: Priority 3: Education, Skills and Health | AA19: Computer services | AB19: Eastern Cape | AC19: Parliament | AD19: Accounting Standards Board | AE19: Health | AF19: Health | AG19: Health | AH19: Health | AI19: Health | AJ19: Health | AK19: Health | AL19: Health | AM19: Health | AP19: 3 | AQ19: 154 627 - 182 757 | AR19: 145 078 - 170 598 | AS19: Senior Management | AT19: Performance bonus | AU19: Performance bonus | AV19: Other | AW19: Other | AX19: Other | AY19: Other | AZ19: Other | BA19: Other | BC19: Administrative and related professionals | BD19: Other | BG19: SIP 2: Durban-Free State Gauteng Logistics and Industrial Corridor | BI19: Rehabilitation and refurbishment | BJ19: Feasibility | BK19: Small | BL19: Investment property | BP19: Budget | BU19: CNY/RMB | BW19: Provincial department - Eastern Cape | BX19: Parliament | BY19: Accounting Standards Board | BZ19: Health | CA19: Health | CB19: Health | CC19: Health | CD19: Health | CE19: Health | CF19: Health | CG19: Health | CH19: Health | CI19: Parliament | CK19: 0
C20: Public Works and Infrastructure | D20: Agrément South Africa | E20: Agrément South Africa | F20: George Tembo | G20: (012) 315 5514 | H20: George.Tembo@treasury.gov.za | I20: Patrick Mbedzi | J20: (012) 315 5912 | K20: Patrick.Mbedzi@treasury.gov.za | L20: 1 | M20: 1 | N20: 3A | O20: PE246 | P20: 246 | Q20: ASA | R20: 3 | S20: 202526 | U20: 2024/25 | X20: Priority 4: Consolidating the Social Wage through Reliable and Quality Basic Services | AA20: Consultants: Business and advisory services | AB20: Free State | AC20: Cooperative Governance | AD20: African Renaissance and International Cooperation Fund | AE20: Social Development and Special Programmes | AF20: Social Development | AG20: Social Development | AH20: Social Development | AI20: Social Development | AJ20: Social Development | AK20: Social Development | AL20: Social Development | AM20: Social Development | AP20: 4 | AQ20: 182 758- 215 892 | AR20: 170 599 - 199 461 | AS20: Middle Management | AT20: Other | AU20: Other | BC20: Agriculture related | BG20: Sip 3: South eastern note and corridor development | BI20: Maintenance and repair | BJ20: Design | BL20: Heritage assets | BP20: Audited outcome | BU20: DKK | BW20: Provincial department - Free State | BX20: Cooperative Governance | BY20: African Renaissance and International Cooperation Fund | BZ20: Social Development and Special Programmes | CA20: Social Development | CB20: Social Development | CC20: Social Development | CD20: Social Development | CE20: Social Development | CF20: Social Development | CG20: Social Development | CH20: Social Development | CI20: Cooperative Governance | CK20: 0
C21: Agriculture, Land Reform and Rural Development | D21: Agricultural land holding account | E21: Agricultural Land Holding Account | F21: Bothwell Deka | G21: (012) 395 6784 | H21: Bothwell.Deka@treasury.gov.za | I21: Jabulane Mashele | J21: (012) 395 6560 | K21: Jabulane.Mashele@treasury.gov.za | L21: 1 | M21: 1 | N21: Not listed | O21: PE62 | P21: 62 | Q21: ALHA | R21: 3 | S21: 202526 | U21: 2025/26 | X21: Priority 5: Spatial Integration, Human Settlements and Local Government | AA21: Infrastructure and planning services | AB21: Gauteng | AC21: Government Communication and Information System | AD21: Agrément South Africa | AE21: Office of the Premier | AF21: Premier | AG21: Office of the Premier | AH21: Office of the Premier | AI21: Office of the Premier | AJ21: Office of the Premier | AK21: Office of the Premier | AL21: Office of the Premier | AM21: Premier | AP21: 5 | AQ21: 215 893 - 254 928 | AR21: 199 462 - 235 611 | AS21: Professionals | BC21: Analysts | BG21: SIP 4: Unlocking the economic opportunities in the Both West Province | BJ21: Tender | BL21: Other fixed structures | BP21: Budget estimate | BU21: EUR | BW21: Provincial department - Gauteng | BX21: Government Communication and Information System | BY21: Agrément South Africa | BZ21: Office of the Premier | CA21: Premier | CB21: Office of the Premier | CC21: Office of the Premier | CD21: Office of the Premier | CE21: Office of the Premier | CF21: Office of the Premier | CG21: Office of the Premier | CH21: Premier | CI21: Government Communication and Information System | CK21: 0
C22: Agriculture, Land Reform and Rural Development | D22: Agricultural Research Council | E22: Agricultural Research Council | F22: Bothwell Deka | G22: (012) 395 6785 | H22: Bothwell.Deka@treasury.gov.za | I22: Jabulane Mashele | J22: (012) 395 6560 | K22: Jabulane.Mashele@treasury.gov.za | L22: 1 | M22: 1 | N22: 3A | O22: PE5 | P22: 5 | Q22: ARC | R22: 1 | S22: 202526 | U22: 2026/27 | X22: Priority 6: Social Cohesion and Safer Communities | AA22: Laboratory services | AB22: Kwazulu-Natal | AC22: Home Affairs | AD22: Agricultural Land Holding Account | AE22: Provincial Legislature | AF22: Free State Legislature | AG22: Gauteng Provincial Legislature | AH22: Provincial Legislature | AI22: Provincial Legislature | AJ22: Provincial Legislature | AK22: Provincial Legislature | AL22: Provincial Legislature | AM22: Provincial Parliament | AP22: 6 | AQ22: 254 929 - 300 912 | AR22: 235 612 - 281 559 | AS22: Skilled | BC22: Appraisers-valuers and related professionals | BG22: SIP 5: Saldanha-Northern Cape Development Corridor | BJ22: Construction | BP22: Approved budget | BU22: GBP | BW22: Provincial department - Kwazulu-Natal | BX22: Home Affairs | BY22: Agricultural Land Holding Account | BZ22: Provincial Legislature | CA22: Free State Legislature | CB22: Gauteng Provincial Legislature | CC22: Provincial Legislature | CD22: Provincial Legislature | CE22: Provincial Legislature | CF22: Provincial Legislature | CG22: Provincial Legislature | CH22: Provincial Parliament | CI22: Home Affairs | CK22: 1
C23: Higher Education and Training | D23: Agricultural Sector Education and Training Authority | E23: Agricultural Sector Education and Training Authority | F23: Spencer Janari | G23: (012) 315 5436 | H23: Spencer.Janari@treasury.gov.za | I23: Lionel Botsane | J23: (012) 315 5749 | K23: Lionel.Botsane@treasury.gov.za | L23: 2 | M23: 3 | N23: 3A | O23: PE214 | P23: 214 | Q23: AgriSETA | R23: 3 | S23: 202526 | U23: 2027/28 | X23: Priority 7: A Better Africa and World | AA23: Legal services (G&S) | AB23: Limpopo | AC23: International Relations and Cooperation | AD23: Agricultural Research Council | AE23: Public Works | AF23: Economic Development & Small Business Development, Tourism & Environmental Affairs | AG23: Economic Development | AH23: Agriculture and Rural Development | AI23: Agriculture | AJ23: Provincial Treasury | AK23: Transport, Safety and Liaison | AL23: Arts, Culture, Sports and Recreation | AM23: Provincial Treasury | AP23: 7 | AQ23: 300 913 - 362 994 | AR23: 281 560 - 343 815 | AS23: Semi-skilled | BC23: Architects and related professionals | BG23: SIP 6: Integrated municipal infrastructure project | BJ23: Hand over | BP23: Changes from budget estimate | BU23: JPY | BW23: Provincial department - Limpopo | BX23: International Relations and Cooperation | BY23: Agricultural Research Council | BZ23: Public Works | CA23: Economic Development & Small Business Development, Tourism & Environmental Affairs | CB23: Economic Development | CC23: Agriculture and Rural Development | CD23: Agriculture | CE23: Provincial Treasury | CF23: Transport, Safety and Liaison | CG23: Arts, Culture, Sports and Recreation | CH23: Provincial Treasury | CI23: International Relations and Cooperation | CK23: 0
C24: Transport | D24: Air Traffic and Navigation Services Company Limited | E24: Air Traffic and Navigation Services Company | F24: Luyolo Ntlangula | G24: (012) 315 5571 | H24: Luyolo.Ntlangula@treasury.gov.za | I24: Samson Mlambo | J24: 0 | K24: Samson.Mlambo@treasury.gov.za | L24: 1 | M24: 3 | N24: 2 | O24: PE9 | P24: 9 | Q24: ATNS | R24: 3 | S24: 202526 | U24: 2028/29 | AA24: Science and technological services | AB24: Mpumalanga | AC24: National School of Government | AD24: Agricultural Sector Education and Training Authority | AE24: Cooperative Governance and Traditional Affairs | AF24: Provincial Treasury | AG24: Cooperative Governance and Traditional Affairs | AH24: Economic Development, Tourism and Environmental Affairs | AI24: Provincial Treasury | AJ24: Co-Operative Governance and Traditional Affairs | AK24: Roads and Public Works | AL24: Community Safety and Transport Management | AM24: Community Safety | AP24: 8 | AQ24: 362 995 - 443 403 | AR24: 343 816 - 420 402 | AS24: Very low skilled | BC24: Archivists and related professionals | BG24: SIP 7: Integrated urban space and public transport programme | BJ24: Handed over | BP24: Budget estimate | BU24: NZD | BW24: Provincial department - Mpumalanga | BX24: National School of Government | BY24: Agricultural Sector Education and Training Authority | BZ24: Cooperative Governance and Traditional Affairs | CA24: Provincial Treasury | CB24: Cooperative Governance and Traditional Affairs | CC24: Economic Development, Tourism and Environmental Affairs | CD24: Provincial Treasury | CE24: Co-Operative Governance and Traditional Affairs | CF24: Roads and Public Works | CG24: Community Safety and Transport Management | CH24: Community Safety | CI24: National School of Government | CK24: 0
C25: Transport | D25: The Airports Company Limited | E25: Airports Company | F25: Luyolo Ntlangula | G25: (012) 315 5571 | H25: Luyolo.Ntlangula@treasury.gov.za | I25: Samson Mlambo | J25: 0 | K25: Samson.Mlambo@treasury.gov.za | L25: 1 | M25: 3 | N25: 2 | O25: PE1 | P25: 1 | Q25: ACSA | R25: 3 | S25: 202526 | U25: 2029/30 | AA25: Contractors | AB25: Northern Cape | AC25: National Treasury | AD25: Amatola Water Board | AE25: Rural Development and Agrarian Reform | AF25: Cooperative Governance and Traditional Affairs | AG25: Human Settlements | AH25: Provincial Treasury | AI25: Economic Development, Environment and Tourism | AJ25: Agriculture, Rural Development, Land and Environmental Affairs | AK25: Economic Development and Tourism | AL25: Economic Development, Environment, Conservation and Tourism | AM25: Human Settlements | AP25: 9 | AQ25: 443 404 - 532 602 | AR25: 420 403 - 508 692 | BC25: Artisans and related professionals | BG25: SIP 8: Green energy in support of the South African economy | BJ25: On hold | BP25: Revised budget estimate | BU25: NOK | BW25: Provincial department - Northern Cape | BX25: National Treasury | BY25: Amatola Water Board | BZ25: Rural Development and Agrarian Reform | CA25: Cooperative Governance and Traditional Affairs | CB25: Human Settlements | CC25: Provincial Treasury | CD25: Economic Development, Environment and Tourism | CE25: Agriculture, Rural Development, Land and Environmental Affairs | CF25: Economic Development and Tourism | CG25: Economic Development, Environment, Conservation and Tourism | CH25: Human Settlements | CI25: National Treasury | CK25: 0
C26: Public Enterprises | D26: Alexkor Limited | E26: Alexkor Limited | F26: Isaac Kurasha | G26: (012) 315 5213 | H26: Isaac.Kurasha@treasury.gov.za | I26: Mntazi Msiza | J26: (012) 315 5876 | K26: Mntazi.Msiza@treasury.gov.za | L26: 1 | M26: 3 | N26: 2 | O26: PE4 | P26: 4 | Q26: Alexkor | R26: 3 | S26: 202526 | U26: 2030/31 | AA26: Agency and support/outsourced services | AB26: North West | AC26: Planning, Monitoring and Evaluation | AD26: Amazwi – South African Museum of Literature | AE26: Economic Development, Environmental Affairs and Tourism | AF26: Public Works & Infrastructure | AG26: Roads and Transport | AH26: Human Settlements | AI26: Transport and Community Safety | AJ26: Economic Development and Tourism | AK26: Sport, Arts and Culture | AL26: Provincial Treasury | AM26: Environmental Affairs and Development Planning | AP26: 10 | AQ26: 532 603 - 849 702 | AR26: 508 693 - 811 559 | BC26: Arts and culture related | BG26: SIP 9: Electricity generations to support socio-economic development | BJ26: Complete | BP26: Changes from budget estimate | BU26: USD | BW26: Provincial department - North West | BX26: Planning, Monitoring and Evaluation | BY26: Amazwi – South African Museum of Literature | BZ26: Economic Development, Environmental Affairs and Tourism | CA26: Public Works & Infrastructure | CB26: Roads and Transport | CC26: Human Settlements | CD26: Transport and Community Safety | CE26: Economic Development and Tourism | CF26: Sport, Arts and Culture | CG26: Provincial Treasury | CH26: Environmental Affairs and Development Planning | CI26: Planning, Monitoring and Evaluation | CK26: 0
C27: Water and Sanitation | D27: Amatola Water Board | E27: Amatola Water Board | F27: Iqbal Mahomed Alli | G27: (012) 315 5809 | H27: Iqbal.Mahomedalli@treasury.gov.za | I27: Mntazi Msiza | J27: (012) 315 5876 | K27: Mntazi.Msiza@treasury.gov.za | L27: 1 | M27: 3 | N27: 3B | O27: PE215 | P27: 215 | Q27: Amatola | R27: 3 | S27: 202526 | U27: 2031/32 | AA27: Fleet services (including government motor transport) | AB27: Western Cape | AC27: Public Enterprises | AD27: Armaments Corporation of South Africa Limited | AE27: Transport | AF27: Police, Roads and Transport | AG27: Community Safety | AH27: Community Safety and Liaison | AI27: Public Works, Roads and Infrastructure | AJ27: Public Works, Roads and Transport | AK27: Provincial Treasury | AL27: Cooperative Governance and Traditional Affairs | AM27: Transport and Public Works | AP27: 11 | AQ27: 849 703 - 1 000 908 | AR27: 811 560 - 952 485 | BC27: Asset controllers and related professionals | BG27: SIP 10: Electricity transmission and distribution for all | BJ27: On-going | BP27: Budget estimate | BU27: ZAR | BW27: Provincial department - Western Cape | BX27: Public Enterprises | BY27: Armaments Corporation of South Africa Limited | BZ27: Transport | CA27: Police, Roads and Transport | CB27: Community Safety | CC27: Community Safety and Liaison | CD27: Public Works, Roads and Infrastructure | CE27: Public Works, Roads and Transport | CF27: Provincial Treasury | CG27: Cooperative Governance and Traditional Affairs | CH27: Transport and Public Works | CI27: Public Enterprises | CK27: 0
C28: Sport, Arts and Culture | D28: National English Literary Museum | E28: Amazwi – South African Museum of Literature | F28: Judy Naidoo | G28: (012) 315 5269 | H28: Judy.Naidoo@treasury.gov.za | I28: Vuyo Ngqukumba | J28: (012) 315 5760 | K28: Vuyo.Ngqukumba@treasury.gov.za | L28: 1 | M28: 3 | N28: 3A | O28: PE191 | P28: 191 | Q28: Amazwi | R28: 3 | S28: 202526 | U28: 2032/33 | AA28: Housing | AC28: Public Service and Administration | AD28: Artscape | AE28: Human Settlements | AF28: Agriculture and Rural Development | AG28: Agriculture and Rural Development | AH28: Co-Operative Governance and Traditional Affairs | AI28: Cooperative Governance, Human Settlements and Traditional Affairs | AJ28: Community Safety, Security and Liaison | AK28: Cooperative Governance, Human Settlements and Traditional Affairs | AL28: Human Settlements | AM28: Agriculture | AP28: 12 | AQ28: 1 000 909 - 1 182 534 | AR28: 952 486 - 1 125 825 | BC28: Attendants | BG28: SIP 11: Agri-logistics and rural infrastructure | BP28: Revised budget estimate | BX28: Public Service and Administration | BY28: Artscape | BZ28: Human Settlements | CA28: Agriculture and Rural Development | CB28: Agriculture and Rural Development | CC28: Co-Operative Governance and Traditional Affairs | CD28: Cooperative Governance, Human Settlements and Traditional Affairs | CE28: Community Safety, Security and Liaison | CF28: Cooperative Governance, Human Settlements and Traditional Affairs | CG28: Human Settlements | CH28: Agriculture | CI28: Public Service and Administration | CK28: 0
C29: Defence | D29: Armaments Corporation of South Africa, Limited | E29: Armaments Corporation of South Africa Limited | F29: Mashudu Bidzha | G29: (012) 315 5344 | H29: Mashudu.Bidzha@treasury.gov.za | I29: Jabulane Mashele | J29: (012) 395 6560 | K29: Jabulane.Mashele@treasury.gov.za | L29: 1 | M29: 1 | N29: 2 | O29: PE6 | P29: 6 | Q29: ARMSCOR | R29: 1 | S29: 202526 | U29: 2033/34 | AA29: Inventory: Clothing material and accessories | AC29: Public Service Commission | AD29: Banking Sector Education and Training Authority | AE29: Provincial Treasury | AF29: Sport, Arts, Culture and Recreation | AG29: Sport, Arts, Culture and Recreation | AH29: Transport | AI29: Sport, Arts and Culture | AJ29: Culture, Sport and Recreation | AK29: Agriculture, Environmental Affairs, Rural Development and Land Reform | AL29: Public Works and Roads | AM29: Economic Development and Tourism | AP29: 13 | AQ29: 1 182 535 - 1 436 022 | AR29: 1 125 826 - 1 371 556 | BC29: Auditors and related professionals | BG29: SIP 12: Revitalisation of public hospitals and other health facilities | BP29: Changes from budget estimate | BX29: Public Service Commission | BY29: Banking Sector Education and Training Authority | BZ29: Provincial Treasury | CA29: Sport, Arts, Culture and Recreation | CB29: Sport, Arts, Culture and Recreation | CC29: Transport | CD29: Sport, Arts and Culture | CE29: Culture, Sport and Recreation | CF29: Agriculture, Environmental Affairs, Rural Development and Land Reform | CG29: Public Works and Roads | CH29: Economic Development and Tourism | CI29: Public Service Commission | CK29: 0
C30: Sport, Arts and Culture | D30: Artscape | E30: Artscape | F30: Judy Naidoo | G30: (012) 315 5269 | H30: Judy.Naidoo@treasury.gov.za | I30: Vuyo Ngqukumba | J30: (012) 315 5760 | K30: Vuyo.Ngqukumba@treasury.gov.za | L30: 1 | M30: 3 | N30: 3A | O30: PE217 | P30: 217 | Q30: Artscape | R30: 3 | S30: 202526 | AA30: Inventory: Farming supplies | AC30: Public Works and Infrastructure | AD30: Bloem Water | AE30: Sport, Recreation, Arts and Culture | AF30: Human Settlements | AG30: E-Government | AH30: Public Works | AJ30: Human Settlements | AL30: Agriculture and Rural Development | AM30: Cultural Affairs and Sport | AP30: 14 | AQ30: 1 436 023 - 1 741 770 | AR30: 1 371 557 - 1 663 581 | BC30: Authors journalists and other writers | BG30: SIP 13: National school build programme | BP30: Planning budget estimate | BX30: Public Works and Infrastructure | BY30: Bloem Water | BZ30: Sport, Recreation, Arts and Culture | CA30: Human Settlements | CB30: E-Government | CC30: Public Works | CE30: Human Settlements | CG30: Agriculture and Rural Development | CH30: Cultural Affairs and Sport | CI30: Public Works and Infrastructure | CK30: 0
C31: Higher Education and Training | D31: Banking Sector Education and Training Authority | E31: Banking Sector Education and Training Authority | F31: Spencer Janari | G31: (012) 315 5436 | H31: Spencer.Janari@treasury.gov.za | I31: Lionel Botsane | J31: (012) 315 5749 | K31: Lionel.Botsane@treasury.gov.za | L31: 2 | M31: 3 | N31: 3A | O31: PE218 | P31: 218 | Q31: BankSETA | R31: 3 | S31: 202526 | AA31: Inventory: Food and food supplies | AC31: Statistics South Africa | AD31: Boxing South Africa | AE31: Safety and Liaison | AG31: Gauteng Provincial Treasury | AH31: Sport, Arts and Culture | AM31: Local Government | AP31: 15 | AQ31: 1 741 771 - 2 259 984 | AR31: 1 663 582 - 2 157 056 | BC31: Auxiliary and related workers | BG31: SIP 14: Higher education infrastructure | BX31: Statistics South Africa | BY31: Boxing South Africa | BZ31: Safety and Liaison | CB31: Gauteng Provincial Treasury | CC31: Sport, Arts and Culture | CH31: Local Government | CI31: Statistics South Africa | CK31: 0
C32: Water and Sanitation | D32: Bloem Water Board | E32: Bloem Water | F32: Iqbal Mahomed Alli | G32: (012) 315 5809 | H32: Iqbal.Mahomedalli@treasury.gov.za | I32: Mntazi Msiza | J32: (012) 315 5876 | K32: Mntazi.Msiza@treasury.gov.za | L32: 1 | M32: 3 | N32: 3B | O32: PE220 | P32: 220 | Q32: Bloem | R32: 3 | S32: 202526 | AA32: Inventory: Fuel, oil and gas | AC32: Traditional Affairs | AD32: Brand SA | AG32: Infrastructure Development | AP32: 16 | AQ32: 2 259 984 - 2 545 854 | AR32: 2 157 057 - 2 428 831 | BC32: Aviation related | BG32: SIP 15: Expanding access to communication technology | BX32: Traditional Affairs | BY32: Brand SA | CB32: Infrastructure Development | CI32: Traditional Affairs | CK32: 0
C33: Home Affairs | D33: Border Management Authority | E33: Border Management Authority | F33: Timothy Murwa | G33: (012) 315 5002 | H33: Timothy.Murwa@treasury.gov.za | I33: Patrick Mbedzi | J33: (012) 315 5912 | K33: Patrick.Mbedzi@treasury.gov.za | L33: 1 | M33: 2 | N33: Not listed | O33: PE253 | P33: 253 | Q33: BMA | R33: 3 | S33: 202526 | AA33: Inventory: Learner and teacher support material | AC33: Basic Education | AD33: Breede-Olifants Catchment Management Agency | AP33: 17 | AQ33: 2 545 855 - 2 871 266 | AR33: 2 428 832 - 2 742 374 | BC33: Board Members | BG33: SIP 16: SKA and Meerkat | BX33: Basic Education | BY33: Breede-Olifants Catchment Management Agency | CI33: Basic Education | CK33: 0
C34: Sport, Arts and Culture | D34: Boxing SA | E34: Boxing South Africa | F34: Judy Naidoo | G34: (012) 315 5269 | H34: Judy.Naidoo@treasury.gov.za | I34: Vuyo Ngqukumba | J34: (012) 315 5760 | K34: Vuyo.Ngqukumba@treasury.gov.za | L34: 1 | M34: 1 | N34: 3A | O34: PE12 | P34: 12 | Q34: BSA | R34: 3 | S34: 202526 | AA34: Inventory: Materials and supplies | AC34: Higher Education and Training | AD34: Castle Control Board | AP34: 18 | AQ34: 2 871 267 - 3 243 836 | AR34: 2 742 375 - 3 098 220 | BC34: Business support and related professionals | BG34: SIP 17: Regional integration for African Cooperation and development | BX34: Higher Education and Training | BY34: Castle Control Board | CI34: Higher Education and Training | CK34: 0
C35: Government Communication and Information System | D35: Brand South Africa | E35: Brand SA | F35: Mokgatla Tema | G35: (012) 315 5948 | H35: Mokgatla.Tema@treasury.gov.za | I35: Samson Mlambo | J35: 0 | K35: Samson.Mlambo@treasury.gov.za | L35: 1 | M35: 1 | N35: 3A | O35: PE51 | P35: 51 | Q35: BrandSA | R35: 3 | S35: 202526 | AA35: Inventory: Medical supplies | AC35: Health | AD35: Chemical Industries Education and Training Authority | AP35: 19 | AQ35: 3 243 837 - 3 666 610 | AR35: 3 098 221 - 3 502 101 | BC35: CAE (Chief Audit Executive) | BG35: SIP 18. Water and sanitation master plan | BX35: Health | BY35: Chemical Industries Education and Training Authority | CI35: Health | CK35: 0
C36: Water and Sanitation | D36: Breede-Olifants Catchment Management Agency | E36: Breede-Olifants Catchment Management Agency | F36: Iqbal Mahomed Alli | G36: (012) 315 5809 | H36: Iqbal.Mahomedalli@treasury.gov.za | I36: Mntazi Msiza | J36: (012) 315 5876 | K36: Mntazi.Msiza@treasury.gov.za | L36: 1 | M36: 1 | N36: 3A | O36: PE225 | P36: 225 | Q36: BGCMA | R36: 3 | S36: 202526 | AA36: Inventory: Medicine | AC36: Social Development | AD36: Commission for Conciliation Mediation & Arbitration | AP36: 20 | AQ36: 3 666 611 - 4 145 656 | AR36: 3 502 102 - 3 960 512 | BC36: Call centre operator | BX36: Social Development | BY36: Commission for Conciliation Mediation & Arbitration | CI36: Social Development | CK36: 0
C37: Communications and Digital Technologies | D37: Broadband Infraco (Proprietary) Limited | E37: Broadband Infraco Limited | F37: Keitumetse Motshegwe | G37: (012) 395 6750 | H37: Keitumetse.Motshegwe@treasury.gov.za | I37: Mpho Ntshole | J37: 0 | K37: Mpho.Ntshole@treasury.gov.za | L37: 1 | M37: 3 | N37: 3A | O37: PE224 | P37: 224 | Q37: Broadband | R37: 3 | S37: 202526 | AA37: Medsas inventory interface | AC37: Women, Youth and Persons with Disabilities | AD37: Community Schemes Ombud Service | AP37: 21 | AQ37: 4 145 657 - 4 691 399 | AR37: 3 960 513 - 4 480 801 | BC37: Caretakers | BX37: Women, Youth and Persons with Disabilities | BY37: Community Schemes Ombud Service | CI37: Women, Youth and Persons with Disabilities | CK37: 0
C38: Defence | D38: Castle Control Board | E38: Castle Control Board | F38: Mashudu Bidzha | G38: (012) 315 5344 | H38: Mashudu.Bidzha@treasury.gov.za | I38: Jabulane Mashele | J38: (012) 395 6560 | K38: Jabulane.Mashele@treasury.gov.za | L38: 1 | M38: 1 | N38: 3A | O38: PE16 | P38: 16 | Q38: CCB | R38: 3 | S38: 202526 | AA38: Inventory: Other supplies | AC38: Civilian Secretariat for the Police Service | AD38: Companies and Intellectual Property Commission | AP38: 22 | AQ38: ≥4 691 400 | AR38: ≥4 480 802 | BC38: Cartographers surveyors and related technicaians | BX38: Civilian Secretariat for the Police Service | BY38: Companies and Intellectual Property Commission | CI38: Civilian Secretariat for the Police Service | CK38: 0
C39: Mineral Resources and Energy | D39: CEF (Proprietary) Limited | E39: CEF (Pty) Ltd | F39: Nomagugu Madikane | G39: (012) 315 5312 | H39: Nomagugu.Madikane@treasury.gov.za | I39: Mpho Ntshole | J39: 0 | K39: Mpho.Ntshole@treasury.gov.za | L39: 3 | M39: 3 | N39: 2 | O39: PE18 | P39: 18 | Q39: CEF | R39: 3 | S39: 202526 | AA39: Consumable supplies | AC39: Correctional Services | AD39: Companies Tribunal | BC39: Case management officer | BX39: Correctional Services | BY39: Companies Tribunal | CI39: Correctional Services | CK39: 0
C40: Higher Education and Training | D40: Chemical Industries Education and Training Authority | E40: Chemical Industries Education and Training Authority | F40: Spencer Janari | G40: (012) 315 5436 | H40: Spencer.Janari@treasury.gov.za | I40: Lionel Botsane | J40: (012) 315 5749 | K40: Lionel.Botsane@treasury.gov.za | L40: 2 | M40: 3 | N40: 3A | O40: PE165 | P40: 165 | Q40: CHIETA | R40: 3 | S40: 202526 | AA40: Consumables: Stationery, printing and office supplies | AC40: Defence | AD40: Competition Commission | BC40: Case officer | BX40: Defence | BY40: Competition Commission | CI40: Defence | CK40: 0
C41: Employment and Labour | D41: Commission for Conciliation, Mediation and Arbitration | E41: Commission for Conciliation Mediation & Arbitration | F41: Judy Naidoo | G41: (012) 315 5269 | H41: Judy.Naidoo@treasury.gov.za | I41: Samson Mlambo | J41: 0 | K41: Samson.Mlambo@treasury.gov.za | L41: 1 | M41: 1 | N41: 3A | O41: PE17 | P41: 17 | Q41: CCMA | R41: 3 | S41: 202526 | AA41: Operating leases | AC41: Independent Police Investigative Directorate | AD41: Competition Tribunal | BC41: Catering and related | BX41: Independent Police Investigative Directorate | BY41: Competition Tribunal | CI41: Independent Police Investigative Directorate | CK41: 0
C42: Human Settlements | D42: Community Schemes Ombud Service | E42: Community Schemes Ombud Service | F42: Lindiwe Ngcongwane | G42: (012) 315 5357 | H42: Lindiwe.Ngcongwane@treasury.gov.za | I42: Jabulane Mashele | J42: (012) 395 6560 | K42: Jabulane.Mashele@treasury.gov.za | L42: 1 | M42: 1 | N42: 3A | O42: PE240 | P42: 240 | Q42: CSOS | R42: 3 | S42: 202526 | AA42: Rental and hiring | AC42: Justice and Constitutional Development | AD42: Construction Education and Training Authority | BC42: CEO (Chief Executive Officer) | BX42: Justice and Constitutional Development | BY42: Construction Education and Training Authority | CI42: Justice and Constitutional Development | CK42: 0
C43: Trade, Industry and Competition | D43: Companies and Intellectual Property Commission | E43: Companies and Intellectual Property Commission | F43: Isaac Kurasha | G43: (012) 315 5213 | H43: Isaac.Kurasha@treasury.gov.za | I43: Nymrot Sholoko | J43: 0 | K43: Nymrot.Sholoko@treasury.gov.za | L43: 1 | M43: 1 | N43: 3A | O43: PE22 | P43: 22 | Q43: CIPC | R43: 3 | S43: 202526 | AA43: Property payments | AC43: Military Veterans | AD43: Construction Industry Development Board | BC43: CFO (Chief Financial Officer) | BX43: Military Veterans | BY43: Construction Industry Development Board | CI43: Military Veterans | CK43: 0
C44: Trade, Industry and Competition | D44: Companies Tribunal | E44: Companies Tribunal | F44: Isaac Kurasha | G44: (012) 315 5213 | H44: Isaac.Kurasha@treasury.gov.za | I44: Nymrot Sholoko | J44: 0 | K44: Nymrot.Sholoko@treasury.gov.za | L44: 1 | M44: 1 | N44: 3A | O44: PE230 | P44: 230 | Q44: CT | R44: 3 | S44: 202526 | AA44: Transport provided: Departmental activity | AC44: Office of the Chief Justice | AD44: Council for Geoscience | BC44: Chairperson | BX44: Office of the Chief Justice | BY44: Council for Geoscience | CI44: Office of the Chief Justice | CK44: 0
C45: Employment and Labour | D45: Compensation Fund | E45: Compensation Fund, including Reserve Fund | F45: Judy Naidoo | G45: (012) 315 5269 | H45: Judy.Naidoo@treasury.gov.za | I45: Vuyo Ngqukumba | J45: (012) 315 5760 | K45: Vuyo.Ngqukumba@treasury.gov.za | L45: 4 | M45: 4 | N45: 3A | O45: PE26 | P45: 26 | Q45: CompFund | R45: 3 | S45: 202526 | AA45: Training and development | AC45: Police | AD45: Council for Medical Schemes | BC45: CIO (Chief Information Officer) | BX45: Police | BY45: Council for Medical Schemes | CI45: Police | CK45: 0
C46: Trade, Industry and Competition | D46: Competition Commission | E46: Competition Commission | F46: Isaac Kurasha | G46: (012) 315 5213 | H46: Isaac.Kurasha@treasury.gov.za | I46: Nymrot Sholoko | J46: 0 | K46: Nymrot.Sholoko@treasury.gov.za | L46: 1 | M46: 1 | N46: 3A | O46: PE25 | P46: 25 | Q46: CC | R46: 1 | S46: 202526 | AA46: Operating payments | AC46: Agriculture, Land Reform and Rural Development | AD46: Council for Scientific and Industrial Research | BC46: Cleaners | BX46: Agriculture, Land Reform and Rural Development | BY46: Council for Scientific and Industrial Research | CI46: Agriculture, Land Reform and Rural Development | CK46: 0
C47: Trade, Industry and Competition | D47: Competition Tribunal | E47: Competition Tribunal | F47: Isaac Kurasha | G47: (012) 315 5213 | H47: Isaac.Kurasha@treasury.gov.za | I47: Nymrot Sholoko | J47: 0 | K47: Nymrot.Sholoko@treasury.gov.za | L47: 1 | M47: 1 | N47: 3A | O47: PE27 | P47: 27 | Q47: CT | R47: 1 | S47: 202526 | AA47: Venues and facilities | AC47: Communications and Digital Technologies | AD47: Council for the Built Environment | BC47: Commissioners | BX47: Communications and Digital Technologies | BY47: Council for the Built Environment | CI47: Communications and Digital Technologies | CK47: 0
C48: Higher Education and Training | D48: Construction Education and Training Authority | E48: Construction Education and Training Authority | F48: Spencer Janari | G48: (012) 315 5436 | H48: Spencer.Janari@treasury.gov.za | I48: Lionel Botsane | J48: (012) 315 5749 | K48: Lionel.Botsane@treasury.gov.za | L48: 2 | M48: 3 | N48: 3A | O48: PE223 | P48: 223 | Q48: CETA | R48: 3 | S48: 202526 | AC48: Employment and Labour | AD48: Council on Higher Education | BC48: Committee officials | BX48: Employment and Labour | BY48: Council on Higher Education | CI48: Employment and Labour | CK48: 0
C49: Public Works and Infrastructure | D49: Construction Industry Development Board | E49: Construction Industry Development Board | F49: George Tembo | G49: (012) 315 5514 | H49: George.Tembo@treasury.gov.za | I49: Patrick Mbedzi | J49: (012) 315 5912 | K49: Patrick.Mbedzi@treasury.gov.za | L49: 1 | M49: 1 | N49: 3A | O49: PE21 | P49: 21 | Q49: CIDB | R49: 3 | S49: 202526 | AC49: Forestry, Fisheries and the Environment | AD49: Cross-Border Road Transport Agency | BC49: Communication and information related | BX49: Forestry, Fisheries and the Environment | BY49: Cross-Border Road Transport Agency | CI49: Forestry, Fisheries and the Environment | CK49: 0
C50: Mineral Resources and Energy | D50: Council for Geoscience | E50: Council for Geoscience | F50: Nomagugu Madikane | G50: (012) 315 5312 | H50: Nomagugu.Madikane@treasury.gov.za | I50: Mpho Ntshole | J50: 0 | K50: Mpho.Ntshole@treasury.gov.za | L50: 1 | M50: 1 | N50: 3A | O50: PE43 | P50: 43 | Q50: GeoScience | R50: 3 | S50: 202526 | AC50: Human Settlements | AD50: Culture, Arts, Tourism, Hospitality and Sports Education and Training Authority | BC50: Compliance officers | BX50: Human Settlements | BY50: Culture, Arts, Tourism, Hospitality and Sports Education and Training Authority | CI50: Human Settlements | CK50: 0
C51: Health | D51: Council for Medical Schemes | E51: Council for Medical Schemes | F51: Refiloe Thokoa | G51: (012) 395 6559 | H51: Refiloe.Thokoa@treasury.gov.za | I51: Mpho Ntshole | J51: 0 | K51: Mpho.Ntshole@treasury.gov.za | L51: 1 | M51: 1 | N51: 3A | O51: PE24 | P51: 24 | Q51: CMS | R51: 3 | S51: 202526 | AC51: Mineral Resources and Energy | AD51: Die Afrikaanse Taal Museum | BC51: Consultants | BX51: Mineral Resources and Energy | BY51: Die Afrikaanse Taal Museum | CI51: Mineral Resources and Energy | CK51: 0
C52: Science and Innovation | D52: Council for Scientific and Industrial Research | E52: Council for Scientific and Industrial Research | F52: Humbelani Ramuedzisi | G52: (012) 315 5585 | H52: Humbelani.Ramuedzisi@treasury.gov.za | I52: Patrick Mbedzi | J52: (012) 315 5912 | K52: Patrick.Mbedzi@treasury.gov.za | L52: 1 | M52: 1 | N52: 3B | O52: PE29 | P52: 29 | Q52: CSIR | R52: 3 | S52: 202526 | AC52: Science and Innovation | AD52: Ditsong: Museums of South Africa | BC52: COO (Chief Operating Officer) | BX52: Science and Innovation | BY52: Ditsong: Museums of South Africa | CI52: Science and Innovation | CK52: 1
C53: Public Works and Infrastructure | D53: Council for the Built Environment | E53: Council for the Built Environment | F53: George Tembo | G53: (012) 315 5514 | H53: George.Tembo@treasury.gov.za | I53: Patrick Mbedzi | J53: (012) 315 5912 | K53: Patrick.Mbedzi@treasury.gov.za | L53: 1 | M53: 1 | N53: 3A | O53: PE14 | P53: 14 | Q53: CBE | R53: 3 | S53: 202526 | AC53: Small Business Development | AD53: Driving License Card Account | BC53: Council members | BX53: Small Business Development | BY53: Driving License Card Account | CI53: Small Business Development | CK53: 0
C54: Higher Education and Training | D54: Council on Higher Education | E54: Council on Higher Education | F54: Spencer Janari | G54: (012) 315 5436 | H54: Spencer.Janari@treasury.gov.za | I54: Lionel Botsane | J54: (012) 315 5749 | K54: Lionel.Botsane@treasury.gov.za | L54: 1 | M54: 1 | N54: 3A | O54: PE20 | P54: 20 | Q54: CHE | R54: 3 | S54: 202526 | AC54: Sport, Arts and Culture | AD54: Education, Training and Development Practices SETA | BC54: Data analyst | BX54: Sport, Arts and Culture | BY54: Education, Training and Development Practices SETA | CI54: Sport, Arts and Culture | CK54: 0
C55: Transport | D55: Cross-Border Road Transport Agency | E55: Cross-Border Road Transport Agency | F55: Luyolo Ntlangula | G55: (012) 315 5571 | H55: Luyolo.Ntlangula@treasury.gov.za | I55: Samson Mlambo | J55: 0 | K55: Samson.Mlambo@treasury.gov.za | L55: 1 | M55: 1 | N55: 3A | O55: PE15 | P55: 15 | Q55: CBRTA | R55: 3 | S55: 202526 | AC55: Tourism | AD55: Energy and Water Sector Education and Training Authority | BC55: Data capturer | BX55: Tourism | BY55: Energy and Water Sector Education and Training Authority | CI55: Tourism | CK55: 0
C56: Higher Education and Training | D56: Culture, Arts, Tourism, Hospitality and Sports Education and Training Authority | E56: Culture, Arts, Tourism, Hospitality and Sports Education and Training Authority | F56: Spencer Janari | G56: (012) 315 5436 | H56: Spencer.Janari@treasury.gov.za | I56: Lionel Botsane | J56: (012) 315 5749 | K56: Lionel.Botsane@treasury.gov.za | L56: 2 | M56: 3 | N56: 3A | O56: PE206 | P56: 206 | Q56: CATHSETA | R56: 3 | S56: 202526 | AC56: Trade, Industry and Competition | AD56: Estate Agency Affairs Board | BC56: Deeds officer | BX56: Trade, Industry and Competition | BY56: Estate Agency Affairs Board | CI56: Trade, Industry and Competition | CK56: 0
C57: Public Enterprises | D57: DENEL (Pty) Ltd | E57: DENEL (Pty) Ltd | F57: Isaac Kurasha | G57: (012) 315 5213 | H57: Isaac.Kurasha@treasury.gov.za | I57: Mntazi Msiza | J57: (012) 315 5876 | K57: Mntazi.Msiza@treasury.gov.za | L57: 1 | M57: 3 | N57: 2 | O57: PE32 | P57: 32 | Q57: DENEL | R57: 3 | S57: 202526 | AC57: Transport | AD57: Estate Agents Fidelity Fund | BC57: Distribution offer | BX57: Transport | BY57: Estate Agents Fidelity Fund | CI57: Transport | CK57: 0
C58: National Treasury | D58: Development Bank of Southern Africa | E58: Development Bank of Southern Africa | F58: Mokgatla Tema | G58: (012) 315 5948 | H58: Mokgatla.Tema@treasury.gov.za | I58: Patrick Mbedzi | J58: (012) 315 5912 | K58: Patrick.Mbedzi@treasury.gov.za | L58: 3 | M58: 3 | N58: 2 | O58: PE30 | P58: 30 | Q58: DBSA | R58: 3 | S58: 202526 | AC58: Water and Sanitation | AD58: Fibre Processing Manufacturing Sector Education and Training Authority | BC58: Draught and related trades | BX58: Water and Sanitation | BY58: Fibre Processing Manufacturing Sector Education and Training Authority | CI58: Water and Sanitation | CK58: 1
C59: Sport, Arts and Culture | D59: Afrikaans Language Museum and Language Monument | E59: Die Afrikaanse Taal Museum | F59: Judy Naidoo | G59: (012) 315 5269 | H59: Judy.Naidoo@treasury.gov.za | I59: Vuyo Ngqukumba | J59: (012) 315 5760 | K59: Vuyo.Ngqukumba@treasury.gov.za | L59: 1 | M59: 3 | N59: 3A | O59: PE213 | P59: 213 | Q59: TaalMuseum | R59: 3 | S59: 202526 | AC59: Centre for Public Service Innovation | AD59: Film and Publication Board | BC59: Drivers | BX59: Centre for Public Service Innovation | BY59: Film and Publication Board | CI59: Centre for Public Service Innovation | CK59: 0
C60: Sport, Arts and Culture | D60: Ditsong: Museums of South Africa | E60: Ditsong: Museums of South Africa | F60: Judy Naidoo | G60: (012) 315 5269 | H60: Judy.Naidoo@treasury.gov.za | I60: Vuyo Ngqukumba | J60: (012) 315 5760 | K60: Vuyo.Ngqukumba@treasury.gov.za | L60: 1 | M60: 3 | N60: 3A | O60: PE193 | P60: 193 | Q60: DitsongM | R60: 3 | S60: 202526 | AD60: Financial and Accounting Services SETA | BC60: Earth moving and related plant operator | BY60: Financial and Accounting Services SETA | CK60: 0
C61: Transport | D61: Driving License Card Account | E61: Driving License Card Account | F61: Luyolo Ntlangula | G61: (012) 315 5571 | H61: Luyolo.Ntlangula@treasury.gov.za | I61: Samson Mlambo | J61: 0 | K61: Samson.Mlambo@treasury.gov.za | L61: 1 | M61: 1 | N61: Not listed | O61: PE162 | P61: 162 | Q61: DLCA | R61: 3 | S61: 202526 | AD61: Financial Intelligence Centre | BC61: Earth science and related professionals | BY61: Financial Intelligence Centre | CK61: 0
C62: Dummy | D62: Dummy | E62: Dummy | F62: Dummy | G62: Dummy | H62: 0 | I62: 0 | J62: 0 | K62: 0 | L62: 0 | M62: 0 | N62: 0 | O62: 0 | P62: 0 | Q62: 0 | R62: 0 | S62: 202526 | AD62: Financial Sector Conduct Authority | BC62: Economists | BY62: Financial Sector Conduct Authority | CK62: 0
C63: Higher Education and Training | D63: Education, Training and Development Practices SETA | E63: Education, Training and Development Practices SETA | F63: Spencer Janari | G63: (012) 315 5436 | H63: Spencer.Janari@treasury.gov.za | I63: Lionel Botsane | J63: (012) 315 5749 | K63: Lionel.Botsane@treasury.gov.za | L63: 2 | M63: 3 | N63: 3A | O63: PE168 | P63: 168 | Q63: ETDP | R63: 3 | S63: 202526 | AD63: Food and Beverages Manufacturing Industry | BC63: Editor | BY63: Food and Beverages Manufacturing Industry | CK63: 0
C64: Higher Education and Training | D64: Energy and Water Sector Education and Training Authority | E64: Energy and Water Sector Education and Training Authority | F64: Spencer Janari | G64: (012) 315 5436 | H64: Spencer.Janari@treasury.gov.za | I64: Lionel Botsane | J64: (012) 315 5749 | K64: Lionel.Botsane@treasury.gov.za | L64: 2 | M64: 3 | N64: 3A | O64: PE167 | P64: 167 | Q64: EWSETA | R64: 3 | S64: 202526 | AD64: Freedom Park Trust | BC64: Education Officer | BY64: Freedom Park Trust | CK64: 0
C65: Public Enterprises | D65: ESKOM | E65: ESKOM | F65: Isaac Kurasha | G65: (012) 315 5213 | H65: Isaac.Kurasha@treasury.gov.za | I65: Mntazi Msiza | J65: (012) 315 5876 | K65: Mntazi.Msiza@treasury.gov.za | L65: 1 | M65: 3 | N65: 2 | O65: PE164 | P65: 164 | Q65: ESKOM | R65: 3 | S65: 202526 | AD65: Government Pensions Administration Agency | BC65: Emergency service related | BY65: Government Pensions Administration Agency | CK65: 0
C66: Trade, Industry and Competition | D66: Export Credit Insurance Corporation of South Africa Limited | E66: Export Credit Insurance Corporation of South Africa Limited | F66: Isaac Kurasha | G66: (012) 315 5213 | H66: Isaac.Kurasha@treasury.gov.za | I66: Nymrot Sholoko | J66: 0 | K66: Nymrot.Sholoko@treasury.gov.za | L66: 3 | M66: 3 | N66: 3B | O66: PE34 | P66: 34 | Q66: ECIC | R66: 3 | S66: 202526 | AD66: Government Printing Works | BC66: Engineers and related professionals | BY66: Government Printing Works | CK66: 0
C67: Higher Education and Training | D67: Fibre Processing Manufacturing Sector Education and Training Authority | E67: Fibre Processing Manufacturing Sector Education and Training Authority | F67: Spencer Janari | G67: (012) 315 5436 | H67: Spencer.Janari@treasury.gov.za | I67: Lionel Botsane | J67: (012) 315 5749 | K67: Lionel.Botsane@treasury.gov.za | L67: 2 | M67: 3 | N67: 3A | O67: PE237 | P67: 237 | Q67: FPMSETA | R67: 3 | S67: 202526 | AD67: Government Technical Advisory Centre | BC67: Examiners | BY67: Government Technical Advisory Centre | CK67: 0
C68: Communications and Digital Technologies | D68: Film and Publication Board | E68: Film and Publication Board | F68: Keitumetse Motshegwe | G68: (012) 395 6750 | H68: Keitumetse.Motshegwe@treasury.gov.za | I68: Mpho Ntshole | J68: 0 | K68: Mpho.Ntshole@treasury.gov.za | L68: 1 | M68: 1 | N68: 3A | O68: PE40 | P68: 40 | Q68: FPB | R68: 3 | S68: 202526 | AD68: Health and Welfare Sector Education and Training Authority | BC68: Executive assistant | BY68: Health and Welfare Sector Education and Training Authority | CK68: 0
C69: Higher Education and Training | D69: Financial and Accounting Services SETA | E69: Financial and Accounting Services SETA | F69: Spencer Janari | G69: (012) 315 5436 | H69: Spencer.Janari@treasury.gov.za | I69: Lionel Botsane | J69: (012) 315 5749 | K69: Lionel.Botsane@treasury.gov.za | L69: 2 | M69: 3 | N69: 3A | O69: PE169 | P69: 169 | Q69: FASSETA | R69: 3 | S69: 202526 | AD69: Housing Development Agency | BC69: Executive Director | BY69: Housing Development Agency | CK69: 0
C70: National Treasury | D70: Financial Intelligence Centre | E70: Financial Intelligence Centre | F70: Mokgatla Tema | G70: (012) 315 5948 | H70: Mokgatla.Tema@treasury.gov.za | I70: Patrick Mbedzi | J70: (012) 315 5912 | K70: Patrick.Mbedzi@treasury.gov.za | L70: 1 | M70: 1 | N70: 3A | O70: PE39 | P70: 39 | Q70: FIC | R70: 3 | S70: 202526 | AD70: Human Sciences Research Council | BC70: Executives (Exco Members) | BY70: Human Sciences Research Council | CK70: 0
C71: National Treasury | D71: Financial Sector Conduct Authority | E71: Financial Sector Conduct Authority | F71: Mokgatla Tema | G71: (012) 315 5948 | H71: Mokgatla.Tema@treasury.gov.za | I71: Patrick Mbedzi | J71: (012) 315 5912 | K71: Patrick.Mbedzi@treasury.gov.za | L71: 1 | M71: 1 | N71: 3A | O71: PE249 | P71: 249 | Q71: FSCA | R71: 3 | S71: 202526 | AD71: Independent Development Trust | BC71: Facilities Officer | BY71: Independent Development Trust | CK71: 0
C72: Higher Education and Training | D72: Food and Beverages Manufacturing Industry | E72: Food and Beverages Manufacturing Industry | F72: Spencer Janari | G72: (012) 315 5436 | H72: Spencer.Janari@treasury.gov.za | I72: Lionel Botsane | J72: (012) 315 5749 | K72: Lionel.Botsane@treasury.gov.za | L72: 2 | M72: 3 | N72: 3A | O72: PE171 | P72: 171 | Q72: FoodBev | R72: 3 | S72: 202526 | AD72: Independent Regulatory Board for Auditors | BC72: Financial and related professionals | BY72: Independent Regulatory Board for Auditors | CK72: 0
C73: Sport, Arts and Culture | D73: Freedom Park Trust | E73: Freedom Park Trust | F73: Judy Naidoo | G73: (012) 315 5269 | H73: Judy.Naidoo@treasury.gov.za | I73: Vuyo Ngqukumba | J73: (012) 315 5760 | K73: Vuyo.Ngqukumba@treasury.gov.za | L73: 1 | M73: 3 | N73: 3A | O73: PE41 | P73: 41 | Q73: FPT | R73: 3 | S73: 202526 | AD73: Ingonyama Trust Board | BC73: Geography and environmental sciences related | BY73: Ingonyama Trust Board | CK73: 0
C74: National Treasury | D74: Government Pensions Administration Agency | E74: Government Pensions Administration Agency | F74: Mokgatla Tema | G74: (012) 315 5948 | H74: Mokgatla.Tema@treasury.gov.za | I74: Patrick Mbedzi | J74: (012) 315 5912 | K74: Patrick.Mbedzi@treasury.gov.za | L74: 1 | M74: 1 | N74: Not listed | O74: PE61 | P74: 61 | Q74: GPAA | R74: 1 | S74: 202526 | AD74: Inkomati-Usuthu Catchment Management Agency | BC74: Health related | BY74: Inkomati-Usuthu Catchment Management Agency | CK74: 0
C75: Home Affairs | D75: Government Printing Works | E75: Government Printing Works | F75: Timothy Murwa | G75: (012) 315 5002 | H75: Timothy.Murwa@treasury.gov.za | I75: Patrick Mbedzi | J75: (012) 315 5912 | K75: Patrick.Mbedzi@treasury.gov.za | L75: 1 | M75: 1 | N75: Not listed | O75: PE44 | P75: 44 | Q75: GPW | R75: 1 | S75: 202526 | AD75: Insurance Sector Education and Training Authority | BC75: Human resources and related professionals | BY75: Insurance Sector Education and Training Authority | CK75: 0
C76: National Treasury | D76: Government Technical Advisory Centre | E76: Government Technical Advisory Centre | F76: Mokgatla Tema | G76: (012) 315 5948 | H76: Mokgatla.Tema@treasury.gov.za | I76: Patrick Mbedzi | J76: (012) 315 5912 | K76: Patrick.Mbedzi@treasury.gov.za | L76: 1 | M76: 1 | N76: Not listed | O76: PE245 | P76: 245 | Q76: GTAC | R76: 3 | S76: 202526 | AD76: International Trade Administration Commission | BC76: ICT (Information and Communications Technology) | BY76: International Trade Administration Commission | CK76: 0
C77: Higher Education and Training | D77: Health and Welfare Sector Education and Training Authority | E77: Health and Welfare Sector Education and Training Authority | F77: Spencer Janari | G77: (012) 315 5436 | H77: Spencer.Janari@treasury.gov.za | I77: Lionel Botsane | J77: (012) 315 5749 | K77: Lionel.Botsane@treasury.gov.za | L77: 2 | M77: 3 | N77: 3A | O77: PE172 | P77: 172 | Q77: HWSETA | R77: 3 | S77: 202526 | AD77: iSimangaliso Wetland Park | BC77: Inspectors/Investigators | BY77: iSimangaliso Wetland Park | CK77: 0
C78: Human Settlements | D78: Housing Development Agency | E78: Housing Development Agency | F78: Lindiwe Ngcongwane | G78: (012) 315 5357 | H78: Lindiwe.Ngcongwane@treasury.gov.za | I78: Jabulane Mashele | J78: (012) 395 6560 | K78: Jabulane.Mashele@treasury.gov.za | L78: 1 | M78: 1 | N78: 3A | O78: PE139 | P78: 139 | Q78: HDA | R78: 3 | S78: 202526 | AD78: Iziko Museums of Cape Town | BC78: Interns/Trainees | BY78: Iziko Museums of Cape Town | CK78: 0
C79: Science and Innovation | D79: Human Sciences Research Council | E79: Human Sciences Research Council | F79: Humbelani Ramuedzisi | G79: (012) 315 5585 | H79: Humbelani.Ramuedzisi@treasury.gov.za | I79: Patrick Mbedzi | J79: (012) 315 5912 | K79: Patrick.Mbedzi@treasury.gov.za | L79: 1 | M79: 1 | N79: 3A | O79: PE46 | P79: 46 | Q79: HSRC | R79: 1 | S79: 202526 | AD79: Judicial Inspectorate for Correctional Services | BC79: Judges | BY79: Judicial Inspectorate for Correctional Services | CK79: 1
C80: Public Works and Infrastructure | D80: The Independent Development Trust | E80: Independent Development Trust | F80: George Tembo | G80: (012) 315 5514 | H80: George.Tembo@treasury.gov.za | I80: Patrick Mbedzi | J80: (012) 315 5912 | K80: Patrick.Mbedzi@treasury.gov.za | L80: 3 | M80: 1 | N80: 2 | O80: PE49 | P80: 49 | Q80: IDT | R80: 3 | S80: 202526 | AD80: KwaZulu-Natal Museum | BC80: Labour related | BY80: KwaZulu-Natal Museum | CK80: 0
C81: National Treasury | D81: Independent Regulatory Board for Auditors | E81: Independent Regulatory Board for Auditors | F81: Mokgatla Tema | G81: (012) 315 5948 | H81: Mokgatla.Tema@treasury.gov.za | I81: Patrick Mbedzi | J81: (012) 315 5912 | K81: Patrick.Mbedzi@treasury.gov.za | L81: 1 | M81: 1 | N81: 3A | O81: PE53 | P81: 53 | Q81: IRBA | R81: 3 | S81: 202526 | AD81: Legal Aid South Africa | BC81: Language practitioners interpreters & other commun | BY81: Legal Aid South Africa | CK81: 0
C82: Trade, Industry and Competition | D82: Industrial Development Corporation of South Africa, Limited | E82: Industrial Development Corporation of South Africa Limited | F82: Isaac Kurasha | G82: (012) 315 5213 | H82: Isaac.Kurasha@treasury.gov.za | I82: Nymrot Sholoko | J82: 0 | K82: Nymrot.Sholoko@treasury.gov.za | L82: 3 | M82: 3 | N82: 2 | O82: PE48 | P82: 48 | Q82: IDC | R82: 3 | S82: 202526 | AD82: Lepelle Northern Water | BC82: Lecturer | BY82: Lepelle Northern Water | CK82: 1
C83: Agriculture, Land Reform and Rural Development | D83: KwaZulu-Natal Ingonyama Trust Board | E83: Ingonyama Trust Board | F83: Bothwell Deka | G83: (012) 395 6786 | H83: Bothwell.Deka@treasury.gov.za | I83: Jabulane Mashele | J83: (012) 395 6560 | K83: Jabulane.Mashele@treasury.gov.za | L83: 1 | M83: 1 | N83: 3A | O83: PE52 | P83: 52 | Q83: ITB | R83: 3 | S83: 202526 | AD83: Local Government Education and Training Authority | BC83: Legal related | BY83: Local Government Education and Training Authority | CK83: 0
C84: Water and Sanitation | D84: Inkomati-Usuthu Catchment Management Agency | E84: Inkomati-Usuthu Catchment Management Agency | F84: Iqbal Mahomed Alli | G84: (012) 315 5809 | H84: Iqbal.Mahomedalli@treasury.gov.za | I84: Mntazi Msiza | J84: (012) 315 5876 | K84: Mntazi.Msiza@treasury.gov.za | L84: 1 | M84: 1 | N84: 3A | O84: PE156 | P84: 156 | Q84: IUCMA | R84: 3 | S84: 202526 | AD84: Luthuli Museum | BC84: Librarians and related | BY84: Luthuli Museum | CK84: 0
C85: Higher Education and Training | D85: Insurance Sector Education and Training Authority | E85: Insurance Sector Education and Training Authority | F85: Spencer Janari | G85: (012) 315 5436 | H85: Spencer.Janari@treasury.gov.za | I85: Lionel Botsane | J85: (012) 315 5749 | K85: Lionel.Botsane@treasury.gov.za | L85: 2 | M85: 3 | N85: 3A | O85: PE174 | P85: 174 | Q85: ISETA | R85: 3 | S85: 202526 | AD85: Magalies Water | BC85: Life sciences related | BY85: Magalies Water | CK85: 0
C86: Trade, Industry and Competition | D86: International Trade Administration Commission | E86: International Trade Administration Commission | F86: Isaac Kurasha | G86: (012) 315 5213 | H86: Isaac.Kurasha@treasury.gov.za | I86: Nymrot Sholoko | J86: 0 | K86: Nymrot.Sholoko@treasury.gov.za | L86: 1 | M86: 1 | N86: 3A | O86: PE55 | P86: 55 | Q86: ITAC | R86: 3 | S86: 202526 | AD86: Mandela Bay Theatre Complex | BC86: Marketing related | BY86: Mandela Bay Theatre Complex | CK86: 0
C87: Forestry, Fisheries and the Environment | D87: iSimangaliso Wetland Park Authority | E87: iSimangaliso Wetland Park | F87: Humbelani Ramuedzisi | G87: (012) 315 5585 | H87: Humbelani.Ramuedzisi@treasury.gov.za | I87: Nymrot Sholoko | J87: 0 | K87: Nymrot.Sholoko@treasury.gov.za | L87: 1 | M87: 1 | N87: 3A | O87: PE54 | P87: 54 | Q87: ISIMANGALISO | R87: 3 | S87: 202526 | AD87: Manufacturing, Engineering and Related Services Education and Training Authority | BC87: Mathematicians and related professionals | BY87: Manufacturing, Engineering and Related Services Education and Training Authority | CK87: 0
C88: Sport, Arts and Culture | D88: Iziko Museums of South Africa | E88: Iziko Museums of Cape Town | F88: Judy Naidoo | G88: (012) 315 5269 | H88: Judy.Naidoo@treasury.gov.za | I88: Vuyo Ngqukumba | J88: (012) 315 5760 | K88: Vuyo.Ngqukumba@treasury.gov.za | L88: 1 | M88: 3 | N88: 3A | O88: PE176 | P88: 176 | Q88: Iziko | R88: 3 | S88: 202526 | AD88: Marine Living Resources Fund | BC88: Medical officer | BY88: Marine Living Resources Fund | CK88: 0
C89: Correctional Services | D89: Judicial Inspectorate for Correctional Services | E89: Judicial Inspectorate for Correctional Services | F89: Elvis Ramafamba | G89: (012) 315 5204 | H89: Elvis.Ramafamba @treasury.gov.za | I89: Jabulane Mashele | J89: (012) 395 6560 | K89: Jabulane.Mashele@treasury.gov.za | M89: 2 | N89: Not listed | O89: PE255 | P89: 255 | Q89: JICS | S89: 202526 | AD89: Market Theatre Foundation | BC89: Medical related | BY89: Market Theatre Foundation | CK89: 0
C90: Sport, Arts and Culture | D90: Natal Museum | E90: KwaZulu-Natal Museum | F90: Judy Naidoo | G90: (012) 315 5269 | H90: Judy.Naidoo@treasury.gov.za | I90: Vuyo Ngqukumba | J90: (012) 315 5760 | K90: Vuyo.Ngqukumba@treasury.gov.za | L90: 1 | M90: 3 | N90: 3A | O90: PE188 | P90: 188 | Q90: Kwa-ZuluM | R90: 3 | S90: 202526 | AD90: Media Development Diversity Agency | BC90: Messengers | BY90: Media Development Diversity Agency | CK90: 0
C91: National Treasury | D91: Land and Agricultural Development Bank of South Africa | E91: Land and Agricultural Development Bank of South Africa | F91: Mokgatla Tema | G91: (012) 315 5948 | H91: Mokgatla.Tema@treasury.gov.za | I91: Patrick Mbedzi | J91: (012) 315 5912 | K91: Patrick.Mbedzi@treasury.gov.za | L91: 3 | M91: 3 | N91: 2 | O91: PE59 | P91: 59 | Q91: Land Bank | R91: 3 | S91: 202526 | AD91: Media, Information and Communication Technologies Sector Education and Training Authority | BC91: Ombudsman | BY91: Media, Information and Communication Technologies Sector Education and Training Authority | CK91: 1
C92: Justice and Constitutional Development | D92: Legal Aid South Africa | E92: Legal Aid South Africa | F92: Werner Krause | G92: (012) 315 5211 | H92: Werner.Krause@treasury.gov.za | I92: Nymrot Sholoko | J92: 0 | K92: Nymrot.Sholoko@treasury.gov.za | L92: 1 | M92: 1 | N92: 3A | O92: PE58 | P92: 58 | Q92: LASA | R92: 3 | S92: 202526 | AD92: Mhlathuze Water | BC92: Pathologist | BY92: Mhlathuze Water | CK92: 0
C93: Water and Sanitation | D93: Lepelle Northern Water Board | E93: Lepelle Northern Water | F93: Iqbal Mahomed Alli | G93: (012) 315 5809 | H93: Iqbal.Mahomedalli@treasury.gov.za | I93: Mntazi Msiza | J93: (012) 315 5876 | K93: Mntazi.Msiza@treasury.gov.za | L93: 1 | M93: 3 | N93: 3B | O93: PE177 | P93: 177 | Q93: Lepelle | R93: 3 | S93: 202526 | AD93: Mine Health and Safety Council | BC93: Personal Assistants | BY93: Mine Health and Safety Council | CK93: 0
C94: Water and Sanitation | D94: Limpopo-Olifants Catchment Management Agency | E94: Limpopo-Olifants Catchment Management Agency | F94: Iqbal Mahomed Alli | G94: (012) 315 5809 | H94: Iqbal.Mahomedalli@treasury.gov.za | I94: Mntazi Msiza | J94: (012) 315 5876 | K94: Mntazi.Msiza@treasury.gov.za | L94: 1 | M94: 2 | N94: 3A | O94: PE259 | P94: 259 | Q94: LOMCA | R94: 3 | S94: 202526 | AD94: Mining Qualifications Authority | BC94: Pharmacists | BY94: Mining Qualifications Authority | CK94: 0
C95: Higher Education and Training | D95: Local Government Education and Training Authority | E95: Local Government Education and Training Authority | F95: Spencer Janari | G95: (012) 315 5436 | H95: Spencer.Janari@treasury.gov.za | I95: Lionel Botsane | J95: (012) 315 5749 | K95: Lionel.Botsane@treasury.gov.za | L95: 2 | M95: 3 | N95: 3A | O95: PE178 | P95: 178 | Q95: LGSETA | R95: 3 | S95: 202526 | AD95: Mintek | BC95: Physicists | BY95: Mintek | CK95: 0
C96: Sport, Arts and Culture | D96: Luthuli Museum | E96: Luthuli Museum | F96: Judy Naidoo | G96: (012) 315 5269 | H96: Judy.Naidoo@treasury.gov.za | I96: Vuyo Ngqukumba | J96: (012) 315 5760 | K96: Vuyo.Ngqukumba@treasury.gov.za | L96: 1 | M96: 3 | N96: 3A | O96: PE180 | P96: 180 | Q96: LuthuliM | R96: 3 | S96: 202526 | AD96: Municipal Infrastructure Support Agency | BC96: Police | BY96: Municipal Infrastructure Support Agency | CK96: 0
C97: Water and Sanitation | D97: Magalies Water Board | E97: Magalies Water | F97: Iqbal Mahomed Alli | G97: (012) 315 5809 | H97: Iqbal.Mahomedalli@treasury.gov.za | I97: Mntazi Msiza | J97: (012) 315 5876 | K97: Mntazi.Msiza@treasury.gov.za | L97: 1 | M97: 3 | N97: 3B | O97: PE181 | P97: 181 | Q97: Magalies | R97: 3 | S97: 202526 | AD97: Mzimvubu-Tsitsikamma Catchment Management Agency | BC97: Programmers and related professionals | BY97: Mzimvubu-Tsitsikamma Catchment Management Agency | CK97: 0
C98: Sport, Arts and Culture | D98: Mandela Bay Theatre Complex | E98: Mandela Bay Theatre Complex | F98: Judy Naidoo | G98: (012) 315 5269 | H98: Judy.Naidoo@treasury.gov.za | I98: Vuyo Ngqukumba | J98: (012) 315 5760 | K98: Vuyo.Ngqukumba@treasury.gov.za | L98: 1 | M98: 3 | N98: Not listed | O98: PE251 | P98: 251 | Q98: MBTC | R98: 3 | S98: 202526 | AD98: National Agricultural Marketing Council | BC98: Records management related | BY98: National Agricultural Marketing Council | CK98: 0
C99: Higher Education and Training | D99: Manufacturing, Engineering and Related Services Education and Training Authority | E99: Manufacturing, Engineering and Related Services Education and Training Authority | F99: Spencer Janari | G99: (012) 315 5436 | H99: Spencer.Janari@treasury.gov.za | I99: Lionel Botsane | J99: (012) 315 5749 | K99: Lionel.Botsane@treasury.gov.za | L99: 2 | M99: 3 | N99: 3A | O99: PE184 | P99: 184 | Q99: MERSETA | R99: 3 | S99: 202526 | AD99: National Arts Council | BC99: Researchers | BY99: National Arts Council | CK99: 0
C100: Forestry, Fisheries and the Environment | D100: Marine Living Resources Fund | E100: Marine Living Resources Fund | F100: Humbelani Ramuedzisi | G100: (012) 315 5585 | H100: Humbelani.Ramuedzisi@treasury.gov.za | I100: Nymrot Sholoko | J100: 0 | K100: Nymrot.Sholoko@treasury.gov.za | L100: 1 | M100: 1 | N100: 3A | O100: PE66 | P100: 66 | Q100: MLRF | R100: 3 | S100: 202526 | AD100: National Consumer Commission | BC100: Risk management related | BY100: National Consumer Commission | CK100: 0
C101: Sport, Arts and Culture | D101: Market Theatre Foundation | E101: Market Theatre Foundation | F101: Judy Naidoo | G101: (012) 315 5269 | H101: Judy.Naidoo@treasury.gov.za | I101: Vuyo Ngqukumba | J101: (012) 315 5760 | K101: Vuyo.Ngqukumba@treasury.gov.za | L101: 1 | M101: 3 | N101: 3A | O101: PE183 | P101: 183 | Q101: Marketh | R101: 3 | S101: 202526 | AD101: National Consumer Tribunal | BC101: Safety and security related | BY101: National Consumer Tribunal | CK101: 0
C102: Government Communication and Information System | D102: Media Development Diversity Agency | E102: Media Development Diversity Agency | F102: Mokgatla Tema | G102: (012) 315 5948 | H102: Mokgatla.Tema@treasury.gov.za | I102: Samson Mlambo | J102: 0 | K102: Samson.Mlambo@treasury.gov.za | L102: 1 | M102: 1 | N102: 3A | O102: PE63 | P102: 63 | Q102: MDDA | R102: 3 | S102: 202526 | AD102: National Credit Regulator | BC102: Sales related | BY102: National Credit Regulator | CK102: 0
C103: Higher Education and Training | D103: Media, Information and Communication Technologies Sector Education and Training Authority | E103: Media, Information and Communication Technologies Sector Education and Training Authority | F103: Spencer Janari | G103: (012) 315 5436 | H103: Spencer.Janari@treasury.gov.za | I103: Lionel Botsane | J103: (012) 315 5749 | K103: Lionel.Botsane@treasury.gov.za | L103: 2 | M103: 3 | N103: 3A | O103: PE175 | P103: 175 | Q103: MICTSETTA | R103: 3 | S103: 202526 | AD103: National Development Agency | BC103: Seamstress | BY103: National Development Agency | CK103: 0
C104: Water and Sanitation | D104: Mhlathuze Water Board | E104: Mhlathuze Water | F104: Iqbal Mahomed Alli | G104: (012) 315 5809 | H104: Iqbal.Mahomedalli@treasury.gov.za | I104: Mntazi Msiza | J104: (012) 315 5876 | K104: Mntazi.Msiza@treasury.gov.za | L104: 1 | M104: 3 | N104: 3B | O104: PE185 | P104: 185 | Q104: Mhlathuze | R104: 3 | S104: 202526 | AD104: National Economic Development and Labour Council | BC104: Social work and related professionals | BY104: National Economic Development and Labour Council | CK104: 0
C105: Mineral Resources and Energy | D105: Mine Health and Safety Council | E105: Mine Health and Safety Council | F105: Nomagugu Madikane | G105: (012) 315 5312 | H105: Nomagugu.Madikane@treasury.gov.za | I105: Mpho Ntshole | J105: 0 | K105: Mpho.Ntshole@treasury.gov.za | L105: 1 | M105: 1 | N105: 3A | O105: PE64 | P105: 64 | Q105: MHSC | R105: 3 | S105: 202526 | AD105: National Electronic Media Institute of South Africa | BC105: Statisticians and related professionals | BY105: National Electronic Media Institute of South Africa | CK105: 0
C106: Health | D106: Mines and Works Compensation Fund | E106: Mines and Works Compensation Fund | F106: Refiloe Thokoa | G106: (012) 395 6559 | H106: Refiloe.Thokoa@treasury.gov.za | I106: Vuyo Ngqukumba | J106: (012) 315 5760 | K106: Vuyo.Ngqukumba@treasury.gov.za | L106: 4 | M106: 4 | N106: Not listed | O106: PE60 | P106: 60 | Q106: Mines and Works Compensation Fund | R106: 3 | S106: 202526 | AD106: National Empowerment Fund | BC106: Supply chain related | BY106: National Empowerment Fund | CK106: 0
C107: Higher Education and Training | D107: Mining Qualifications Authority | E107: Mining Qualifications Authority | F107: Spencer Janari | G107: (012) 315 5436 | H107: Spencer.Janari@treasury.gov.za | I107: Lionel Botsane | J107: (012) 315 5749 | K107: Lionel.Botsane@treasury.gov.za | L107: 2 | M107: 3 | N107: 3A | O107: PE186 | P107: 186 | Q107: MQA | R107: 3 | S107: 202526 | AD107: National Energy Regulator of South Africa | BC107: Teachers | BY107: National Energy Regulator of South Africa | CK107: 0
C108: Mineral Resources and Energy | D108: Council for Mineral Technology | E108: Mintek | F108: Nomagugu Madikane | G108: (012) 315 5312 | H108: Nomagugu.Madikane@treasury.gov.za | I108: Mpho Ntshole | J108: 0 | K108: Mpho.Ntshole@treasury.gov.za | L108: 1 | M108: 1 | N108: 3B | O108: PE65 | P108: 65 | Q108: Mintek | R108: 1 | S108: 202526 | AD108: National Film and Video Foundation | BC108: Technicians | BY108: National Film and Video Foundation | CK108: 0
C109: Cooperative Governance | D109: Municipal Infrastructure Support Agent | E109: Municipal Infrastructure Support Agency | F109: Portia Thebe | G109: (012) 315 5855 | H109: Portia.Thebe@treasury.gov.za | I109: Mntazi Msiza | J109: (012) 315 5876 | K109: Mntazi.Msiza@treasury.gov.za | L109: 1 | M109: 1 | N109: Not listed | O109: PE244 | P109: 244 | Q109: MISA | R109: 3 | S109: 202526 | AD109: National Gambling Board of South Africa | BC109: Tour Guide | BY109: National Gambling Board of South Africa | CK109: 0
C110: Water and Sanitation | D110: Mzimvubu-Tsitsikamma Catchment Management Agency | E110: Mzimvubu-Tsitsikamma Catchment Management Agency | F110: Iqbal Mahomed Alli | G110: (012) 315 5809 | H110: Iqbal.Mahomedalli@treasury.gov.za | I110: Mntazi Msiza | J110: (012) 315 5876 | K110: Mntazi.Msiza@treasury.gov.za | L110: 1 | M110: 2 | N110: 3A | O110: PE256 | P110: 256 | Q110: MTCA | R110: 3 | S110: 202526 | AD110: National Health Laboratory Service | BC110: Training and development related | BY110: National Health Laboratory Service | CK110: 0
C111: Agriculture, Land Reform and Rural Development | D111: National Agricultural Marketing Council | E111: National Agricultural Marketing Council | F111: Bothwell Deka | G111: (012) 395 6787 | H111: Bothwell.Deka@treasury.gov.za | I111: Jabulane Mashele | J111: (012) 395 6560 | K111: Jabulane.Mashele@treasury.gov.za | L111: 1 | M111: 1 | N111: 3A | O111: PE68 | P111: 68 | Q111: NAMC | R111: 3 | S111: 202526 | AD111: National Heritage Council | BC111: Tribunal member | BY111: National Heritage Council | CK111: 1
C112: Sport, Arts and Culture | D112: National Arts Council | E112: National Arts Council | F112: Judy Naidoo | G112: (012) 315 5269 | H112: Judy.Naidoo@treasury.gov.za | I112: Vuyo Ngqukumba | J112: (012) 315 5760 | K112: Vuyo.Ngqukumba@treasury.gov.za | L112: 1 | M112: 1 | N112: 3A | O112: PE67 | P112: 67 | Q112: NAC | R112: 3 | S112: 202526 | AD112: National Home Builders Registration Council | BC112: Ushers | BY112: National Home Builders Registration Council | CK112: 0
C113: Trade, Industry and Competition | D113: National Consumer Commission | E113: National Consumer Commission | F113: Isaac Kurasha | G113: (012) 315 5213 | H113: Isaac.Kurasha@treasury.gov.za | I113: Nymrot Sholoko | J113: 0 | K113: Nymrot.Sholoko@treasury.gov.za | L113: 1 | M113: 1 | N113: 3A | O113: PE124 | P113: 124 | Q113: NCC | R113: 3 | S113: 202526 | AD113: National Housing Finance Corporation Limited | BC113: Wardrobe specialist | BY113: National Housing Finance Corporation Limited | CK113: 0
C114: Trade, Industry and Competition | D114: National Consumer Tribunal | E114: National Consumer Tribunal | F114: Isaac Kurasha | G114: (012) 315 5213 | H114: Isaac.Kurasha@treasury.gov.za | I114: Nymrot Sholoko | J114: 0 | K114: Nymrot.Sholoko@treasury.gov.za | L114: 1 | M114: 1 | N114: 3A | O114: PE71 | P114: 71 | Q114: NCT | R114: 3 | S114: 202526 | AD114: National Library of South Africa | BC114: Workshop officer | BY114: National Library of South Africa | CK114: 0
C115: Trade, Industry and Competition | D115: National Credit Regulator | E115: National Credit Regulator | F115: Isaac Kurasha | G115: (012) 315 5213 | H115: Isaac.Kurasha@treasury.gov.za | I115: Nymrot Sholoko | J115: 0 | K115: Nymrot.Sholoko@treasury.gov.za | L115: 1 | M115: 1 | N115: 3A | O115: PE70 | P115: 70 | Q115: NCR | R115: 3 | S115: 202526 | AD115: National Lotteries Commission | BC115: Other: Please specify | BY115: National Lotteries Commission | CK115: 0
C116: Social Development | D116: National Development Agency | E116: National Development Agency | F116: Lindi Mzankomo | G116: (012) 315 5256 | H116: Lindi.Mzankomo@treasury.gov.za | I116: Lionel Botsane | J116: (012) 315 5749 | K116: Lionel.Botsane@treasury.gov.za | L116: 1 | M116: 1 | N116: 3A | O116: PE72 | P116: 72 | Q116: NDA | R116: 3 | S116: 202526 | AD116: National Lotteries Commission Distribution Trust Fund | BY116: National Lotteries Commission Distribution Trust Fund | CK116: 0
C117: Employment and Labour | D117: National Economic, Development and Labour Council | E117: National Economic Development and Labour Council | F117: Judy Naidoo | G117: (012) 315 5269 | H117: Judy.Naidoo@treasury.gov.za | I117: Samson Mlambo | J117: 0 | K117: Samson.Mlambo@treasury.gov.za | L117: 1 | M117: 1 | N117: 3A | O117: PE74 | P117: 74 | Q117: NEDLAC | R117: 3 | S117: 202526 | AD117: National Metrology Institute of South Africa | BY117: National Metrology Institute of South Africa | CK117: 0
C118: Communications and Digital Technologies | D118: National Electronic Media Institute of South Africa | E118: National Electronic Media Institute of South Africa | F118: Keitumetse Motshegwe | G118: (012) 395 6750 | H118: Keitumetse.Motshegwe@treasury.gov.za | I118: Mpho Ntshole | J118: 0 | K118: Mpho.Ntshole@treasury.gov.za | L118: 1 | M118: 1 | N118: 3A | O118: PE76 | P118: 76 | Q118: NEMISA | R118: 3 | S118: 202526 | AD118: National Museum, Bloemfontein | BY118: National Museum, Bloemfontein | CK118: 0
C119: Trade, Industry and Competition | D119: National Empowerment Fund | E119: National Empowerment Fund | F119: Isaac Kurasha | G119: (012) 315 5213 | H119: Isaac.Kurasha@treasury.gov.za | I119: Nymrot Sholoko | J119: 0 | K119: Nymrot.Sholoko@treasury.gov.za | L119: 3 | M119: 1 | N119: 3A | O119: PE75 | P119: 75 | Q119: NEF | R119: 3 | S119: 202526 | AD119: National Nuclear Regulator | BY119: National Nuclear Regulator | CK119: 0
C120: Mineral Resources and Energy | D120: National Energy Regulator | E120: National Energy Regulator of South Africa | F120: Nomagugu Madikane | G120: (012) 315 5312 | H120: Nomagugu.Madikane@treasury.gov.za | I120: Mpho Ntshole | J120: 0 | K120: Mpho.Ntshole@treasury.gov.za | L120: 1 | M120: 1 | N120: 3A | O120: PE77 | P120: 77 | Q120: NERSA | R120: 3 | S120: 202526 | AD120: National Regulator for Compulsory Specifications | BY120: National Regulator for Compulsory Specifications | CK120: 0
C121: Sport, Arts and Culture | D121: National Film and Video Foundation | E121: National Film and Video Foundation | F121: Judy Naidoo | G121: (012) 315 5269 | H121: Judy.Naidoo@treasury.gov.za | I121: Vuyo Ngqukumba | J121: (012) 315 5760 | K121: Vuyo.Ngqukumba@treasury.gov.za | L121: 1 | M121: 1 | N121: 3A | O121: PE78 | P121: 78 | Q121: NFVF | R121: 3 | S121: 202526 | AD121: National Research Foundation | BY121: National Research Foundation | CK121: 0
C122: Trade, Industry and Competition | D122: National Gambling Board | E122: National Gambling Board of South Africa | F122: Isaac Kurasha | G122: (012) 315 5213 | H122: Isaac.Kurasha@treasury.gov.za | I122: Nymrot Sholoko | J122: 0 | K122: Nymrot.Sholoko@treasury.gov.za | L122: 1 | M122: 1 | N122: 3A | O122: PE79 | P122: 79 | Q122: NGB | R122: 3 | S122: 202526 | AD122: National school of government | BY122: National school of government | CK122: 0
C123: Health | D123: National Health Laboratory Service | E123: National Health Laboratory Service | F123: Refiloe Thokoa | G123: (012) 395 6559 | H123: Refiloe.Thokoa@treasury.gov.za | I123: Mpho Ntshole | J123: 0 | K123: Mpho.Ntshole@treasury.gov.za | L123: 1 | M123: 1 | N123: 3A | O123: PE83 | P123: 83 | Q123: NHLS | R123: 1 | S123: 202526 | AD123: National Student Financial Aid Scheme | BY123: National Student Financial Aid Scheme | CK123: 0
C124: Sport, Arts and Culture | D124: National Heritage Council | E124: National Heritage Council | F124: Judy Naidoo | G124: (012) 315 5269 | H124: Judy.Naidoo@treasury.gov.za | I124: Vuyo Ngqukumba | J124: (012) 315 5760 | K124: Vuyo.Ngqukumba@treasury.gov.za | L124: 1 | M124: 1 | N124: 3A | O124: PE81 | P124: 81 | Q124: NHC | R124: 3 | S124: 202526 | AD124: National Youth Development Agency | BY124: National Youth Development Agency | CK124: 0
C125: Human Settlements | D125: National Home Builders Registration Council | E125: National Home Builders Registration Council | F125: Lindiwe Ngcongwane | G125: (012) 315 5357 | H125: Lindiwe.Ngcongwane@treasury.gov.za | I125: Jabulane Mashele | J125: (012) 395 6560 | K125: Jabulane.Mashele@treasury.gov.za | L125: 1 | M125: 1 | N125: 3A | O125: PE80 | P125: 80 | Q125: NHBRC | R125: 3 | S125: 202526 | AD125: Nelson Mandela National Museum | BY125: Nelson Mandela National Museum | CK125: 0
C126: Human Settlements | D126: National Housing Finance Corporation | E126: National Housing Finance Corporation Limited | F126: Lindiwe Ngcongwane | G126: (012) 315 5357 | H126: Lindiwe.Ngcongwane@treasury.gov.za | I126: Jabulane Mashele | J126: (012) 395 6560 | K126: Jabulane.Mashele@treasury.gov.za | L126: 3 | M126: 1 | N126: 3A | O126: PE82 | P126: 82 | Q126: NHFC | R126: 3 | S126: 202526 | AD126: Office of Health Standards Compliance | BY126: Office of Health Standards Compliance | CK126: 0
C127: Sport, Arts and Culture | D127: National Library of South Africa | E127: National Library of South Africa | F127: Judy Naidoo | G127: (012) 315 5269 | H127: Judy.Naidoo@treasury.gov.za | I127: Vuyo Ngqukumba | J127: (012) 315 5760 | K127: Vuyo.Ngqukumba@treasury.gov.za | L127: 1 | M127: 3 | N127: 3A | O127: PE189 | P127: 189 | Q127: NLSA | R127: 3 | S127: 202526 | AD127: Office of the Ombud for Financial Service Providers | BY127: Office of the Ombud for Financial Service Providers | CK127: 0
C128: Trade, Industry and Competition | D128: National Lotteries Commission | E128: National Lotteries Commission | F128: Isaac Kurasha | G128: (012) 315 5213 | H128: Isaac.Kurasha@treasury.gov.za | I128: Nymrot Sholoko | J128: 0 | K128: Nymrot.Sholoko@treasury.gov.za | L128: 1 | M128: 1 | N128: 3A | O128: PE84 | P128: 84 | Q128: NLC | R128: 3 | S128: 202526 | AD128: Office of the Pension Funds Adjudicator | BY128: Office of the Pension Funds Adjudicator | CK128: 0
C129: Trade, Industry and Competition | D129: National Lotteries Commission Distribution Trust Fund | E129: National Lotteries Commission Distribution Trust Fund | F129: Isaac Kurasha | G129: (012) 315 5213 | H129: Isaac.Kurasha@treasury.gov.za | I129: Nymrot Sholoko | J129: 0 | K129: Nymrot.Sholoko@treasury.gov.za | L129: 1 | M129: 1 | N129: Not listed | O129: PE227 | P129: 227 | Q129: NLCDTF | R129: 3 | S129: 202526 | AD129: Office of the Valuer-General | BY129: Office of the Valuer-General | CK129: 0
C130: Trade, Industry and Competition | D130: National Metrology Institute of South Africa | E130: National Metrology Institute of South Africa | F130: Isaac Kurasha | G130: (012) 315 5213 | H130: Isaac.Kurasha@treasury.gov.za | I130: Nymrot Sholoko | J130: 0 | K130: Nymrot.Sholoko@treasury.gov.za | L130: 1 | M130: 1 | N130: 3A | O130: PE85 | P130: 85 | Q130: NMISA | R130: 3 | S130: 202526 | AD130: Onderstepoort Biological Products | BY130: Onderstepoort Biological Products | CK130: 0
C131: Sport, Arts and Culture | D131: Naional Museum | E131: National Museum, Bloemfontein | F131: Judy Naidoo | G131: (012) 315 5269 | H131: Judy.Naidoo@treasury.gov.za | I131: Vuyo Ngqukumba | J131: (012) 315 5760 | K131: Vuyo.Ngqukumba@treasury.gov.za | L131: 1 | M131: 3 | N131: 3A | O131: PE190 | P131: 190 | Q131: NationalM | R131: 3 | S131: 202526 | AD131: Overberg Water | BY131: Overberg Water | CK131: 0
C132: Mineral Resources and Energy | D132: National Nuclear Regulator | E132: National Nuclear Regulator | F132: Nomagugu Madikane | G132: (012) 315 5312 | H132: Nomagugu.Madikane@treasury.gov.za | I132: Mpho Ntshole | J132: 0 | K132: Mpho.Ntshole@treasury.gov.za | L132: 1 | M132: 1 | N132: 3A | O132: PE86 | P132: 86 | Q132: NNR | R132: 3 | S132: 202526 | AD132: Passenger Rail Agency of South Africa | BY132: Passenger Rail Agency of South Africa | CK132: 0
C133: Trade, Industry and Competition | D133: National Regulator for Compulsory Specifications of South Africa | E133: National Regulator for Compulsory Specifications | F133: Isaac Kurasha | G133: (012) 315 5213 | H133: Isaac.Kurasha@treasury.gov.za | I133: Nymrot Sholoko | J133: 0 | K133: Nymrot.Sholoko@treasury.gov.za | L133: 1 | M133: 1 | N133: 3A | O133: PE159 | P133: 159 | Q133: NRCS | R133: 3 | S133: 202526 | AD133: Performing Arts Council of the Free State | BY133: Performing Arts Council of the Free State | CK133: 0
C134: Science and Innovation | D134: National Research Foundation | E134: National Research Foundation | F134: Humbelani Ramuedzisi | G134: (012) 315 5585 | H134: Humbelani.Ramuedzisi@treasury.gov.za | I134: Patrick Mbedzi | J134: (012) 315 5912 | K134: Patrick.Mbedzi@treasury.gov.za | L134: 1 | M134: 1 | N134: 3A | O134: PE88 | P134: 88 | Q134: NRF | R134: 3 | S134: 202526 | AD134: Perishable Products Export Control Board | BY134: Perishable Products Export Control Board | CK134: 0
C135: National School of Government | D135: The National School of Government Trading Account | E135: National school of government | F135: George Tembo | G135: (012) 315 5514 | H135: George.Tembo@treasury.gov.za | I135: Samson Mlambo | J135: 0 | K135: Samson.Mlambo@treasury.gov.za | L135: 1 | M135: 1 | N135: Not listed | O135: PE115 | P135: 115 | Q135: PALAMA | R135: 1 | S135: 202526 | AD135: Ports Regulator of South Africa | BY135: Ports Regulator of South Africa | CK135: 0
C136: Higher Education and Training | D136: National Student Financial Aid Scheme | E136: National Student Financial Aid Scheme | F136: Spencer Janari | G136: (012) 315 5436 | H136: Spencer.Janari@treasury.gov.za | I136: Lionel Botsane | J136: (012) 315 5749 | K136: Lionel.Botsane@treasury.gov.za | L136: 3 | M136: 1 | N136: 3A | O136: PE90 | P136: 90 | Q136: NSFAS | R136: 3 | S136: 202526 | AD136: Pongola-Mzimkulu Catchment Management Agency | BY136: Pongola-Mzimkulu Catchment Management Agency | CK136: 0
C137: Women, Youth and Persons with Disabilities | D137: National Youth Development Agency | E137: National Youth Development Agency | F137: Lindi Mzankomo | G137: (012) 315 5256 | H137: Lindi.Mzankomo@treasury.gov.za | I137: Samson Mlambo | J137: 0 | K137: Samson.Mlambo@treasury.gov.za | L137: 3 | M137: 1 | N137: 3A | O137: PE92 | P137: 92 | Q137: NYDA | R137: 3 | S137: 202526 | AD137: Private Security Industry Regulatory Authority | BY137: Private Security Industry Regulatory Authority | CK137: 0
C138: Sport, Arts and Culture | D138: Nelson Mandela Museum | E138: Nelson Mandela National Museum | F138: Judy Naidoo | G138: (012) 315 5269 | H138: Judy.Naidoo@treasury.gov.za | I138: Vuyo Ngqukumba | J138: (012) 315 5760 | K138: Vuyo.Ngqukumba@treasury.gov.za | L138: 1 | M138: 3 | N138: 3A | O138: PE192 | P138: 192 | Q138: NelsonM | R138: 3 | S138: 202526 | AD138: Productivity SA | BY138: Productivity SA | CK138: 0
C139: Health | D139: Office of Health Standards Compliance | E139: Office of Health Standards Compliance | F139: Refiloe Thokoa | G139: (012) 395 6559 | H139: Refiloe.Thokoa@treasury.gov.za | I139: Mpho Ntshole | J139: 0 | K139: Mpho.Ntshole@treasury.gov.za | L139: 1 | M139: 1 | N139: 3A | O139: PE242 | P139: 242 | Q139: OHSC | R139: 3 | S139: 202526 | AD139: Property Management Trading Entity | BY139: Property Management Trading Entity | CK139: 0
C140: National Treasury | D140: Office of the Ombudsman for Financial Services Providers | E140: Office of the Ombud for Financial Service Providers | F140: Mokgatla Tema | G140: (012) 315 5948 | H140: Mokgatla.Tema@treasury.gov.za | I140: Patrick Mbedzi | J140: (012) 315 5912 | K140: Patrick.Mbedzi@treasury.gov.za | L140: 1 | M140: 1 | N140: 3A | O140: PE37 | P140: 37 | Q140: FAIS | R140: 3 | S140: 202526 | AD140: Public Investment Corporation Limited | BY140: Public Investment Corporation Limited | CK140: 0
C141: National Treasury | D141: Office of the Pension Funds Adjudicator | E141: Office of the Pension Funds Adjudicator | F141: Mokgatla Tema | G141: (012) 315 5948 | H141: Mokgatla.Tema@treasury.gov.za | I141: Patrick Mbedzi | J141: (012) 315 5912 | K141: Patrick.Mbedzi@treasury.gov.za | L141: 1 | M141: 1 | N141: 3A | O141: PE232 | P141: 232 | Q141: OPFA | R141: 3 | S141: 202526 | AD141: Public Service Sector Education and Training Authority | BY141: Public Service Sector Education and Training Authority | CK141: 0
C142: Agriculture, Land Reform and Rural Development | D142: Office of the Valuer-General | E142: Office of the Valuer-General | F142: Bothwell Deka | G142: (012) 395 6788 | H142: Bothwell.Deka@treasury.gov.za | I142: Jabulane Mashele | J142: (012) 395 6560 | K142: Jabulane.Mashele@treasury.gov.za | L142: 1 | M142: 1 | N142: 3A | O142: PE248 | P142: 248 | Q142: OVG | R142: 3 | S142: 202526 | AD142: Quality Council for Trades and Occupations | BY142: Quality Council for Trades and Occupations | CK142: 0
C143: National Treasury | D143: Ombud Council | E143: Ombud Council | F143: Mokgatla Tema | G143: (012) 315 5948 | H143: mokgatla.tema@treasury.gov.za | I143: Patrick Mbedzi | J143: (012) 315 5912 | K143: Patrick.Mbedzi@treasury.gov.za | L143: 1 | M143: 1 | N143: 3A | O143: PE250 | P143: 250 | Q143: OC | R143: 3 | S143: 202526 | AD143: Railway Safety Regulator | BY143: Railway Safety Regulator | CK143: 0
C144: Agriculture, Land Reform and Rural Development | D144: Onderstepoort Biological Products | E144: Onderstepoort Biological Products | F144: Bothwell Deka | G144: (012) 395 6789 | H144: Bothwell.Deka@treasury.gov.za | I144: Jabulane Mashele | J144: (012) 395 6560 | K144: Jabulane.Mashele@treasury.gov.za | L144: 1 | M144: 1 | N144: 3B | O144: PE93 | P144: 93 | Q144: OBP | R144: 3 | S144: 202526 | AD144: Rand Water | BY144: Rand Water | CK144: 0
C145: Water and Sanitation | D145: Overberg Water Board | E145: Overberg Water | F145: Iqbal Mahomed Alli | G145: (012) 315 5809 | H145: Iqbal.Mahomedalli@treasury.gov.za | I145: Mntazi Msiza | J145: (012) 315 5876 | K145: Mntazi.Msiza@treasury.gov.za | L145: 1 | M145: 3 | N145: 3B | O145: PE194 | P145: 194 | Q145: Overberg | R145: 3 | S145: 202526 | AD145: Registration of Deeds Trading Entity | BY145: Registration of Deeds Trading Entity | CK145: 0
C146: Transport | D146: Passenger Rail Agency of South Africa | E146: Passenger Rail Agency of South Africa | F146: Luyolo Ntlangula | G146: (012) 315 5571 | H146: Luyolo.Ntlangula@treasury.gov.za | I146: Samson Mlambo | J146: 0 | K146: Samson.Mlambo@treasury.gov.za | L146: 1 | M146: 1 | N146: 3B | O146: PE125 | P146: 125 | Q146: PRASA | R146: 3 | S146: 202526 | AD146: Road Traffic Infringement Agency | BY146: Road Traffic Infringement Agency | CK146: 0
C147: Sport, Arts and Culture | D147: Performing Arts Council of the Free State | E147: Performing Arts Council of the Free State | F147: Judy Naidoo | G147: (012) 315 5269 | H147: Judy.Naidoo@treasury.gov.za | I147: Vuyo Ngqukumba | J147: (012) 315 5760 | K147: Vuyo.Ngqukumba@treasury.gov.za | L147: 1 | M147: 3 | N147: 3A | O147: PE195 | P147: 195 | Q147: PACOFS | R147: 3 | S147: 202526 | AD147: Road Traffic Management Corporation | BY147: Road Traffic Management Corporation | CK147: 0
C148: Agriculture, Land Reform and Rural Development | D148: Perishable Products Export Control Board Ltd | E148: Perishable Products Export Control Board | F148: Bothwell Deka | G148: (012) 395 6790 | H148: Bothwell.Deka@treasury.gov.za | I148: Jabulane Mashele | J148: (012) 395 6560 | K148: Jabulane.Mashele@treasury.gov.za | L148: 1 | M148: 1 | N148: 3A | O148: PE99 | P148: 99 | Q148: PPECB | R148: 3 | S148: 202526 | AD148: Robben Island Museum | BY148: Robben Island Museum | CK148: 0
C149: Water and Sanitation | D149: Pongola-Umzimkulu Catchment Agency | E149: Pongola-Umzimkulu Catchment Agency | F149: Iqbal Mahomed Alli | G149: (012) 315 5809 | H149: Iqbal.Mahomedalli@treasury.gov.za | I149: Mntazi Msiza | J149: (012) 315 5876 | K149: Mntazi.Msiza@treasury.gov.za | L149: 1 | M149: 2 | N149: 3B | O149: PE258 | P149: 258 | Q149: PUMCA | R149: 3 | S149: 202526 | AD149: SA Bureau of Standards | BY149: SA Bureau of Standards | CK149: 0
C150: Transport | D150: Ports Regulator of South Africa | E150: Ports Regulator of South Africa | F150: Luyolo Ntlangula | G150: (012) 315 5571 | H150: Luyolo.Ntlangula@treasury.gov.za | I150: Samson Mlambo | J150: 0 | K150: Samson.Mlambo@treasury.gov.za | L150: 1 | M150: 1 | N150: 3A | O150: PE10 | P150: 10 | Q150: Ports Reg | R150: 3 | S150: 202526 | AD150: SA Institute for Drug-free Sport | BY150: SA Institute for Drug-free Sport | CK150: 0
C151: Communications and Digital Technologies | D151: PostBank | E151: PostBank | F151: Keitumetse Motshegwe | G151: (012) 395 6750 | H151: Keitumetse.Motshegwe@treasury.gov.za | I151: Mpho Ntshole | J151: 0 | K151: Mpho.Ntshole@treasury.gov.za | L151: 3 | M151: 3 | N151: Not listed | O151: PE252 | P151: 252 | Q151: PostBank | R151: 3 | S151: 202526 | AD151: SA Medical Research Council | BY151: SA Medical Research Council | CK151: 0
C152: Police | D152: Private Security Industry Regulatory Authority | E152: Private Security Industry Regulatory Authority | F152: Nompumelelo Radebe | G152: (012) 315 5957 | H152: Nompumelelo.Radebe@treasury.gov.za | I152: Jabulane Mashele | J152: (012) 395 6560 | K152: Jabulane.Mashele@treasury.gov.za | L152: 1 | M152: 1 | N152: 3A | O152: PE11 | P152: 11 | Q152: PSIRA | R152: 3 | S152: 202526 | AD152: SA National Roads Agency | BY152: SA National Roads Agency | CK152: 0
C153: Employment and Labour | D153: Productivity South Africa | E153: Productivity SA | F153: Judy Naidoo | G153: (012) 315 5269 | H153: Judy.Naidoo@treasury.gov.za | I153: Samson Mlambo | J153: 0 | K153: Samson.Mlambo@treasury.gov.za | L153: 1 | M153: 1 | N153: 3A | O153: PE87 | P153: 87 | Q153: ProductivitySA | R153: 3 | S153: 202526 | AD153: Safety and Security Education and Training Authority | BY153: Safety and Security Education and Training Authority | CK153: 0
C154: Public Works and Infrastructure | D154: The Property Management Trading Account | E154: Property Management Trading Entity | F154: George Tembo | G154: (012) 315 5514 | H154: George.Tembo@treasury.gov.za | I154: Patrick Mbedzi | J154: (012) 315 5912 | K154: Patrick.Mbedzi@treasury.gov.za | L154: 1 | M154: 1 | N154: Not listed | O154: PE98 | P154: 98 | Q154: PMTE | R154: 1 | S154: 202526 | AD154: Sedibeng Water | BY154: Sedibeng Water | CK154: 0
C155: Human Settlements | D155: Estate Agents Fidelity Fund | E155: Property Practitioners Fidelity Fund | F155: Lindiwe Ngcongwane | G155: (012) 315 5357 | H155: Lindiwe.Ngcongwane@treasury.gov.za | I155: Jabulane Mashele | J155: (012) 395 6560 | K155: Jabulane.Mashele@treasury.gov.za | L155: 1 | M155: 1 | N155: Not listed | O155: PE241 | P155: 241 | Q155: EAFF | R155: 3 | S155: 202526 | AD155: Sentech Limited | BY155: Sentech Limited | CK155: 0
C156: Human Settlements | D156: Estate Agency Affairs Board | E156: Property Practitioners Regulatory Authority | F156: Lindiwe Ngcongwane | G156: (012) 315 5357 | H156: Lindiwe.Ngcongwane@treasury.gov.za | I156: Jabulane Mashele | J156: (012) 395 6560 | K156: Jabulane.Mashele@treasury.gov.za | L156: 1 | M156: 1 | N156: 3A | O156: PE33 | P156: 33 | Q156: EAAB | R156: 3 | S156: 202526 | AD156: Services Sector Education and Training Authority | BY156: Services Sector Education and Training Authority | CK156: 0
C157: National Treasury | D157: Public Investment Corporation | E157: Public Investment Corporation Limited | F157: Mokgatla Tema | G157: (012) 315 5948 | H157: Mokgatla.Tema@treasury.gov.za | I157: Patrick Mbedzi | J157: (012) 315 5912 | K157: Patrick.Mbedzi@treasury.gov.za | L157: 3 | M157: 1 | N157: 3B | O157: PE97 | P157: 97 | Q157: PIC | R157: 3 | S157: 202526 | AD157: Small Enterprise Development Agency | BY157: Small Enterprise Development Agency | CK157: 0
C158: Higher Education and Training | D158: Public Service Sector Education and Training Authority | E158: Public Service Sector Education and Training Authority | F158: Spencer Janari | G158: (012) 315 5436 | H158: Spencer.Janari@treasury.gov.za | I158: Lionel Botsane | J158: (012) 315 5749 | K158: Lionel.Botsane@treasury.gov.za | L158: 2 | M158: 3 | N158: 3A | O158: PE226 | P158: 226 | Q158: PSETA | R158: 3 | S158: 202526 | AD158: South African Civil Aviation Authority | BY158: South African Civil Aviation Authority | CK158: 0
C159: Higher Education and Training | D159: Quality Council for Trades and Occupations | E159: Quality Council for Trades and Occupations | F159: Spencer Janari | G159: (012) 315 5436 | H159: Spencer.Janari@treasury.gov.za | I159: Lionel Botsane | J159: (012) 315 5749 | K159: Lionel.Botsane@treasury.gov.za | L159: 1 | M159: 1 | N159: 3A | O159: PE235 | P159: 235 | Q159: QCTO | R159: 3 | S159: 202526 | AD159: South African Council for Educators | BY159: South African Council for Educators | CK159: 0
C160: Transport | D160: Railway Safety Regulator | E160: Railway Safety Regulator | F160: Luyolo Ntlangula | G160: (012) 315 5571 | H160: Luyolo.Ntlangula@treasury.gov.za | I160: Samson Mlambo | J160: 0 | K160: Samson.Mlambo@treasury.gov.za | L160: 1 | M160: 1 | N160: 3A | O160: PE103 | P160: 103 | Q160: RSR | R160: 3 | S160: 202526 | AD160: South African Diamond and Precious Metals Regulator | BY160: South African Diamond and Precious Metals Regulator | CK160: 0
C161: Water and Sanitation | D161: Rand Water Board | E161: Rand Water | F161: Iqbal Mahomed Alli | G161: (012) 315 5809 | H161: Iqbal.Mahomedalli@treasury.gov.za | I161: Mntazi Msiza | J161: (012) 315 5876 | K161: Mntazi.Msiza@treasury.gov.za | L161: 1 | M161: 3 | N161: 3B | O161: PE199 | P161: 199 | Q161: RandWater | R161: 3 | S161: 202526 | AD161: South African Health Products Regulatory Authority | BY161: South African Health Products Regulatory Authority | CK161: 0
C162: Agriculture, Land Reform and Rural Development | D162: Registration of Deeds Trading Account | E162: Registration of Deeds Trading Entity | F162: Bothwell Deka | G162: (012) 395 6791 | H162: Bothwell.Deka@treasury.gov.za | I162: Jabulane Mashele | J162: (012) 395 6560 | K162: Jabulane.Mashele@treasury.gov.za | L162: 1 | M162: 1 | N162: Not listed | O162: PE31 | P162: 31 | Q162: DEEDS | R162: 3 | S162: 202526 | AD162: South African Heritage Resources Agency | BY162: South African Heritage Resources Agency | CK162: 0
C163: Transport | D163: Road Accident Fund | E163: Road Accident Fund | F163: Luyolo Ntlangula | G163: (012) 315 5571 | H163: Luyolo.Ntlangula@treasury.gov.za | I163: Vuyo Ngqukumba | J163: (012) 315 5760 | K163: Vuyo.Ngqukumba@treasury.gov.za | L163: 4 | M163: 4 | N163: 3A | O163: PE101 | P163: 101 | Q163: RAF | R163: 3 | S163: 202526 | AD163: South African Library for the Blind | BY163: South African Library for the Blind | CK163: 0
C164: Transport | D164: Road Traffic Infringement Agency | E164: Road Traffic Infringement Agency | F164: Luyolo Ntlangula | G164: (012) 315 5571 | H164: Luyolo.Ntlangula@treasury.gov.za | I164: Samson Mlambo | J164: 0 | K164: Samson.Mlambo@treasury.gov.za | L164: 1 | M164: 1 | N164: 3A | O164: PE229 | P164: 229 | Q164: RTIA | R164: 3 | S164: 202526 | AD164: South African Local Government Association | BY164: South African Local Government Association | CK164: 0
C165: Transport | D165: Road Traffic Management Corporation | E165: Road Traffic Management Corporation | F165: Luyolo Ntlangula | G165: (012) 315 5571 | H165: Luyolo.Ntlangula@treasury.gov.za | I165: Samson Mlambo | J165: 0 | K165: Samson.Mlambo@treasury.gov.za | L165: 1 | M165: 1 | N165: 3A | O165: PE104 | P165: 104 | Q165: RTMC | R165: 3 | S165: 202526 | AD165: South African Maritime Safety Authority | BY165: South African Maritime Safety Authority | CK165: 0
C166: Sport, Arts and Culture | D166: Robben Island Museum | E166: Robben Island Museum | F166: Judy Naidoo | G166: (012) 315 5269 | H166: Judy.Naidoo@treasury.gov.za | I166: Vuyo Ngqukumba | J166: (012) 315 5760 | K166: Vuyo.Ngqukumba@treasury.gov.za | L166: 1 | M166: 3 | N166: 3A | O166: PE200 | P166: 200 | Q166: RobbenM | R166: 3 | S166: 202526 | AD166: South African National Accreditation System | BY166: South African National Accreditation System | CK166: 0
C167: Trade, Industry and Competition | D167: South African Bureau of Standards | E167: SA Bureau of Standards | F167: Isaac Kurasha | G167: (012) 315 5213 | H167: Isaac.Kurasha@treasury.gov.za | I167: Nymrot Sholoko | J167: 0 | K167: Nymrot.Sholoko@treasury.gov.za | L167: 1 | M167: 1 | N167: 3B | O167: PE108 | P167: 108 | Q167: SABS | R167: 3 | S167: 202526 | AD167: South African National Biodiversity Institute | BY167: South African National Biodiversity Institute | CK167: 0
C168: Sport, Arts and Culture | D168: South African Institute for Drug-Free Sport | E168: SA Institute for Drug-free Sport | F168: Judy Naidoo | G168: (012) 315 5269 | H168: Judy.Naidoo@treasury.gov.za | I168: Vuyo Ngqukumba | J168: (012) 315 5760 | K168: Vuyo.Ngqukumba@treasury.gov.za | L168: 1 | M168: 1 | N168: 3A | O168: PE112 | P168: 112 | Q168: SAIDS | R168: 3 | S168: 202526 | AD168: South African National Energy Development Institute | BY168: South African National Energy Development Institute | CK168: 0
C169: Health | D169: South African Medical Research Council | E169: SA Medical Research Council | F169: Refiloe Thokoa | G169: (012) 395 6559 | H169: Refiloe.Thokoa@treasury.gov.za | I169: Mpho Ntshole | J169: 0 | K169: Mpho.Ntshole@treasury.gov.za | L169: 1 | M169: 1 | N169: 3A | O169: PE116 | P169: 116 | Q169: SAMRC | R169: 1 | S169: 202526 | AD169: South African National Parks | BY169: South African National Parks | CK169: 0
C170: Transport | D170: South African National Roads Agency | E170: SA National Roads Agency | F170: Luyolo Ntlangula | G170: (012) 315 5571 | H170: Luyolo.Ntlangula@treasury.gov.za | I170: Samson Mlambo | J170: 0 | K170: Samson.Mlambo@treasury.gov.za | L170: 1 | M170: 1 | N170: 3A | O170: PE121 | P170: 121 | Q170: SANRAL | R170: 3 | S170: 202526 | AD170: South African National Space Agency | BY170: South African National Space Agency | CK170: 0
C171: Higher Education and Training | D171: Safety and Security Education and Training Authority | E171: Safety and Security Education and Training Authority | F171: Spencer Janari | G171: (012) 315 5436 | H171: Spencer.Janari@treasury.gov.za | I171: Lionel Botsane | J171: (012) 315 5749 | K171: Lionel.Botsane@treasury.gov.za | L171: 2 | M171: 3 | N171: 3A | O171: PE201 | P171: 201 | Q171: SASSETA | R171: 3 | S171: 202526 | AD171: South African Nuclear Energy Corporation Limited | BY171: South African Nuclear Energy Corporation Limited | CK171: 0
C172: National Treasury | D172: South African Special Risks Insurance Association | E172: Sasria Limited | F172: Mokgatla Tema | G172: (012) 315 5948 | H172: Mokgatla.Tema@treasury.gov.za | I172: Patrick Mbedzi | J172: (012) 315 5912 | K172: Patrick.Mbedzi@treasury.gov.za | L172: 3 | M172: 3 | N172: 3B | O172: PE128 | P172: 128 | Q172: SASRIA | R172: 3 | S172: 202526 | AD172: South African Qualifications Authority | BY172: South African Qualifications Authority | CK172: 0
C173: Water and Sanitation | D173: Sedibeng Water Board | E173: Sedibeng Water | F173: Iqbal Mahomed Alli | G173: (012) 315 5809 | H173: Iqbal.Mahomedalli@treasury.gov.za | I173: Mntazi Msiza | J173: (012) 315 5876 | K173: Mntazi.Msiza@treasury.gov.za | L173: 1 | M173: 3 | N173: 3B | O173: PE202 | P173: 202 | Q173: Sedibeng | R173: 3 | S173: 202526 | AD173: South African Revenue Service | BY173: South African Revenue Service | CK173: 0
C174: Communications and Digital Technologies | D174: Sentech (Pty) Ltd | E174: Sentech Limited | F174: Keitumetse Motshegwe | G174: (012) 395 6750 | H174: Keitumetse.Motshegwe@treasury.gov.za | I174: Mpho Ntshole | J174: 0 | K174: Mpho.Ntshole@treasury.gov.za | L174: 1 | M174: 1 | N174: 3B | O174: PE132 | P174: 132 | Q174: SENTECH | R174: 3 | S174: 202526 | AD174: South African Social Security Agency | BY174: South African Social Security Agency | CK174: 0
C175: Higher Education and Training | D175: Services Sector Education and Training Authority | E175: Services Sector Education and Training Authority | F175: Spencer Janari | G175: (012) 315 5436 | H175: Spencer.Janari@treasury.gov.za | I175: Lionel Botsane | J175: (012) 315 5749 | K175: Lionel.Botsane@treasury.gov.za | L175: 2 | M175: 3 | N175: 3A | O175: PE203 | P175: 203 | Q175: SSETA | R175: 3 | S175: 202526 | AD175: South African Tourism | BY175: South African Tourism | CK175: 0
C176: Small Business Development | D176: Small Enterprise Development Agency | E176: Small Enterprise Development Agency | F176: Bothwell Deka | G176: (012) 395 6791 | H176: Bothwell.Deka@treasury.gov.za | I176: Jabulane Mashele | J176: (012) 395 6560 | K176: Jabulane.Mashele@treasury.gov.za | L176: 3 | M176: 1 | N176: 3A | O176: PE131 | P176: 131 | Q176: SEDA | R176: 3 | S176: 202526 | AD176: South African Weather Service | BY176: South African Weather Service | CK176: 0
C177: Trade, Industry and Competition | D177: Small Enterprise Finance Agency | E177: Small Enterprise Finance Agency | F177: Isaac Kurasha | G177: (012) 315 5213 | H177: Isaac.Kurasha@treasury.gov.za | I177: Nymrot Sholoko | J177: 0 | K177: Nymrot.Sholoko@treasury.gov.za | L177: 3 | M177: 3 | N177: 3B | O177: PE238 | P177: 238 | Q177: SEFA | R177: 3 | S177: 202526 | AD177: Special Investigating Unit | BY177: Special Investigating Unit | CK177: 0
C178: Public Enterprises | D178: South African Airways (Pty) Limited | E178: South African Airways (Pty) Limited | F178: Isaac Kurasha | G178: (012) 315 5213 | H178: Isaac.Kurasha@treasury.gov.za | I178: Mntazi Msiza | J178: (012) 315 5876 | K178: Mntazi.Msiza@treasury.gov.za | L178: 1 | M178: 3 | N178: 2 | O178: PE163 | P178: 163 | Q178: SAA | R178: 3 | S178: 202526 | AD178: State Diamond Trader | BY178: State Diamond Trader | CK178: 0
C179: Communications and Digital Technologies | D179: South African Broadcasting Corporation Ltd | E179: South African Broadcasting Corporation Limited | F179: Keitumetse Motshegwe | G179: (012) 395 6750 | H179: Keitumetse.Motshegwe@treasury.gov.za | I179: Mpho Ntshole | J179: 0 | K179: Mpho.Ntshole@treasury.gov.za | L179: 1 | M179: 3 | N179: 2 | O179: PE107 | P179: 107 | Q179: SABC | R179: 3 | S179: 202526 | AD179: State Information Technology Agency | BY179: State Information Technology Agency | CK179: 0
C180: Transport | D180: South African Civil Aviation Authority | E180: South African Civil Aviation Authority | F180: Luyolo Ntlangula | G180: (012) 315 5571 | H180: Luyolo.Ntlangula@treasury.gov.za | I180: Samson Mlambo | J180: 0 | K180: Samson.Mlambo@treasury.gov.za | L180: 1 | M180: 1 | N180: 3A | O180: PE13 | P180: 13 | Q180: CAA | R180: 1 | S180: 202526 | AD180: Takeover Regulation Panel | BY180: Takeover Regulation Panel | CK180: 0
C181: Basic Education | D181: South African Council for Educators | E181: South African Council for Educators | F181: Spencer Janari | G181: (012) 315 5436 | H181: Spencer.Janari@treasury.gov.za | I181: Lionel Botsane | J181: (012) 315 5749 | K181: Lionel.Botsane@treasury.gov.za | L181: 1 | M181: 1 | N181: 3A | O181: PE109 | P181: 109 | Q181: SACE | R181: 3 | S181: 202526 | AD181: Technology Innovation Agency | BY181: Technology Innovation Agency | CK181: 0
C182: Mineral Resources and Energy | D182: South African Diamond and Precious Metals Regulator | E182: South African Diamond and Precious Metals Regulator | F182: Nomagugu Madikane | G182: (012) 315 5312 | H182: Nomagugu.Madikane@treasury.gov.za | I182: Mpho Ntshole | J182: 0 | K182: Mpho.Ntshole@treasury.gov.za | L182: 1 | M182: 1 | N182: 3A | O182: PE105 | P182: 105 | Q182: SADPMR | R182: 3 | S182: 202526 | AD182: The Commission for the Promotion and Protection of the Rights of Cultural, Religious and Linguistic Communities | BY182: The Commission for the Promotion and Protection of the Rights of Cultural, Religious and Linguistic Communities | CK182: 0
C183: Public Enterprises | D183: South African Express (Pty) Limited | E183: South African Express (Pty) Limited | F183: Isaac Kurasha | G183: (012) 315 5213 | H183: Isaac.Kurasha@treasury.gov.za | I183: Mntazi Msiza | J183: (012) 315 5876 | K183: Mntazi.Msiza@treasury.gov.za | L183: 1 | M183: 3 | N183: 2 | O183: PE160 | P183: 160 | Q183: SAX | R183: 3 | S183: 202526 | AD183: The Commission on Gender Equality | BY183: The Commission on Gender Equality | CK183: 0
C184: Public Enterprises | D184: South African Forestry Company Limited | E184: South African Forestry Company Limited | F184: Isaac Kurasha | G184: (012) 315 5213 | H184: Isaac.Kurasha@treasury.gov.za | I184: Mntazi Msiza | J184: (012) 315 5876 | K184: Mntazi.Msiza@treasury.gov.za | L184: 1 | M184: 3 | N184: 2 | O184: PE110 | P184: 110 | Q184: SAFCOL | R184: 3 | S184: 202526 | AD184: The Co-operative Banks Development Agency | BY184: The Co-operative Banks Development Agency | CK184: 0
C185: Health | D185: South African Health Products Regulatory Authority | E185: South African Health Products Regulatory Authority | F185: Refiloe Thokoa | G185: (012) 395 6559 | H185: Refiloe.Thokoa@treasury.gov.za | I185: Mpho Ntshole | J185: 0 | K185: Mpho.Ntshole@treasury.gov.za | L185: 1 | M185: 1 | N185: 3A | O185: PE247 | P185: 247 | Q185: SAHPRA | R185: 3 | S185: 202526 | AD185: The Financial and Fiscal Commission | BY185: The Financial and Fiscal Commission | CK185: 0
C186: Sport, Arts and Culture | D186: South African Heritage Resources Agency | E186: South African Heritage Resources Agency | F186: Judy Naidoo | G186: (012) 315 5269 | H186: Judy.Naidoo@treasury.gov.za | I186: Vuyo Ngqukumba | J186: (012) 315 5760 | K186: Vuyo.Ngqukumba@treasury.gov.za | L186: 1 | M186: 1 | N186: 3A | O186: PE111 | P186: 111 | Q186: SAHRA | R186: 3 | S186: 202526 | AD186: The Independent Communications Authority of South Africa | BY186: The Independent Communications Authority of South Africa | CK186: 0
C187: Sport, Arts and Culture | D187: South African Library for the Blind | E187: South African Library for the Blind | F187: Judy Naidoo | G187: (012) 315 5269 | H187: Judy.Naidoo@treasury.gov.za | I187: Vuyo Ngqukumba | J187: (012) 315 5760 | K187: Vuyo.Ngqukumba@treasury.gov.za | L187: 1 | M187: 3 | N187: 3A | O187: PE179 | P187: 179 | Q187: SALB | R187: 3 | S187: 202526 | AD187: The Independent Electoral Commission | BY187: The Independent Electoral Commission | CK187: 0
C188: Cooperative Governance | D188: South African Local Government Association | E188: South African Local Government Association | F188: Portia Thebe | G188: (012) 315 5855 | H188: Portia.Thebe@treasury.gov.za | I188: Mntazi Msiza | J188: (012) 315 5876 | K188: Mntazi.Msiza@treasury.gov.za | L188: 1 | M188: 1 | N188: 3A | O188: PE113 | P188: 113 | Q188: SALGA | R188: 3 | S188: 202526 | AD188: The Municipal Demarcation Board | BY188: The Municipal Demarcation Board | CK188: 0
C189: Transport | D189: South African Maritime Safety Authority | E189: South African Maritime Safety Authority | F189: Luyolo Ntlangula | G189: (012) 315 5571 | H189: Luyolo.Ntlangula@treasury.gov.za | I189: Samson Mlambo | J189: 0 | K189: Samson.Mlambo@treasury.gov.za | L189: 1 | M189: 1 | N189: 3A | O189: PE117 | P189: 117 | Q189: SAMSA | R189: 3 | S189: 202526 | AD189: The National Radioactive Waste Disposal Institute | BY189: The National Radioactive Waste Disposal Institute | CK189: 0
C190: Trade, Industry and Competition | D190: South African National Accreditation System | E190: South African National Accreditation System | F190: Isaac Kurasha | G190: (012) 315 5213 | H190: Isaac.Kurasha@treasury.gov.za | I190: Nymrot Sholoko | J190: 0 | K190: Nymrot.Sholoko@treasury.gov.za | L190: 1 | M190: 1 | N190: 3A | O190: PE119 | P190: 119 | Q190: SANAS | R190: 3 | S190: 202526 | AD190: The National Skills Fund | BY190: The National Skills Fund | CK190: 0
C191: Forestry, Fisheries and the Environment | D191: South African National Biodiversity Institute | E191: South African National Biodiversity Institute | F191: Humbelani Ramuedzisi | G191: (012) 315 5585 | H191: Humbelani.Ramuedzisi@treasury.gov.za | I191: Nymrot Sholoko | J191: 0 | K191: Nymrot.Sholoko@treasury.gov.za | L191: 1 | M191: 1 | N191: 3A | O191: PE120 | P191: 120 | Q191: SANBI | R191: 3 | S191: 202526 | AD191: The Pan South African Language Board | BY191: The Pan South African Language Board | CK191: 0
C192: Mineral Resources and Energy | D192: South African National Energy Development Institute | E192: South African National Energy Development Institute | F192: Nomagugu Madikane | G192: (012) 315 5312 | H192: Nomagugu.Madikane@treasury.gov.za | I192: Mpho Ntshole | J192: 0 | K192: Mpho.Ntshole@treasury.gov.za | L192: 1 | M192: 1 | N192: 3B | O192: PE155 | P192: 155 | Q192: SANEDI | R192: 3 | S192: 202526 | AD192: The Playhouse Company | BY192: The Playhouse Company | CK192: 1
C193: Forestry, Fisheries and the Environment | D193: South African National Parks | E193: South African National Parks | F193: Humbelani Ramuedzisi | G193: (012) 315 5585 | H193: Humbelani.Ramuedzisi@treasury.gov.za | I193: Nymrot Sholoko | J193: 0 | K193: Nymrot.Sholoko@treasury.gov.za | L193: 1 | M193: 1 | N193: 3A | O193: PE118 | P193: 118 | Q193: SANPARKS | R193: 3 | S193: 202526 | AD193: The Public Protector of South Africa | BY193: The Public Protector of South Africa | CK193: 1
C194: Science and Innovation | D194: South African National Space Agency | E194: South African National Space Agency | F194: Humbelani Ramuedzisi | G194: (012) 315 5585 | H194: Humbelani.Ramuedzisi@treasury.gov.za | I194: Patrick Mbedzi | J194: (012) 315 5912 | K194: Patrick.Mbedzi@treasury.gov.za | L194: 1 | M194: 1 | N194: 3A | O194: PE233 | P194: 233 | Q194: SANSA | R194: 3 | S194: 202526 | AD194: The Social Housing Regulatory Authority | BY194: The Social Housing Regulatory Authority | CK194: 0
C195: Mineral Resources and Energy | D195: South African Nuclear Energy Corporation Limited | E195: South African Nuclear Energy Corporation Limited | F195: Nomagugu Madikane | G195: (012) 315 5312 | H195: Nomagugu.Madikane@treasury.gov.za | I195: Mpho Ntshole | J195: 0 | K195: Mpho.Ntshole@treasury.gov.za | L195: 1 | M195: 1 | N195: 2 | O195: PE73 | P195: 73 | Q195: NECSA | R195: 1 | S195: 202526 | AD195: The South African Human Rights Commission | BY195: The South African Human Rights Commission | CK195: 0
C196: Communications and Digital Technologies | D196: South African Post Office SOC Ltd | E196: South African Post Office Limited | F196: Keitumetse Motshegwe | G196: (012) 395 6750 | H196: Keitumetse.Motshegwe@treasury.gov.za | I196: Mpho Ntshole | J196: 0 | K196: Mpho.Ntshole@treasury.gov.za | L196: 1 | M196: 3 | N196: 2 | O196: PE122 | P196: 122 | Q196: SAPO | R196: 3 | S196: 202526 | AD196: The South African State Theatre | BY196: The South African State Theatre | CK196: 0
C197: Higher Education and Training | D197: South African Qualifications Authority | E197: South African Qualifications Authority | F197: Spencer Janari | G197: (012) 315 5436 | H197: Spencer.Janari@treasury.gov.za | I197: Lionel Botsane | J197: (012) 315 5749 | K197: Lionel.Botsane@treasury.gov.za | L197: 1 | M197: 1 | N197: 3A | O197: PE123 | P197: 123 | Q197: SAQA | R197: 3 | S197: 202526 | AD197: The Water Services Trading Entity | BY197: The Water Services Trading Entity | CK197: 0
C198: National Treasury | D198: South African Revenue Service | E198: South African Revenue Service | F198: Mokgatla Tema | G198: (012) 315 5948 | H198: Mokgatla.Tema@treasury.gov.za | I198: Patrick Mbedzi | J198: (012) 315 5912 | K198: Patrick.Mbedzi@treasury.gov.za | L198: 1 | M198: 1 | N198: 3A | O198: PE126 | P198: 126 | Q198: SARS | R198: 3 | S198: 202526 | AD198: Trans-Caledon Tunnel Authority | BY198: Trans-Caledon Tunnel Authority | CK198: 0
C199: Social Development | D199: South African Social Security Agency | E199: South African Social Security Agency | F199: Lindi Mzankomo | G199: (012) 315 5256 | H199: Lindi.Mzankomo@treasury.gov.za | I199: Lionel Botsane | J199: (012) 315 5749 | K199: Lionel.Botsane@treasury.gov.za | L199: 5 | M199: 1 | N199: 3A | O199: PE129 | P199: 129 | Q199: SASSA | R199: 3 | S199: 202526 | AD199: Transport Education and Training Authority | BY199: Transport Education and Training Authority | CK199: 0
C200: Tourism | D200: South African Tourism | E200: South African Tourism | F200: Humbelani Ramuedzisi | G200: (012) 315 5585 | H200: Humbelani.Ramuedzisi@treasury.gov.za | I200: Jabulane Mashele | J200: (012) 395 6560 | K200: Jabulane.Mashele@treasury.gov.za | L200: 1 | M200: 1 | N200: 3A | O200: PE106 | P200: 106 | Q200: SA TOUR | R200: 3 | S200: 202526 | AD200: uMalusi Council for Quality Assurance in General and Further Education and Training | BY200: uMalusi Council for Quality Assurance in General and Further Education and Training | CK200: 0
C201: Forestry, Fisheries and the Environment | D201: South African Weather Service | E201: South African Weather Service | F201: Humbelani Ramuedzisi | G201: (012) 315 5585 | H201: Humbelani.Ramuedzisi@treasury.gov.za | I201: Nymrot Sholoko | J201: 0 | K201: Nymrot.Sholoko@treasury.gov.za | L201: 1 | M201: 1 | N201: 3A | O201: PE130 | P201: 130 | Q201: SAWS | R201: 3 | S201: 202526 | AD201: Umgeni Water | BY201: Umgeni Water | CK201: 0
C202: Justice and Constitutional Development | D202: Special Investigating Unit | E202: Special Investigating Unit | F202: Werner Krause | G202: (012) 315 5211 | H202: Werner.Krause@treasury.gov.za | I202: Nymrot Sholoko | J202: 0 | K202: Nymrot.Sholoko@treasury.gov.za | L202: 1 | M202: 1 | N202: 3A | O202: PE136 | P202: 136 | Q202: SIU | R202: 1 | S202: 202526 | AD202: uMsunduzi Museum | BY202: uMsunduzi Museum | CK202: 0
C203: Mineral Resources and Energy | D203: State Diamond Trader | E203: State Diamond Trader | F203: Nomagugu Madikane | G203: (012) 315 5312 | H203: Nomagugu.Madikane@treasury.gov.za | I203: Mpho Ntshole | J203: 0 | K203: Mpho.Ntshole@treasury.gov.za | L203: 1 | M203: 1 | N203: 3B | O203: PE23 | P203: 23 | Q203: SDT | R203: 3 | S203: 202526 | AD203: Universal Service and Access Agency of South Africa | BY203: Universal Service and Access Agency of South Africa | CK203: 0
C204: Communications and Digital Technologies | D204: State Information Technology Agency (Pty) Ltd | E204: State Information Technology Agency | F204: Keitumetse Motshegwe | G204: (012) 395 6750 | H204: Keitumetse.Motshegwe@treasury.gov.za | I204: Mpho Ntshole | J204: 0 | K204: Mpho.Ntshole@treasury.gov.za | L204: 1 | M204: 1 | N204: 3A | O204: PE135 | P204: 135 | Q204: SITA | R204: 1 | S204: 202526 | AD204: Universal Service and Access Fund | BY204: Universal Service and Access Fund | CK204: 0
C205: Trade, Industry and Competition | D205: Takeover Regulation Panel | E205: Takeover Regulation Panel | F205: Isaac Kurasha | G205: (012) 315 5213 | H205: Isaac.Kurasha@treasury.gov.za | I205: Nymrot Sholoko | J205: 0 | K205: Nymrot.Sholoko@treasury.gov.za | L205: 1 | M205: 1 | N205: 3A | O205: PE254 | P205: 254 | Q205: TRP | R205: 3 | S205: 202526 | AD205: Vaal-Orange Catchment Management Agency | BY205: Vaal-Orange Catchment Management Agency | CK205: 0
C206: Science and Innovation | D206: Technology Innovation Agency | E206: Technology Innovation Agency | F206: Humbelani Ramuedzisi | G206: (012) 315 5585 | H206: Humbelani.Ramuedzisi@treasury.gov.za | I206: Patrick Mbedzi | J206: (012) 315 5912 | K206: Patrick.Mbedzi@treasury.gov.za | L206: 1 | M206: 1 | N206: 3A | O206: PE234 | P206: 234 | Q206: TIA | R206: 3 | S206: 202526 | AD206: War Museum of the Boer Republics | BY206: War Museum of the Boer Republics | CK206: 1
C207: Traditional Affairs | D207: The Commission for the Promotion and Protection of the Rights of Cultural, Religious and Linguistic Communities | E207: The Commission for the Promotion and Protection of the Rights of Cultural, Religious and Linguistic Communities | F207: Portia Thebe | G207: (012) 315 5855 | H207: Portia.Thebe@treasury.gov.za | I207: Mntazi Msiza | J207: (012) 315 5876 | K207: Mntazi.Msiza@treasury.gov.za | L207: 1 | M207: 1 | N207: 1 | O207: PE28 | P207: 28 | Q207: CRCCOM | R207: 3 | S207: 202526 | AD207: Water Research Commission | BY207: Water Research Commission | CK207: 0
C208: Women, Youth and Persons with Disabilities | D208: Commission for Gender Equality | E208: The Commission on Gender Equality | F208: Lindi Mzankomo | G208: (012) 315 5256 | H208: Lindi.Mzankomo@treasury.gov.za | I208: Samson Mlambo | J208: 0 | K208: Samson.Mlambo@treasury.gov.za | L208: 1 | M208: 1 | N208: 1 | O208: PE19 | P208: 19 | Q208: CGE | R208: 3 | S208: 202526 | AD208: Wholesale and Retail Sector Education and Training Authority | BY208: Wholesale and Retail Sector Education and Training Authority | CK208: 0
C209: National Treasury | D209: Cooperatives Banks Development Agency | E209: The Co-operative Banks Development Agency | F209: Mokgatla Tema | G209: (012) 315 5948 | H209: Mokgatla.Tema@treasury.gov.za | I209: Patrick Mbedzi | J209: (012) 315 5912 | K209: Patrick.Mbedzi@treasury.gov.za | L209: 1 | M209: 1 | N209: 3A | O209: PE157 | P209: 157 | Q209: CBDA | R209: 3 | S209: 202526 | AD209: William Humphreys Art Gallery | BY209: William Humphreys Art Gallery | CK209: 0
C210: National Treasury | D210: Financial and Fiscal Commission | E210: The Financial and Fiscal Commission | F210: Mokgatla Tema | G210: (012) 315 5948 | H210: Mokgatla.Tema@treasury.gov.za | I210: Patrick Mbedzi | J210: (012) 315 5912 | K210: Patrick.Mbedzi@treasury.gov.za | L210: 1 | M210: 1 | N210: 1 | O210: PE38 | P210: 38 | Q210: FFC | R210: 3 | S210: 202526 | CK210: 0
... 31 more rows

Sheet Information
A13: Name of Entity | C13: Name of Compiling Officer
A14: Culture, Arts, Tourism, Hospitality and Sports Education and Training Authority
A15: Department | C15: Telephone Number of Compiling Officer
A16: =Settings!C2 -> Higher Education and Training
A17: File should be submitted to... | C17: E-Mail Address of Compiling Officer
A18: datafilepe@treasury.gov.za
A20: Mandate of the entity:
A24: Budget Examiner: | C24: Technical Assistant:
A25: =Settings!F2 -> Spencer Janari | C25: =Settings!I2 -> Lionel Botsane
A26: =Settings!G2 -> (012) 315 5436 | C26: =Settings!J2 -> (012) 315 5749
A27: =Settings!H2 -> Spencer.Janari@treasury.gov.za | C27: =Settings!K2 -> Lionel.Botsane@treasury.gov.za

Sheet Technical Guidelines
F4: Completing the public entities' budget template
F6: This spread sheet is intended to assist the data compilers when completing the budget template to provide background on each sheet to be completed and some relevant notes on items to consider when preparing data for the budget. Any changes effected on the template will be explained in the guidelines below:
F8: Changes effected on the template
F9: Important general notes to consider
F10: Admin and Objectives/Activities 2 to 15 contain the expenditure part of the Statement of Financial Performance as well as the Performance Indicators relating to each objective. Cells Q11-Q25 on all these Objectives/Activities contain a drop down to decide whether the performance indicators should be included in the Pub Table or not. Cells F45 - F97 contain a detailed goods and services list. The "please specify" rows have been removed from the expenditure sheets. Instead there is a list of goods and services items the entity can make use of to capture their expenditure. In the event that the entity is of the view that the provided items do not cater fully to their expenditure type, they should contact the technical assistant for further guidance".
F11: Please note there's conditional formatting to monitor the completion of the outer year. If the outer year is not fully completed the total will be highlighted in Orange. The compiler is advised to fully complete the outer year.
F13: Sheets: Revenue, Objectives, Cash Flow, Financial Position and infrastructure are prepopulated with data submitted in the previous budget process.
F15: The Hide and Unhide Rows buttons are to be used to hide unused rows or unhide rows.
F17: The Do's and Dont's
F19: ONLY the darker blue-shaded areas are to be completed.
F20: All the white areas are FORMULA-DRIVEN and should NEVER be overwritten.
F21: The light blue areas are of DROP DOWN LISTS and should be used to select the relevant items from the list. Entities should REFRAIN from copying data elsewhere and pasting it here.
F22: Column G in Financial Position, Cash Flow and Revenue sheets contain numbers that are of hyperlinks that navigate one to the definitions sheet for explanation of the specific item.
F24: Information to understand about logistics of the template
F25: All sheets should contain information from the audited history years, the budget information for the current year and the budget projections for the MTEF years.
F26: The first year of history numbers that are pre-populated (e.g. for Revenue and Financial Position etc.) will be locked and no changes will be allowed unless there has been restatement of numbers.
F27: The current year data (2024/25) and MTEF years' data may be revised where applicable and the outer year should be completed with data i.e. 2027/28.
F29: Analysis issues possible for queries if not attended to
F31: PFMA schedule 3A entities are NOT allowed to budget for deficit unless a prior approval has been granted to show deficits. This will be queried if approval was not granted.
F32: Accumulated surplus/deficit line in the current year should reflect the increment or depletion of the balance by the surplus or deficit made by the entity in the Income Statement.
F33: The Cash and cash equivalents balance in the financial position should also reflect the movements of increases or decreases in the cash and cash equivalents shown on the Cash Flow Statement.
F34: Projections of interest revenue and interest expenses should be in line with the trends shown on projections for Investments/Cash and cash equivalents and Borrowings respectively.
F35: All highlighted trends on the TrendsAnalysis sheet should be explained in column O of the same sheet, else a query will be raised.
F36: All highlighted trends on the CashFlowDiff sheet should be explained in column O of the same sheet, else a query will be raised.
F37: Chronological order of sheets on the template
F39: The Blue Tabs - reference sheets
F40: Information sheet
F42: The purpose of this sheet is for the compiler to provide National Treasury with their contact details and to verify that the entity name is correct. The contact details of compilers are used for ease of reference when there are queries in the database. Also contained on this sheet are the contact details of the Treasury's Budget Examiner who should be contacted with regards to budget allocation issues and the Technical Assistant who should be contacted with regards to complications on the template.
F44: Technical Guidelines
F46: The purpose of this sheet is to assist the data compiler with the background of each sheet to be completed and to provide some relevant notes on things to consider in preparing data for the template. This sheet should be read carefully for ease of completion of the template.
F48: Economic Definitions
F50: This sheet contains all definitions of the economic classification found on the template. The definitions are hyperlinked from the sheets being completed. These definitions assist in determining how to correctly classify each financial item .
F52: The Purple Tabs - financial data sheets
F54: Note that the Statement of Financial Performance is broken down into different sheets. The sheets from Admin to sheet 15 are what is called objectives of the entity and this is where the expenses part of the Statement of Financial Performance sheet is reflected. Performance Indicators tables are also included at the top of each sheet. Details of the split are detailed below:
F56: Revenue
F58: The Revenue sheet is the normal income part of the Statement of financial perfomance and has been separated from the expenditure part. Note the checks at the bottom of the sheet that check the surplus/deficit line of what the total revenue less the total expenditure will be against what is in the Annual Report. The blue shaded areas are still the areas to be completed and not the white ones.
F60: Admin
F61: Admin sheet is what is also called objective 1 of the entity. This sheet should be used to capture only the information relating to the Administration Objective of the entity. The Administration objective should include the following: Entity Management which includes the salary, allowances and other support costs of the Board and the CEO and the management of the CEO’s office and the Board. Corporate Services that include all costs related to staff in the Human Resources, Legal Services, Communications, Information Technology and Other support services (based on the entity’s decision). Finance Administration which are all costs related to staff in Finance including the CFO and the management of the Office of the Chief Financial Officer. Internal Audit recognising that the reporting channel for the Head of Internal Audit is not through the CFO but directly to the CEO. Office Accommodation which includes activities and costs relating to the provision of office accommodation functions for the entity. Where office accommodation functions relating to other specific objectives of the entity can be identified, they should be assigned to the relevant objective. Residential accommodation that includes activities and costs relating to the provision of housing to employees of the entity. (Note: This does not include the residential benefits of the Accounting Authority). Source: Guidelines on Budget Programmes (National Treasury. 2010.) Content has been amended to suit public entities
F63: The first table to complete on this sheet is the Performance Indicators table. The performance indicators to be completed on this table are only those that relate to the Administration Objective of the entity. The entity should select whether they would like the indicators to be included in the Pub Table or not. The second table that follows is the detail of the expenditure that relates to the Admin objective broken down into economic classification. The entity should then reflect all expenses relating to the Admin objective and the total for all other objectives should balance to the total expenditure of the objective.
F64: New performance indicators to the APPs and changes to old performance indicators must be communicated with the budget examiners before they are included for the purposes of this template.
F65: Objectives 2, 3, 4 .... 15
F66: Objective Sheets from sheet 2 to 15 are exactly the same as the Admin sheet. These should contain the objectives/activities of the entity on rows 37 of each objective, followed by the Performance Indicators. Relevant balances should be made in each i.e row 142.
F68: Cash Flow
F69: The Cash Flow Sheet reflects the Direct Method of the cash flow. However, this method is more detailed than as shown on the Annual Report. The sheet will be prepopulated with available data and the entity should provide a breakdown of its operating cash flow activities and should balance to the numbers shown on the Annual Report by checking against the balances on row 11. The entity is required to provide this detail fully.
F71: Financial Position
F72: This sheet reflects the assets, liabilities and equity of the entity and the information should balance to the Annual Report in the historical numbers. The checks on row 108-109 should be used to ensure the balance.
F74: Related Party Revenue
F75: This sheet is to be used to reflect all related party revenue consisting of receipts from sales of goods and services EXCEPT transfer receipts from government institutions. This means that the entity must be doing business with the government institution and receiving payment for such goods and/or services. Transactions with municipalities have been excluded from this sheet because Local Government is not yet included in the government consolidated account. The compiler should use the drop down list to select the relevant categories in this sheet and should refrain from copying the data elsewhere and pasting it on the sheet.
F76: Please note that the Related Party Revenue sheet is meant to source cash figures. The reported figures should therefore correspond to the Sales by Market Establishment line on the Cash Flow sheet. If for example an entity shows a total of R500 000 for sales by market establishment on the cash flow sheet, the question that should be answered in order to complete this sheet is, how much of the R500 000 is received from other government units (except local government).
F77: On column H, the entity is required to indicate the exact transaction that took place resulting into the particular related party revenue. This should be done by selecting a relevant item from the drop down list provided. The question to ask here would be, what exactly did the entity sell to the other government unit that resulted in the receipt of this revenue? eg computer services.
F79: Personnel
F80: The personnel sheet should be used to record all costs pertaining to employees of an entity. The guidelines for estimating this sheet are in the main budget guideline. The entity is urged to read through the main guideline as it sets out what the overall budget seeks to address and all the main issues to be considered when compiling budgets over the MTEF. For expenditure on compensation, the total should add up to the total compensation on the ENE Summary. Finance officials together with HR officials should work together to complete this sheet. All blue shaded columns should be completed and the light blue drop down lists should be used to select the relevant items required.
F82: DEFINITIONS
F83: Approved Establishment refers to the number of employment positions approved by the Entity's Executive Authority.
F84: Funded Establishment refers to the number of employment positions for which provision is made in the budget.
F85: Permanent refers to employees with work contracts of unlimited duration.
F86: Temporary/Contract refers to employees who are employed for a fixed period of time (e.g. 6 months, 2 years, etc.)
F87: Guaranteed Package refers to the total of fixed and regular income/benefit items and employer contributions (if any) to Employee Benefit Funds (Retirement, Medical and Group Life). (i.e., Fixed Pay)
F88: Performance Bonus refers to the additional compensation paid to an employee for performance that has exceeded expectations. This is typically awarded after a performance appraisal and analysis of projects completed by the employee over a specific period of time. (i.e., Variable Pay)
F89: Other (components of remuneration) refers to the Total Cost to Company less Guaranteed Package less Performance Bonus. E.g. overtime payments (i.e., Variable Pay)
F90: STEPS TO BE FOLLOWED
F91: Column F (Category) - Select the relevant option (whether permanent or temporary/contract - as per definitions above) for a certain group of employees belonging to the salary level in Column G.
F92: Column G (Salary Level) - Select the relevant salary level starting with the lowest. DO NOT ADD OR DELETE ANY INFORMATION IN THIS COLUMN.
F93: Column I (Occupation) - Select the occupation which best describes the officials in the salary level that you have selected. The intention is to see the type of skills that the organisation has and not necessarily the functional job titles of individual employees. If none is relevant, then specify the relevant occupation by typing it in.
F94: Column J (Components of Remuneration) - Select the relevant component of remuneration, starting with the Guaranteed Package followed by the Performance Bonus and then Other (as per definitions above). DO NOT ADD OR DELETE ANY INFORMATION IN THIS COLUMN.
F95: Column K (Number of posts filled on funded establishment) - Include only the number of posts that were filled and funded on the approved establishment.
F96: Column L (Expenditure on posts filled on funded establishment) - Include the expenditure on the above-mentioned posts.
F97: Column M (Unit costs) - Unit costs of the above-mentioned posts. This column is formula driven.
F98: Column N (Number of posts on approved establishment) – This includes both filled and vacant posts and may or may not be funded. This is as approved by the Entity’s Executive Authority.
F99: Column O (Number of funded posts (establishment) – This is a projection from April 2023 to end of March 2024 and includes both filled and vacant posts which are funded.
F100: Column P (Number of posts filled on funded establishment) - This is a projection of posts that will be filled by the end of March 2024 on the funded establishment.
F101: Column Q (Expenditure on posts filled on funded establishment) - Expenditure on the above-mentioned posts.
F102: Column R (Unit costs) - Unit costs of the above-mentioned posts. This column is formula driven.
F103: Columns S to AA - Projections over the MTEF.
F105: Check line:
F106: All figures must be rounded to the nearest thousand and there should be no decimals. Ensure that the CHECKS row show a dash for each of the financial years. If not, look for errors in the captured data - there may be decimals in the figures or some other error.
F108: Expend Summary
F109: The Expenditure summary sheet is formula driven and contains all expenditures from all 15 objectives that the entity would have completed. This is where the entity can verify if its budget is allocated appropriately in the different objectives to sum the total budget allocated and also to check the status of its expenditure in total. All the red checks should balance and where they don't, reference should be made back to the individual objectives to check where the problem could be arising from.
F111: ENE Summary
F112: This sheet summarises all inputs from different sheets in preparation for publication. The first table is where the different objectives are summarised and the check on row 26 checks that the total objectives equals the total expenditure on row 51. The second table is the Statement of Financial Performance having combined the inputs in the Revenue sheet and those in the 15 objectives to complete the statement. The next two tables are of the summary of Cash flow statement and the Financial Position statement as have been completed on their respective sheets. The final table is that which shows the financial performance of the entity by means of ratios. This indicates well how the entity is performing over the years.
F114: Perform Info Pub
F116: The Performance Information Pub sheet is formula-driven and summarises all the performance indicators reflected on the different objectives. This sheet will only reflect those indicators that the entity chose to include when completing columns Q of each objective. This is usually the table that gets published on the ENE publication and reflects the final indicators of the entity.
F118: Personnel Pub
F119: This sheet is formula-driven and summarises the personnel information that is included in the Personnel sheet for publication.
F121: Personnel Trends
F122: Personnel trends with percentage increases and decreases above 10% for headcounts and above 8% increases and decreases for Unit costs must be explained in the trends explaination column (Column O) of the same sheet.
F124: Checks
F125: This sheet should be visited once all has been completed to check and verify that all checks built on the template have been balanced. It highlights any area where a check should have been balanced in a specific sheet and in a case where a check is not balanced, the compiler needs to re-visit the relevant sheet and make corrections to clear the errors. Should an entity submit the template with any of the checks unbalanced, a query will be raised. The entity is urged to attend to all checks in the template and ensure that there are no checks and all relevant sheets are balancing.
F126: Table in row 49 to 55 checks against incompleteness of the outer year. The compiler needs to re-visit the relevant sheets and make corrections to clear the checks where applicable.
F128: The Red Tabs - formula-driven sheets for analysis
F130: Trends Analysis
F131: Please note this sheet contains ONLY growth trends of the cash flow statement. The entity must pay attention on the highlighted percentages and provide explanations in column O. There is a legend that explains the different colours that will be highlighted once a certain concerning trend is reflected. A trend will be concerning if, for an example, a certain goods and services item is increasing or decreasing at a rate different from the average. The entities are urged to peruse this sheet carefully to monitor the trends in their budget submissions.
F133: Cash flow differences
F134: The sheet reflects differences between the figures in the current budget process and the ones in the previous year's budget process. There is a legend that explains the different colours that will be highlighted once a certain concerning trend is reflected. The reasons for changes should be provided in column O.
F136: The Green Tabs - additional financial information on Infrastructure and ODA
F138: Infrastructure
F139: This sheet is to be completed only by entities that are involved in infrastructure projects. The project name, description, stage, cost and all other required information should be provided to ensure completeness. The entity should select the type of project in the options provided in cell I2 to cell I4. The sheet is prepopulated with last years numbers.
F141: ODA
F142: For the purposes of completing the ODA sheet, ODA is only limited to grants (including donations) from international development partners to fund programmes/project or other initiatives of the public entity
F143: · Total Commitment (amount): Total funds committed by the partner (institution) to the programme/project denominated in the relevant currency per the allocation letter/notice of award/agreement with the partner (institution).
F144: · Payments: Payments made by the entity in Rands.
F145: · Receipts: Funds received by the entity from the partner (institution) in Rands.
F147: When done completing the budget template
F149: Go to the Sign-Off sheet.
F150: Click "create pdf sign off" button in cell E9, print out the sign off page, sign on the signature space, scan and email the document along with the budget planning baseline tool .
D335: Budget approved by the board.

Sheet Economic Definitions
F3: Note | H3: ITEM | I3: DEFINITIONS | J3: EXAMPLES
F4: 1 | H4: Tax receipts | I4: A tax receipt is defined as compulsory, unrequited revenue collected by an entity. Taxes are compulsory because the other party is required by statutory provision to pay taxes in certain circumstances and under certain conditions. Taxes are unrequited in the sense that government does not provide anything directly in return to the party making the tax payment. Not all compulsory, unrequited receipts are recorded as taxes. Excluded are; Fines, penalties and forfeits_ also compulsory, unrequited receipts, but are recorded separately from taxes. Fines, penalties and forfeits are distinguished from taxes by that they are as a result of a volation of a law or administrative rules, while taxes are an implementation of a law. Transfers received_ also unrequited receipts by government but not considered taxes. Taxes are distinguished from transfers received because taxes are compulsory and transfers received are voluntary. [Guidelines for implementing the New Economic Reporting Format] Social (security) contributions_ payments earmarked for unfunded social security schemes, e.g. UIF, that provide benefits other than retirement benefits. These are recorded separately from taxes. | J4: *Casino taxes *Motorvehicle licences tax *Liquor licences tax *Horse racing taxes
F6: 2 | H6: Sales of goods and services: non capital assets | I6: The category consists of all sales by public entities provided that the entity has produced the good or service. It is important to note that sales of capital assets are never included under this category, but under sales of capital assets. Thus, sales of capital assets are excluded from this category even if they have been produced by a public entity. Revenue from ownership of building and fixed structures - rentals - is included in this category. This is because revenue from ownership of buildings implies the provision of a service in the form of maintenance and repair. In contrast, revenue from ownership of land is more passive and is therefore not considered a sale. To note; Revenue from ownership of buildings must be distinguished from revenue from ownership of land and sub-soil assets; the latter is classified as rent of land, which is a separate revenue category. | J6: *Sale of goods and services produced by an entity *Sales: Scrap, Waste, Other goods
F8: 3 | H8: Sale of goods and services produced by an entity | I8: This category consists of sales by entities, provided that the entity produced the goods or services. | J8: *Administrative fees *Sales by market establishments *Other sales
F10: 4 | H10: Administrative fees | I10: This item consists of revenue collected for sales of regulatory or administrative services, and is sometimes referred to as license fees. In this category, government must exercise a regulatory or administrative function. For example, it may verify the competence of a licence holder. Classification provided for under this category includes licence or permits, registration fees and inspection fees (e.g. brands, and travel documents). Note: Regarding license fees, the government should be providing a service to the remitter of this fee, e.g. the use of government-owned land by hunters; otherwise the fee is classified as a tax on goods and services | J10: *Licences/Permits Fees *Registration *Request for information *Inspection fees
F12: 5 | H12: Sales by market establishments | I12: When a public entity sells goods or services at market related prices the transactions should be recorded here. Examples are rent from buildings and equipment charged at the prevailing market prices. Example; rental of produced assets are treated as sales of services and diamond sales are treated as sales of goods. Market prices are prices economically significant enough to influence supply and demand of a good or service. The easiest benchmark is the prevailing price in the private market. | J12: *RENTAL ON BUILDINGS *Rental machinery and equipment *Ticket sales *Research services *Advertising services
F14: 6 | H14: Other sales | I14: This item includes money received from the sale of all other goods and services produces or partially produced by an entity. To be part of this category, the fee charges must be below prices prevailing in the private market. User charges at below market prices are included for example hospital fees, as well as park and museum fees. Examples are rentals of buildings and machinery, as well as hospital, park and museum fees. Sales of seeds and livestock produced by public entities are considered other sales. Sales of items purchased from another economic unit and then resold should also be included under this item; an example would be a postcard sold by a museum. | J14: SERVICES RENDERED: *Health services *Exam certificates * Police service SALES OF GOODS: *Tender documents *Pharmaceutical *Water
F16: 7 | H16: Sales: Scrap, Waste, Other goods | I16: This item includes sales of all items that are not considered capital assets and not produced by entity e.g. used arms sold by the Department of Defence. | J16: *Sales: Scrap and waste *Selling arms and arms support systems
F18: 8 | H18: Transfers Received | I18: This item consists of all unrequited receipts voluntarily given by other parties. Thus, an entry should be made under this item when a public entity does not give a service or good directly in return for the transfer from the other party and the transfer is voluntary. | J18: Transfers Received This item consists of all unrequited receipts voluntarily given by other parties. Thus, an entry should be made under this item when a public entity does not give a service or good directly in return for the transfer from the other party and the transfer is voluntary. Included are; Grants (Not identified as grants in our format) which are voluntary transfers received by a government unit from either another government unit, foreign governments or an international organisation, Social contributions_ payments earmarked for social security agencies and Other transfers (not identified as other transfers in our format)_ gifts and donations from sources other than government units and international organisations. Excluded are; All payments made by government departments or other government units for services provided by the entity. These are sales of goods and services. E.g. if DTI commissions CSIR for some research project and pay for this, this should be rightly classified as Sales.
F20: 9 | H20: Other Government Units | I20: Money received from other governmental units either as a current or capital transfer. | J20: (Not identified as grants in our format) which are voluntary transfers received by a government unit from either another government unit, foreign governments or an international organisation.
F22: 10 | H22: National government units | I22: Money received from national departments either as a current or capital transfer. | J22: Voluntary transfers received by a government unit from either another government unit, foreign governments or an international organisation.
F24: 11 | H24: Departmental Transfers | J24: Voluntary transfers received by a government unit from either another government unit, foreign governments or an international organisation.
F26: 12 | H26: Other National Departments | J26: Voluntary transfers received by a government unit from either another government unit, foreign governments or an international organisation.
F28: 13 | H28: Departmental agencies and accounts | I28: Money received from departmental agencies either as a current or capital transfer.
F30: 14 | H30: Provincial department | I30: Money received from provincial government as a current or capital transfer.
F32: 15 | H32: Local Governments | I32: Money received from local governments (municipalities or municipal entities) either as a current or capital transfer.
F34: 16 | H34: Higher education institutions | I34: Current and capital transfers received from Higher Education Institutions, deemed to be established or declared as a Technicon or University under the Higher Education Act of 1997. | J34: *(Not identified as other transfers in our format)_ gifts and donations from sources other than government units and international organisations.
F36: 17 | H36: Foreign government and international organisations | I36: Capital and current transfers received from foreign governments. | J36: *(Not identified as grants in our format) which are voluntary transfers received by a government unit from either another government unit, foreign governments or an international organisation.
F38: 18 | H38: Local non-government donors | I38: Donations received from public corporations or private enterprises. | J38: *(Not identified as other transfers in our format)_gifts and donations from sources other than government units and international organisations.
F40: 19 | H40: Fines, penalties and forfeits | I40: This item consists of all compulsory receipts imposed by a court or quasi-judicial body. Out-of-court settlements are also included in this category. As with taxes, this item consists of unrequited, compulsory transactions. Thus, the recipient public entity does not provide anything in return for these receipts. | J40: *Consumer courts fines, courts fines, traffic fines, criminal offence plea&snt fine
F42: 20 | H42: Interest and rent on land | I42: This item consist of the income associated with ownership of interest-bearing financial instruments, such as bank deposits, loans extended to others, and bills and bonds issued by others. A dividend is a sum of money paid regularly (typically annually) by a company to its shareholders out of its profits (or reserves). Rent on land consists of economic rent, interest on capital invested for improvement of land, and reward for the risk taken by the landlord in investing his or her capital. | J42: *Land, Prospecting fees, retension fees, royalties, surface rental
F44: 21 | H44: Interest | I44: This item consist of the income associated with ownership of interest-bearing financial instruments, such as bank deposits, loans extended to others, and bills and bonds issued by others. | J44: *Bank deposits, loans extended to others, and bills and bonds issued by others.
F46: 22 | H46: Dividends | I46: A dividend is a distribution of money or property paid by a corporation out of the corporation's profits to shareholders. Government units are not payers of dividends as a rule. Exceptions may be public corporations. | J46: *Shares and other equity
F48: 23 | H48: Rent on land | I48: The item consists of the money received due to ownership of land. This item also includes all revenue due to ownership of sub-soil assets and other commercially exploitable naturally occurring assets such as virgin forests, game and fisheries. | J48: *Land, Prospecting fees, retension fees, royalties, surface rental
F50: 24 | H50: Unclassified revenue | I50: All revenue items that could not be classified above. Please make sure that the items are clearly specified, i.e. we will not accept "other" as a specification. This is so that we can then classify the revenue in one of the classes given.. Out-of-court settlements are also included in this category. As with taxes, this item consists of unrequited, compulsory transactions. Thus, the recipient public entity does not provide anything in return for these receipts. | J50: *All other revenue items that could not be classified above.
F52: 25 | H52: Tax benefit | I52: A tax benefit is an allowable deduction on a tax return intended to reduce a taxpayer's burden while typically supporting certain types of commercial activity. A tax benefit allows some type of adjustment benefiting a taxpayer's tax liability. | J52: *Tax deductions, credits, and exclusions are benefits that reduce the amount taxpayers owe annually to federal and state governments. Tax shelters are another form of tax benefit that can help to lower taxes through special investments.
F54: 26 | H54: Outside Shareholder's interest | I54: Outside shareholders have no links with the company but have a financial interest in its operating performance
F56: 27 | H56: Compensation of employees | I56: Compensation of employees includes remuneration in cash, including social contributions by employers. Specifically included are basic wages and salaries, overtime, remuneration for nightshift, cost of living allowances, transport, house allowances, bonuses.
F58: 28 | H58: Salaries and wages | I58: This item includes payments to employees, except social contributions. Social contributions are recorded separately. The item, salaries and wages, includes:Salaries or wages payable at regular weekly, monthly or other intervals. Remuneration to staff members employed on a contractual basis is included, provided that these staff members are paid at regular intervals and that they are listed on the government payroll. This also includes payments by results and piecework payments; enhanced payments or special allowances for working overtime, at nights, at weekends or other unusual hours; allowances for working away from home or in disagreeable or hazardous circumstances; and expatriation allowances for working abroad; Supplementary allowances payable regularly, such as housing allowances or allowances to cover the costs of travel to and from work. Salaries or wages payable to employees away from work for short periods, for example, on holiday; Ad hoc bonuses or other exceptional payments made, for example, under incentive schemes. Salaries and wages include the values of any social contributions, income taxes, etc., payable by the employee. This applies even if they are compulsory or withheld by the employer for administrative convenience or other reasons and paid directly to social insurance funds, tax authorities, etc., on behalf of the employee. For example, employees’ contributions to pension funds and medical aid are included in salaries and wages. The item, salaries and wages, does not include: Reimbursements of costs incurred by employees on tools, equipment, uniforms and other items that are needed to enable them to carry out their work. For example, uniforms provided to police officers are not compensation of employees, but use of goods and services. Uniform allowances are classified as use of goods and services if the employee is required to use the funds to purchase a uniform that will mainly be used at work; Relocation costs reimbursement _costs incurred by employees when they take up new jobs or are required by their employers to move their homes, for example, travel and moving expense; Payments for travel and subsistence while on government duty away from duty station. Per Diem and out-of-town allowances fall under this category; Purchases of services provided by people who are not government employees, for example, consultants, architects and occasional workers. The above four items should be classified under use of goods and services Social benefits to employees. These can be in the form of allowances made for accidental injury, severance and incapacity pay. Allowances to employees’ dependants are also considered social benefits. In most cases, payments falling under this category are made from a social insurance fund. Payments to employees or former employees that are not remuneration for work The above two items should be classified under transfers to households, social benefits This item includes payments to employees, except social contributions. Social contributions are recorded separately. The item, salaries and wages, includes: Salaries or wages payable at regular weekly, monthly or other intervals. Remuneration to staff members employed on a contractual basis is included, provided that these staff members are paid at regular intervals and that they are listed on the government payroll. This also includes payments by results and piecework payments; enhanced payments or special allowances for working overtime, at nights, at weekends or other unusual hours; allowances for working away from home or in disagreeable or hazardous circumstances; and expatriation allowances for working abroad; Supplementary allowances payable regularly, such as housing allowances or allowances to cover the costs of travel to and from work. Salaries or wages payable to employees away from work for short periods, for example, on holiday; Ad hoc bonuses or other exceptional payments made, for example, under incentive schemes. Salaries and wages include the values of any social contributions, income taxes, etc., payable by the employee. This applies even if they are compulsory or withheld by the employer for administrative convenience or other reasons and paid directly to social insurance funds, tax authorities, etc., on behalf of the employee. For example, employees’ contributions to pension funds and medical aid are included in salaries and wages. The item, salaries and wages, does not include: Reimbursements of costs incurred by employees on tools, equipment, uniforms and other items that are needed to enable them to carry out their work. For example, uniforms provided to police officers are not compensation of employees, but use of goods and services. Uniform allowances are classified as use of goods and services if the employee is required to use the funds to purchase a uniform that will mainly be used at work; Relocation costs reimbursement _costs incurred by employees when they take up new jobs or are required by their employers to move their homes, for example, travel and moving expense; Payments for travel and subsistence while on government duty away from duty station. Per Diem and out-of-town allowances fall under this category; Purchases of services provided by people who are not government employees, for example, consultants, architects and occasional workers. The above four items should be classified under use of goods and services Social benefits to employees. These can be in the form of allowances made for accidental injury, severance and incapacity pay. Allowances to employees’ dependants are also considered social benefits. In most cases, payments falling under this category are made from a social insurance fund. Payments to employees or former employees that are not remuneration for work The above two items should be classified under transfers to households, social benefits
F60: 29 | H60: Social contributions | I60: This item includes the government’s contribution (but not the employees’ contribution) to social insurance schemes paid on behalf of employees.
F62: 30 | H62: Administrative fees: Payments | I62: An expense incurred in controlling and directing an organization, but not directly identifiable with financing, marketing, or production operations. | J62: *Accredition fees *Appeals fees *Bank charges and card fees *Copy right fees *Firearm handling fees *Licence agency fees *Management/ Handling fees *Personnel agency fees *Registration fees *System access & information fees *Travel agency fees
F64: 31 | H64: Advertising | I64: Costs of the specific formulation and publication of notices to attract prospective service providers and suppliers, promote government activities and/or projects or for filling of vacant positions. Advertising media includes television, radio, movies, magazines, newspapers, video games, internet, billboards. | J64: *Advertising: Auctions *Advertising: Bursaries (Non-employees) *Advertising: Marketing *Advertising: Promotional items *Advertising: Public notices *Advertising: Recruitment *Advertising: Tenders
F66: 32 | H66: Minor assets | I66: This asset category includes machinery and equipment, furniture and computer hardware costing less than R5 000/capitalisation threshold. These assets can be used continuously or repeatedly in production for at least one year. They are treated as current payments and not capitalised.
F68: 33 | H68: Audit cost: external | I68: This item refers to external/ regulatory audits, conducted by the Auditor-General or Private Auditing companies in SA, whereby the audit provides an independent opinion on published information. This is different from internal auditors who do not attest to financial reports but focus mainly on the internal controls of the organization. | J68: *Regularity *External computer audits *External environmental audits *External forensic investigation *External performance audit
F70: 34 | H70: Bursaries (Employees) | I70: Bursaries include payments made to provide direct support to employees for studying at universities or other tertiary institutions, where all the conditions and terms have been complied with in terms of the contract with the bursary holder. Direct support could include fees, text books and other aids and accommodation at the university residence.
F72: 35 | H72: Catering: Internal activities | I72: Expenditure incurred on individuals employed or contracted to the public entity or individuals outside the employ of the public entity, in connection with the activities of a entity, or division within the entity, that directly relates to the achievement of its objectives. | J72: *Catering for conferences, bosberade, workshops, indabas, courses, forums, hearings and meetings held with the intention to discuss the entity’s initiatives; *Catering for a function for the launching/roll-out of an product of the department or division within a department *Catering for interviews or training sessions; *Dinner and drinks supplied at year-end functions; *Eatery provided for members of standing boards, other government bodies and official commissions or committees of enquiry.
F74: 36 | H74: Communication | I74: Payments for the usage of telephones, faxes, telegraphs and telex for communication purposes, including costs for teleconferences. Communication by telephones and faxes includes the sending of messages electronically i.e. the sending of a message, image or document via a fax machine or a telephone or cellular phone. Telex is a communications system using teleprinters that communicate via telephone lines. Teleconference is a meeting via telecommunications equipment: a meeting held among people in different places by means of telecommunications equipment. Telecommunication equipment includes phones, faxes, telegraphs and telex excluding cellular phones refer to "Communication: Cell contract (Subscription and calls). Rental of equipment defined as operating or finance leases should be allocated under the item provided for leases. | J74: *Communication: Airtime and data *Communication: Postage/stamps/franking machines *Communication: Radio and tv transmissions *Communication: Rent private bag and postal box *Communication: Satellite signals *Communication: Telephone, fax, telegraph and telex *Communication: Telephone installation
F76: 37 | H76: Computer services | I76: Expenditure for the utilisation of information technology, information systems and related services provided by an external service provider. | J76: *SITA computer services *External computer services: Data lines *External computer services: Information services *External computer services: Internet charge *External computer services: Mainframe time *External computer services: Software licences *External computer services: Specialised computer services *External computer services: System adviser *External computer services: System development *External computer services: Website design and development
F78: 38 | H78: Consultants: Business and advisory services | I78: Consulting services refer to specialist services and skills provided that are required for the achievement of a specific objective, with the aim of providing expert and professional advise on a time and material basis. It is unnecessary to maintain these skills in-house, since they are required on a once-off or temporary basis. Therefore a consultant is a professional person appointed by the department to provide technical and specialist advise or to assist with he design and implementation of specific projects/programs. The legal status of this person can be an individual, a partnership or a corporation. The fact that a consultant is defined as a professional person implies that the consultant is professionally qualified. The provision of advise or service is in line with a contractual arrangement. Remuneration is usually based on an hourly fee or a fixed fee for a product/deliverable. | J78: *Consultants: Business and advisory services: Accountants and auditors *Consultants: Business and advisory services: Audit committee (non-officials) *Consultants: Business and advisory services: Board members *Consultants: Business and advisory services: Commissions and committees of enquiry *Consultants: Business and advisory services: Communications strategy *Consultants: Business and advisory services: Business management *Consultants: Business and advisory services: Human resource *Consultants: Business and advisory services: Occupational safety and health *Consultants: Business and advisory services: Organisational *Consultants: Business and advisory services: Project management *Consultants: Business and advisory services: Quality control inspectorate *Consultants: Business and advisory services: Qualification verification *Consultants: Business and advisory services: Research and advisory services *Consultants: Business and advisory services: Translations and transcriptions *Consultants: Business and advisory services: Valuer
F80: 39 | H80: Infrastructure and planning services | I80: This group of professional service providers refers to qualified infrastructure and planning professional services. These are specialised services which require expert and professional advice on a time and material basis for the achievement of specific objectives. It is unnecessary to maintain these skills in-house, since they are required on a once-off or temporary basis. This professional person(s) is appointed by the department to provide technical and expert advice or to assist with the design and implementation of specific projects/programmes. The legal status of this person can be an individual, a partnership or a corporation. The provision of advice or service should be in line with a contractual arrangement. | J80: *Infrastructure and planning services: Engineering *Infrastructure and planning services: Agriculture services *Infrastructure and planning services: Architectural services *Infrastructure and planning services: Ecological services *Infrastructure and planning services: Geodetic and control survey services *Infrastructure and planning services: Geoinformatic services *Infrastructure and planning services: Geologist services *Infrastructure and planning services: Landscape designer services *Infrastructure and planning services: Land and quantity surveyors services *Infrastructure and planning services: Town planner services *Maintenance and repairs: buildings: consultants *Maintenance and repairs: other fixed structures: consultants
F82: 40 | H82: Maintenance and repairs: Buildings: Consultants | I82: The costs incurred to bring an asset back to an earlier condition or to keep the asset operating at its present condition (as opposed to improving the asset). For example, if a building is damaged, the cost to repair the damage is immediately debited to repairs and maintenance expense. | J82: *Maintenance and repairs: Buildings: Consultants: Architectural services *Maintenance and repairs: Buildings: Consultants: Engineering civil services *Maintenance and repairs: Buildings: Consultants: Engineering electrical services *Maintenance and repairs: Buildings: Consultants: Engineering mechanical services *Maintenance and repairs: Buildings: Consultants: Engineers structural services *Maintenance and repairs: Buildings: Consultants: Health and safety officers *Maintenance and repairs: Buildings: Consultants: Land and quantity surveyors services *Maintenance and repairs: Buildings: Consultants: Engineering structural services
F84: 41 | H84: Maintenance and repairs: Other fixed structures: Consultants | I84: The costs incurred to bring an asset back to an earlier condition or to keep the asset operating at its present condition (as opposed to improving the asset). For example, if a company truck is damaged, the cost to repair the damage is immediately debited to repairs and maintenance expense. | J84: *Maintenance and repairs: Other fixed structures: Consultants: Architectural services *Maintenance and repairs: Other fixed structures: Consultants: Engineers structural services *Maintenance and repairs: Other fixed structures: Consultants: Engineering civil services *Maintenance and repairs: Other fixed structures: Consultants: Engineering electrical services *Maintenance and repairs: Other fixed structures: Consultants: Engineering mechanical services *Maintenance and repairs: Other fixed structures: Consultants: Health and safety *Maintenance and repairs: Other fixed structures: Consultants: Land and quantity surveyors services *Maintenance and repairs: Other fixed structures: Consultants: Engineering structural services
F86: 42 | H86: Laboratory services | I86: Payments specifically related to laboratory services. This item include the cost associated with making use of professionals or professional services for laboratory services such as scientific experiments, research, manufacturing of drugs or chemicals, observation and testing. | J86: *Laboratory services: Agriculture *Laboratory services: Medical laboratory services *Laboratory services: Roads laboratory services *Laboratory services: Water laboratory services
F88: 43 | H88: Legal services | I88: Payments for any legal services to either private firms or state attorneys. This is for the service cost of attorneys. | J88: Legal cost: Private firm: Legal advice services Legal cost: Private firm: Messenger of court services Legal cost state attorney: Advice services Legal cost state attorney: Conveyancing services Legal cost state attorney: Messenger of court services
F90: 44 | H90: Science and technology services | I90: Scientific and technological services are defined as activities concerned with research and experimental development and contributing to the generation, dissemination and application of scientific and technical knowledge. | J90: *Science and technology services: Special services *Science and technology services: Research and development support services
F92: 45 | H92: Contractors | I92: Contractors are required to provide services that are not the core business of the department. It is normally not cost effective to maintain these skills within the department. Contractors includes costs associated with the use of contracted individuals or businesses on projects or tasks. This does not include amounts payable to contractors in respect of provision of services such as cleaning and security even if a staff element can be identified. Note also that it is common practice that the said contractor provides all the materials required for the project - he/she tenders for the whole project, materials included. | J92: *Contractors: Abbatoir services *Contractors: Aerial photography *Contractors: Artists and performers *Contractors: Auctioneers *Contractors: Audio-visual service *Contractors: Bore waterhole drilling *Contractors: Bottling and packaging *Contractors: Burial services *Contractors: Casual labourers *Maintenance of buildings: Casual labourers *Contractors: Curators *Contractors: Disposal services *Contractors: Editorial services *Contractors: Employee wellness *Contractors: Event promoters *Contractors: Fire fighting services. *Contractors: Forensic investigators *Contractors: Graphic designers *Contractors: Interior decorator *Contractors: Medical services *Contractors: Mint of decoration *Contractors: Photographer *Contractors: Plants, flowers and other decorations *Contractors: Preservation/restoration/dismantling/cleaning services *Contractors: Professional drivers *Contractors: Private firm: legal services *Contractors: Security services *Contractors: Sports and recreation *Contractors: Stage and sound crew *Contractors: Tour guides *Contractors:Tracing agents and debt collectors *Contractors:Transportation/relocation contractor *Contractors: South african social security agency (sassa) payment contractors *Contractors: Maintenance and repairs of other fixed structures *Contractors: Maintenance and repairs of other machinery and equipment *Contractors: Maintenance and repairs of heritage buildings *Contractors: Maintenance and repairs of other heritage fixed structures
F94: 46 | H94: Agency and support/Outsourced services | I94: Agency and support or outsourced services refers to staff appointed through an agency or staff appointed individually on contract or similar binding arrangement. An entity should have the capacity and expertise to carry out certain services, but for some reasons are not utilising their own staff. The services do not form part of Compensation of employees. The reasons might include temporary incapacity or the outsourcing of services to save costs, for example cleaning, security and recruitment. In evaluating the classification of agency/outsourced services it should be established whether the services being procured could have been provided by the entity itself. | J94: Agency and support/Outsourced services: Adjudicators Agency and support/Outsourced services: Administration and support staff Agency and support/Outsourced services: Agricultural services Agency and support/Outsourced services: Biocontrol services Agency and support/Outsourced services: Burial services Agency and support/Outsourced services: Census field staff Agency and support/Outsourced services: Covid cleaners and screeners Agency and support/Outsourced services: Editorial services Agency and support/Outsourced services: Education / General assistants Agency and support/Outsourced services: EPWP workers Agency and support/Outsourced services: Facilitators Agency and support/Outsourced services: Financial management Agency and support/Outsourced services: Fire services Agency and support/Outsourced services: Health professional allied Agency and support/Outsourced services: International institute of communications Agency and support/Outsourced services: Inmates recovery fee Agency and support/Outsourced services: Investigation services Agency and support/Outsourced services: Land claim verification Agency and support/Outsourced services: Lectures Agency and support/Outsourced services: Legal services Agency and support/Outsourced services: Medical and chemical waste removal Agency and support/Outsourced services: Medical doctor Agency and support/Outsourced services: Medical services Agency and support/Outsourced services: Nursing staff Agency and support/Outsourced services: Nutritional services Agency and support/Outsourced services: Personnel and labour Agency and support/Outsourced services: Pharmacy professionals Agency and support/Outsourced services: Photographers Agency and support/Outsourced services: Porter services Agency and support/Outsourced services: Postmortem Agency and support/Outsourced services: Researcher Agency and support/Outsourced services: Security services Agency and support/Outsourced services: Social care services Agency and support/Outsourced services: Statisticians Agency and support/Outsourced services: Steam provision Agency and support/Outsourced services: Universities certification Agency and support/Outsourced services: Universities Agency and support/Outsourced services: Veterinary services Agency and support/Outsourced services: Waste services
F96: 47 | H96: Entertainment | I96: This item includes entertainment expenditure incurred by members of the Senior Management Service (SMS) as well as Ministers and his/her office bearers in performance of their duties. | J96: *Luncheon meetings held with colleagues, foreign delegations and/or other individuals in and outside the public sector; *Purchase of dinner during authorised overtime, if no compensation in the form of time off or additional pay is approved, provided that the closing time is later than 20h00.
F98: 48 | H98: Fleet services(Fleet/Services) | I98: Cost relating to operation and maintenance of fleet services including entity owned vehicles, leased or rented vehicles. The lease amount will be classified accordingly under the Lease payments category. This item caters for charges over and above the lease payment (flat rate). | J98: Fleet services: Computer time-license Fleet services: Development fees Fleet services: Tracking (physical cs) Fleet services: Batteries Fleet services: Car valet and washing services Fleet services: Depreciation Fleet services: Depreciation equipment Fleet services: Fuel, oil and grease Fleet services: Kilometres Fleet services: Licence plates Fleet services: Repairs Fleet services: Spares and accessories Fleet services: Toll fees Fleet services: Towing costs Fleet services: Transaction costs Fleet services: Tyres and tubes Maintenance: Fleet services: Operating payments Maintenance: Machinery and equipment: Operating payments Fleet services: Loss sale equipment Fleet services: Loss sale fleet
F100: 49 | H100: Housing | I100: Department of Housing - specific accounts for interfacing accounts. | J100: *Housing: Capital adjustments *Housing: Devolution of debtors *Housing: Devolution of proper *Housing: Rebate R75 *Housing: Subsidy
F102: 50 | H102: Inventory: Clothing material and accessories | I102: The category includes corporate gear, Uniforms and Protective Clothing and Needlework's Accessories | J102: *Inventory: Clothing material and accessories: Corporate gear *Inventory: Clothing material and accessories: Uniform and protective clothing *Inventory: Clothing material and accessories: Needlework accessories
F104: 51 | H104: Inventory: Farming supplies | I104: This item includes farming animal supplements, plastic bags for seedlings, packaging for produce, labels & tags for identification and marking of animals and plants, etc. excluding items specifically identified such as fertilizer, gardening supplies, insecticides, animal fodder and feed, seed and seedlings and irrigation material. | J104: *Inventory: Farming supplies: Farming supplies *Inventory: Farming supplies: Fertilizer *Inventory: Farming supplies: Gardening supplies *Inventory: Farming supplies: Insecticides *Inventory: Farming supplies: Livestock and plant consumption *Inventory: Farming supplies: Livestock food and animal feed *Inventory: Farming supplies: Seeds and seedlings
F106: 52 | H106: Inventory: Food and food supplies | I106: Food and food supplies includes items like baby and special foods, bread and confectionary, eggs and egg products, fruits (fresh and frozen), groceries, meat, poultry and fish and milk and milk products. Limited for use by DOH, DCS, DSD. This category will not be distributed for use by other departments. Similar expenses incurred by other departments will be allocated under Consumable Supplies; Household Supplies; Groceries | J106: *Inventory: Food and food supplies: Baby and special foods *Inventory: Food and food supplies: Bread and baked confectionery *Inventory: Food and food supplies: Eggs and egg products *Inventory: Food and food supplies: Fruit and vegetables *Inventory: Food and food supplies: Groceries *Inventory: Food and food supplies: Meat, poultry, fish
F108: 53 | H108: Inventory: Chemicals, fuel, oil, gas, wood and coal | I108: Items under this category caters for chemicals, fuel, oil, gas, wood and coal | J108: *Inventory: Chemicals, fuel, oil, gas, wood and coal: Chemicals *Inventory: Chemicals, fuel, oil, gas, wood and coal: Fuel, oil and lubricants *Inventory: Chemicals, fuel, oil, gas, wood and coal: Gas *Inventory: Chemicals, fuel, oil, gas, wood and coal: Wood and coal
F110: 54 | H110: Inventory: Learning and teaching supplies material | I110: This category is created for Education Sector, it caters for Media Collections and Learning and Teaching Support Materials purchased by the Department of Education (DoE) for distribution to the schools | J110: *Inventory: Learning and teaching supplies material: Media collections (library material; school library/media/films; school books/magazines) *Inventory: Learning and teaching supplies material: Learning supporting material (school material subjects; school stationery; school textbook/prescribed)
F112: 55 | H112: Inventory: Materials and supplies | I112: Materials and supplies include items such as building materials, hardware, painting materials and workshop accessories, etc. | J112: *Inventory: Materials and supplies: Building and construction material *Inventory: Materials and supplies: Camping material *Inventory: Materials and supplies: Disposable testing material non medical *Inventory: Materials and supplies: Electrical supplies *Inventory: Materials and supplies: Fencing material *Inventory: Materials and supplies: Hardware *Inventory: Materials and supplies: Irrigation material *Inventory: Materials and supplies: Notice boards and signs *Inventory: Materials and supplies: Operational health&safety kit *Inventory: Materials and supplies: road construction and supplies *Inventory: Materials and supplies: road signs *Inventory: Materials and supplies: sport and recreational consumables *Inventory: Materials and supplies: tents, flags and accessories *Inventory: Materials and supplies: workshop materials and supplies *Inventory: Materials and supplies: workshop testing material and supplies
F114: 56 | H114: Inventory: Medical supplies | I114: Medical supplies includes all medical related inventory items. Limited for use DOH AND DOD. This category will not be distributed for use by other departments. Similar expenses incurred by other departments will be allocated under Consumable Supplies: First Aid Kid or Contraceptives | J114: *Inventory: Medical supplies: Artificial aids *Inventory: Medical supplies: Application sets *Inventory: Medical supplies: Bandages and dressing *Inventory: Medical supplies: Blood-product and plasma *Inventory: Medical supplies: Catheters, tubes and urine bag *Inventory: Medical supplies: Contraceptives *Inventory: Medical supplies: Crutches *Inventory: Medical supplies: Dental consumables *Inventory: Medical supplies: Disposable nappies *Inventory: Medical supplies: First aid kit *Inventory: Medical supplies: Gloves, disposable sundries *Inventory: Medical supplies: Heart valves and pacemakers *Inventory: Medical supplies: HIV/aids test kits *Inventory: Medical supplies: Implantable sets *Inventory: Medical supplies: In-vitro diagnostic testing strips *Inventory: Medical supplies: Medical gas *Inventory: Medical supplies: Occupational therapy consumables *Inventory: Medical supplies: Optical items and hearing aids *Inventory: Medical supplies: Orthopaedic artificial limbs *Inventory: Medical supplies: Patient clothing *Inventory: Medical supplies: Radio-isotopes *Inventory: Medical supplies: Renal dialysis *Inventory: Medical supplies: Stoma therapy reqs *Inventory: Medical supplies: Surgical consumables *Inventory: Medical supplies: Surgical, implants prosthesis *Inventory: Medical supplies: Surgical/medical supplies *Inventory: Medical supplies: Sutures, ligature and skin staples *Inventory: Medical supplies: Syringes, needles *Inventory: Medical supplies: Therapeutic requisitions *Inventory: Medical supplies: Vinyl body bag *Inventory: Medical supplies: Wheelchair consumables *Inventory: Medical supplies: X-ray consumables
F116: 57 | H116: Inventory: Medicine | I116: A drug or other preparation used for the treatment or prevention of disease. Limited for use by DOH AND DOD. This category will not be distributed for use by other departments. | J116: *Inventory: Medicine: Animal medicine *Inventory: Medicine: Animal vaccines *Inventory: Medicine: Antiretroviral drugs *Inventory: Medicine: Anti-tuberculosis medicines *Inventory: Medicine: Contraceptives *Inventory: Medicine: Large volume parenterals *Inventory: Medicine:Medicine medical depot *Inventory: Medicine: Other medicine *Inventory: Medicine: Vaccines
F118: 58 | H118: Medsas inventory interface | I118: MEDSAS is a system used for the procurement, and management of pharmaceutical products, including medicines etc. This system is mainly used by the National and Provincial Departments of Health. | J118: *Medsas inventory interface: Miscellaneous variance *Medsas inventory interface: Price variance *Medsas inventory interface: Purchase variance *Medsas inventory interface: Stock issues *Medsas inventory interface: Stock purchase general *Medsas inventory interface: Stock purchase system *Medsas inventory interfaceS: Stores surpluses
F120: 59 | H120: Inventory: Other supplies | I120: Included in this category is Laboratory Chemical and Supplies, Military Stores, Ammunition and Security Supplies and Assets Held for Distribution | J120: *Inventory: Other supplies: Laboratory chemicals and supplies *Inventory: Other supplies: Military stores *Inventory: Other supplies: Assets for distribution *Inventory: Other supplies: Print supplies *Inventory: Other supplies: Household supplies
F122: 60 | H122: Consumables supplies | I122: This category caters for all consumable supplies | J122: *Consumables supplies: Animal food and medical supplies *Consumables supplies: Gifts and awards *Consumables supplies: Saddlery and other tackle *Consumables supplies: Uniform and clothing *Consumables supplies: Medical supplies *Consumables supplies: Household supplies *Maintenance of machinery and equipment: fuel and gas supplies *Consumables supplies: Fuel supplies *Consumables supplies: Materials and supplies *Consumables supplies: Contraceptives *Consumables supplies: Bags and accessories *Consumables supplies: Communication accessories *Consumables supplies: IT consumables *Consumables supplies: Laboratories consumables *Consumables supplies: Medical kit *Consumables supplies: Name tags *Consumables supplies: Occupational health safety kit *Consumables supplies: Photographic consumables *Consumables supplies: Security accessories consumables *Consumables supplies: Tent, flag and accessories *Consumables supplies: Stationery, printing and office supplies
F124: 61 | H124: Consumables: Stationery, printing and office supplies | I124: Included in this item is stationery and office consumables. Also included in this category is Audio Visual Consumables, Government Printers, Mag/News/Journals, Stationery, ART AND Drawings, Media Collections, PRINTER Cartridges, and PRINTING Paper | J124: *Consumables: Stationery, printing and office supplies: Audio visual consumables *Consumables: Stationery, printing and office supplies: Art and drawings *Consumables: Stationery, printing and office supplies: External printers *Consumables: Stationery, printing and office supplies: Magazines/Newspapers/Journals *Consumables: Stationery, printing and office supplies: Media collections *Consumables: Stationery, printing and office supplies: Printing cartridge *Consumables: Stationery, printing and office supplies: Printing paper *Consumables: Stationery, printing and office supplies: Stationery
F126: 62 | H126: Operating leases | I126: Operating leasing is a productive activity that involves renting capital assets for terms less than the expected service lives of the assets. It is a form of production in which the lessor normally lets the use of a capital equipment / asset in exchange for the lease payments. Operating leasing can be identified by the following characteristics: (a) the lessor normally maintains a stock of equipment in good working order which can be hired on demand or at short notice, (b) the equipment may be rented out for varying periods of time, and (c) the lessor is frequently responsible for the maintenance and repair of the equipment as part of the service provided to the lessee. | J126: Operating lease: Buildings Operating lease: Other fixed structures Operating lease: Other machinery and equipment Operating lease: Transport equipment Maintenance: Operating leases machinery
F128: 63 | H128: Rental and hiring | I128: Rental and hiring includes transactions that involves a once-off payment for the temporary use of an item which is owned by an external party. This is not the same as Lease payments as "Lease Payments" refer to series of payments made.
F130: 64 | H130: Property payments | I130: This category provides for all payments related to contractual obligations contributing to the functionality of, for example, building or land. for example, gardening services, cleaning services, municipal services, deeds, electricity compliance certificate, fire protection, etc. municipalities. | J130: *Property payments: Cleaning services *Property payments: Commission on municipal services *Property payments: Contracted maintenance property *Property payments: Deeds *Property payments: Electrical compliance certificate *Property payments: Fire protection *Property payments: First aid *Property payments: Gardening services *Property payments: Gas *Property payments: Laundry services *Property payments: Management fee *Property payments: Pest control/fumigation services *Property payments: Safeguard and security *Property payments: Municipal services (Electricity, Sewerage, Waste/Refuse removal, Water)
F132: 65 | H132: Transport provided as part of internal activities | I132: Expenses associated with transport provided by the entity itself in transporting people during the execution of its mandate. | J132: *Transport for excursions *Transport for public events *Transport: illegal immigrants deportation *Transport: land reform/restitution beneficiaries *Transport of children vagrants *Transport of patients & corps *Transport of scholars
F134: 66 | H134: Travel and subsistence | I134: Travel and subsistence includes all domestic and foreign travel related expenditure paid for employees and non-employees. This item specifically covers expenditure on accommodation cost, food and beverage, incidental cost, and car rental paid for official travelling purposes. The amount could also be paid by the entity directly to the travel agency responsible for making the travel arrangements or the service provider. | J134: *Travel and subsistence: Per diem out of town allowance *Travel and subsistence: Accommodation *Travel and subsistence: Daily allowance *Travel and subsistence: Food and beverage *Travel and subsistence: Incidental cost *Travel and subsistence: Transport *Travel and subsistence: Transport-shuttle services
F136: 67 | H136: Training and development | I136: Training and development provided to employees and non-employees as well as training materials not provided for separately under goods and services. | J136: *Training and development: Employees *Training and development: Material&manuals *Training and development: Non-employees
F138: 68 | H138: Operating payments | I138: Operating payments category caters for services that are related to the operations of the entity | J138: *Operating payments: Achievements and awards *Operating payments: Air charter services and landing rights *Operating payments: Cash discount (temporary) *Operating payments: Competency certificates / licences / permits *Operating payments: Courier and delivery services *Operating payments: Freight services transport goods *Operating payments: Harbour services, docking fees *Operating payments: Honoraria (voluntarily workers) *Operating payments: Laundry services *Operating payments: Non-life insurance premiums *Operating payments: Printing and publications *Operating payments: Professional bodies, membership and subscriptions *Operating payments: Resettlement cost *Operating payments: Road worthy tests *Operating payments: School boarding/tuition cost *Operating payments: Storage services *Operating payments: Warrantees and guarantees *Operating payments: Taking over contractual obligations *Operating payments: Witness and related cost
F140: 69 | H140: Venues and facilities | I140: Venue costs are those cost which are associated with obtaining a right to use that place/ site/location at that particular time. Facilities is anything that helps someone to perform their duties at an optimal level e.g. maintenance of computers and or making sure that all air-conditions are working. Included are the cost incurred from using venues and/or facilities not available within the normal business premises of the entity, normally specialist in nature. Facilities includes all the individual items e.g. chairs, tables, equipment, etc. that comes with the venue.
F142: 70 | H142: Interest | I142: This item includes the total value of interest payments. These are payments associated with debt, for example interest on borrowing and overdraft facilities. Interest payments on bills and bonds issued by other government units are also included here.
F144: 71 | H144: Dividends | I144: A dividend is a distribution of money or property paid by a corporation out of the corporation's profits to shareholders. Government units are not payers of dividends as a rule. Exceptions may be public corporations.
F146: 72 | H146: Rent on land | I146: Rent relates payments in respect of certain leases of land, subsoil assets, and other naturally occurring assets. Includes only rent of land, and royalties, exploration and rights of use. Rent of buildings are included in operating leases.
F148: 73 | H148: Transfers and subsidies | I148: This item consists of all unrequited, voluntary payments to other parties. Thus, an entry should be made under this item when government does not receive anything directly in return for the transfer to the other party and the transfer is voluntary. Both current and capital transfers are included in this item. An example of a capital transfer is a cash payment, which the unit is required to use toward the acquisition of a capital asset. All other transfers are current, for example, donations and grants, which the recipient is not obliged to use to acquire capital assets. The transfers paid are further categorised as; Subsidies Subsidies on production comprise all current, unrequited payments to businesses – both government and privately owned – on the basis of their level of production or quantity, or values of products produced, sold, imported or exported. Subsidies influence the level of production and / or pricing policies of the recipient. To be classified as a subsidy on production, the transfer must be current. Subsidies can be payable on specific products or on production in general. A subsidy on a product is a subsidy payable per unit of a good or service. The subsidy may be a specific amount of money per unit of quantity of a good or service, or it may be calculated ad valorem as a specified percentage of the price per unit. A subsidy may also be calculated as the difference between a specified target price and the market price actually paid by a buyer. A subsidy on a product usually becomes payable when the good or service is produced, sold, exported, or imported. But it may also be payable in other circumstances, such as when a good is transferred, leased, delivered, or used for own consumption or own capital formation. Subsidies on production consist of subsidies that enterprises receive for engaging in production but that are not related to specific products. Included are subsidies on payroll or workforce, which are payable on the total wage or salary bill, the size of the total workforce, or the employment of particular types of person; subsidies to reduce pollution; and payments of interest on behalf of corporations. Subsidies also include transfers to public corporations to compensate for losses they incur on their productive activities as a result of charging prices that are lower than their average costs of production because of deliberate government economic and social policy. If such losses have been accumulated over two or more years, however, the transfer is considered of a capital nature and classified as other transfers to public corporations and private enterprises.
F150: 74 | H150: Public and private corporations | I150: Public corporations are resident corporations and quasi-corporations that are subject to control by government units, Private corporations are all resident corporations and quasi-corporations that are not controlled by government.
F152: 75 | H152: Transfers to households: Social benefits | I152: These are transfers to protect the entire population or specific segments of the population against certain social risks: events that may adversely affect the welfare of the households concerned such as, loss of employment, poverty etc. Other government units can also pay social benefits, like the Unemployment Insurance Fund.
F154: 76 | H154: Other transfers to households | I154: This item includes all other unrequited payments made to individuals and households that are not for social benefits. To note is the inclusion of bursaries awarded to persons who are not employed by the public entity for the purpose of assisting them with tuition and other education and training related costs. They are transfers since the recipient has no obligation towards the benefactor
F156: 77 | H156: Technical reserves (social security funds only) | I156: Technical reserves are as a result of an actuarial evaluation. They consist of net equity of households in insurance reserves, prepaid premiums and reserves against outstanding claims.
F158: 78 | H158: Tax payments | I158: Tax payments include personal income tax, employer-paid payroll tax, real estate property tax, other personal property taxes, unemployment tax, business income tax, and sales and use tax.
F160: 79 | H160: Surplus/(deficit) for the year/ net cash and cash equivalents/assets-liabilities | I160: The formula checks if the above balances in the template are in accordance with the published audited financial statements
F162: 80 | H162: Other movements | I162: Any other non-cash movement not classified in the "Adjust surplus / (deficit) for accrual transactions" adjustments.
F164: 81 | H164: Other flows from Investing Activities | I164: Inflows and outflows of cash arising from acquisition and disposal of long-term financial assets and other investments not included in cash equivalents. Reason for disclosure of cash flows arising from investing activities The separate disclosure of cash flows arising from investing activities is important because the cash flows represent the extent to which cash outflows have been made for resources which are intended to contribute to the entity’s future service delivery. | J164: • Cash payments to acquire equity or debt instruments of other entities and interests in joint ventures (other than payments for those instruments considered to be cash equivalents or those held for dealing or trading purposes); • Cash receipts from sales of equity or debt instruments of other entities and interests in joint ventures (other than receipts for those instruments considered to be cash equivalents and those held for dealing or trading purposes); • Cash advances and loans made to other parties (other than advances and loans made by a public financial institution); • Cash receipts from the repayment of advances and loans made to other parties (other than advances and loans of a public financial institution); • Cash payments for futures contracts, forward contracts, option contracts and swap contracts except when the contracts are held for dealing or trading purposes, or the payments are classified as financing activities; and • Cash receipts from futures contracts, forward contracts, option contracts and swap contracts except when the contracts are held for dealing or trading purposes, or the receipts are classified as financing activities.
F166: 82 | H166: Buildings: residential | I166: Dwellings or residential are buildings that are used entirely or primarily as residences, including garages and other associated structures. Houseboats, barges, mobile homes, caravans and military personnel dwellings that are used as principal residences
F168: 83 | H168: Buildings: non-residential | I168: Non-residential buildings are all buildings other than dwellings. Examples of types of Buildings included in this category are office buildings, schools, hospitals, buildings for public entertainment, warehouse and industrial buildings, commercial building
F170: 84 | H170: Other fixed structures | I170: Other fixed structures consists of all fixed structures other than buildings. For example, roads, bridges and dams.
F172: 85 | H172: Transport equipment | I172: Transport equipment consists of equipment for moving people and objects. For example, aircrafts, aircraft engines, airport transport equipment, buses, cycles, emergency vehicles, mobile clinics, motor vehicles, railway rolling stock, ships and boats and engines, trailers and accessories and trucks. Furniture, Machinery, Computer and Office equipment i) Furniture and Office equipment This group of items provides for furniture and office equipment including items such as advertising boards, air conditioners, crockery and cutlery, domestic furniture, linen and soft furnishing, office equipment/furniture, paintings, sculptures, ornaments and school furniture. ii) Other Machinery and Equipment Consists of other machinery and equipment other than transport equipment. They are general and special purpose machinery i.e. electrical machinery, radio, television and communication equipment, furniture, watches and sports goods. iii) Computer Equipment This includes costs for desktop computers and terminals. Also included in this item are the once-off cost if separately identified for the operating system purchased with the hardware (e.g. Windows XP Professional, etc).
F174: 86 | H174: Heritage assets | I174: Heritage assets are assets of significant value that government intends to preserve indefinitely because they have unique history, cultural, educational, artistic or architectural significance. Examples are; archives, areas/land of historic significance, library materials, antiques and collectables, sculpture, paintings, sculptures, state jewellery, works of art, etc.
F176: 87 | H176: Biological assets | I176: Biological and cultivated assets are animals and plants that are used repeatedly or continuously for more than one year to produce other goods or services. Examples of animals to be included in this category are dairy cattle, draft animals, wool-producing, breeding stocks, game and animals used for transportation and entertainment. Examples of plants are trees, vines and shrubs cultivated for production of fruits, nuts, sap, resin, bark and leaf products. Slaughter animals are not cultivated assets, because they can only be used once.
F178: 88 | H178: Land and Subsoil assets | I178: Land is the ground itself, including the soil covering, associated surface water, and major improvements that cannot be physically separated from the land but not buildings on it and cultivated plantations etc. Subsoil assets consist of proven reserves of oil, gas, coal, metallic mineral reserves and nonmetallic mineral reserves, minerals and ores. Mine shafts, wells and other subsoil extraction facilities are fixed assets, rather than subsoil assets.
F180: 89 | H180: Investment Property | I180: Investment property is property (land or a building or part of a building or both) held (by the owner or by the lessee under a finance lease) to earn rentals or for capital appreciation or both. [IAS 40.5] Examples of investment property: [IAS 40.8], land held for long-term capital appreciation, land held for undetermined future use, building leased out under an operating lease, vacant building held to be leased out under an operating lease, property that is being constructed or developed for future use as investment property
F182: 90 | H182: Software and other intangible assets | I182: An intangible is an identifiable non-monetary asset without any physical substance. Examples of intangible fixed assets are mineral exploration rights; computer software; literary and artistic originals; and miscellaneous other intangible fixed assets. To qualify as a fixed asset, the item must be intended for use in production for more that one year and its use must be restricted to the units that have established ownership rights over it or to units licensed by the owner.
F184: 91 | H184: Domestic long term investments | I184: Net flows of cash made within the borders of South Africa arising from acquisition and/ disposal of assets that an entity intends to hold for more than a year.
F186: 92 | H186: Foreign long term investments | I186: Net flows of cash made from outside the borders of South Africa arising from acquisition and/ disposal of assets that an entity intends to hold for more than a year.
F188: 93 | H188: Interest | I188: Income associated with ownership of interest-bearing financial instruments, such as and bills and bonds issued by third parties. | J188: *Interest from financial derivatives
F190: 94 | H190: Dividends | I190: These are profit distributions receivable by public entities on equity participation in private and public sector entities. Dividends come in the form of revenue from shares and distribution of profits to the owner. Gains/losses associated with valuation changes should not be included in the amount reported here, these are recorded under the transactions in financial assets and liabilities category. | J190: *Dividends from shares and other equity
F192: 95 | H192: Outside shareholders interest | I192: Outside shareholders have no links with the company but have a financial Interest in its operating performance.
F194: 96 | H194: Deferred income | I194: Deferred income is the converse of accruals. It is income received during an accounting period, but which is not yet reported as earned. For example, a business may receive payment for a service or a product that has not yet been supplied. Thus cannot be recognised as income up until such time the condition is fulfilled.(from the template)
F196: 97 | H196: Borrowing activities | I196: in a cash flow environment is the lending of money by one institution to the next and this amounts to loans. A loan is an arrangement in which a lender gives money to a borrower, and the borrower agrees to repay the money, usually along with interest, at some future point(s) in time. There is usually a predetermined time for repaying a loan, and mostly the lender has to bear the risk that the borrower may not repay a loan. The loan could be obtained from either: (a)One of the local government institutions (Domestic loan denominated in Rand value) or (b)Through the market (searching for the most economical deal in the market. The market includes both local and foreign) i.One of the local financial services providers (Local or domestic loan denominated in Rand value) or ii.One of the international financial services providers (Foreign loan denominated in a foreign currency which comes with the risk of foreign exchange currency fluctuations). The agreed-upon loan repayment period determines further classification between long-term and short-term loans. Short term loans are loans payable within 12 months and long term loans are payable beyond 12 months period.
F198: 98 | H198: Repayment of finance leases | I198: A finance lease is a lease that transfers substantially all the risks and rewards of ownership of an asset. Title may or may not eventually be transferred. In substance, the lessee purchases an asset by way of a financing arrangement between itself (the lessee) and the lessor. This payment should be classified as a payment for capital assets in the budget format. The interest portion is classified as current interest, dividends and rent on land, interest paid finance leases in the budget format. Refer to Practice Note 5 of 2006/07 issued by the Office of the Accountant- General for specific rules regarding this type of transaction.
F200: 99 | H200: Other (e.g. issuance of shares, revaluations)
F202: 100 | H202: Interest and dividends or similar distributions | I202: Interest and dividends or similar distributions received and paid should be disclosed separately. The total amount of interest paid during a period is disclosed in the cash flow statement. Interest paid and interest and dividends (or similar distributions) received may be classified as either operating, investing, or financing activities. The classification of interest paid, and interest and dividends (or similar distributions) received should be driven by the source.
H203: STATEMENT OF FINANCIAL POSITION
F204: 101 | H204: Cash and cash equivalents | I204: Cash and cash equivalents are the most liquid assets found within the asset portion of a company's balance sheet. Cash equivalents are assets that are readily convertible into cash, such as money market holdings, short-term government bonds or Treasury bills, marketable securities and commercial paper.
F206: 102 | H206: Trade and other receivables from exchange transactions | I206: These are current asset representing money due for services performed or merchandise sold on credit after adjusting provision for doubtful debts. The provision for doubtful debts is subtracted from Accounts Receivable to arrive at what is called "net realizable receivables."
F208: 103 | H208: Other receivables from non-exchange transactions, including taxes, fines and transfers | I208: These are current asset representing money due from non-exchange activities such as fines. The provision for doubtful debts is subtracted from Accounts Receivable to arrive at what is called "net realizable receivables."
F210: 104 | H210: Prepayments | I210: The satisfaction of a debt or installment payment before its official due date. A prepayment can be for the entire balance or for any upcoming payment that is paid in advance of the date for which the borrower is contractually obligated to pay it. Examples of a prepayment come in the form of rent or early loan repayments.
F212: 105 | H212: VAT receivable | I212: VAT Receivables is the carrying amount due within one year of one operating cycle from tax authorities as of the balance sheet date representing VAT refunds of overpayment e.g. Input tax vs Output tax.
F214: 106 | H214: Income tax receivable | I214: Its carrying amount due within one year of one operating cycle from tax authorities as of the balance sheet date representing refunds of overpayments or recoveries based on agreed-upon resolutions of disputes.
F216: 107 | H216: Inventory | I216: Inventories are assets/ goods and services held for sale in the ordinary course of business (finshed goods), in the process of production for such sale (working in process), or in the form of materials or supplies to be consumed in the production process or in the rendering of service.Goods" in question will however have an aspect of service which was provided in the form of labour that went into the manufacture of whatever item is being produced
F218: 108 | H218: Short term loans | I218: Short term loans are non-derivative financial assets with fixed or determinable payments that are not quoted in an active market. Loans to other enterprises expected to be recovered within twelve months period are examples of assets falling into the loans and receivables category.
F220: 109 | H220: Accrued Investment Interest/Accrued interest | I220: A term used to describe an accrual accounting method when interest that is receivable has been recognized, but not yet received
F222: 110 | H222: Current investments | I222: Current investment is a purchase of an asset or item with the hope that it will generate income or appreciate and/sold at the higher price or that will expire within one year , such as bonds, stock, collectible annuities and real property.
F224: 111 | H224: Other current financial assets | I224: A current financial assets is any asset that is cash, equity instrument of another entity e.g. investment in the ordinary shares of another entity; a contractual right to receive cash or another financial asset from another entity (e.g. bonds); a contractual right to exchange financial instruments with another entity under conditions that are potentially favourable (e.g. an option to acquire shares in another company); a contract that will or may be settled in the entity's own equity instrument (Derivative or Non- derivative). These are expected to be realised in a period of less than twelve months.
F226: 112 | H226: Construction contracts and receivables | I226: These are construction contracts monies receivable over a short period.
F228: 113 | H228: Non Current Assets Held for Sale | I228: Non-current assets are reclassiﬁed as current assets when they are held for sale. A non-current asset is regarded as ‘held for sale’ if its carrying amount will be recovered principally through a sale transaction, rather than through continuing use. To be classiﬁed as a non-current asset held for sale: the asset must be available for immediate sale; and the sale must be highly probable. This requires management commitment to sell, active marketing at a reasonable price, and the expectation of a completed sale within one year.Non-current assets classified as held for sale shall not be depreciated. But Impairment must be considered both at the time of classification as held for sale and after classification as held for sale.
F230: 114 | H230: Finance lease receivable | I230: The present value of the lease receipts expected during the lease term
F232: 115 | H232: Statutory Receivables - Exchange | I232: These are receivables that arise from legislation, supporting regulations, or similar means and require settlement by another entity in cash or using another financial instrument. These receivables are in exchange for a good or a service. | J232: E.g property rates, levies, licences
F234: 116 | H234: Statutory Receivables - Non Exchange | I234: These are receivables that arise from legislation, supporting regulations, or similar means and require settlement by another entity in cash or using another financial instrument. This receivable is not in exchange of anything. | J234: Income tax, grants and transfers, fines and penalties
F236: 117 | H236: Operating Lease Asset | I236: The receivable arising from a contract that allows an external party to use an asset, but rights or ownership do not pass to the lessee. | J236: e.g lease receivable from an opeerating lease agreement.
F238: 118 | H238: Derivatives financial instruments | I238: A derivative is a financial instrument whose value changes in relation to changes in a variable, such as an interest rate, commodity price, credit rating, or foreign exchange rate. It also requires either a small or no initial investment, and it is settled at a future date. It allows an entity to speculate on or hedge against future changes in market factors at minimal initial cost. Examples of derivatives are call options, put options, forwards, futures, and swaps.
F240: 119 | H240: Non-current receivables from non-exchange transactions | I240: These are accounts or promissory notes due for payment to an entity other than from its normal operations that is not expected to be collected within one year of the balance sheet date. Examples of non-trade receivables are amounts owed to a company by its employees for loans or wage advances, tax refunds owed to it by taxing authorities, or insurance claims owed to it by an insurance company
F242: 120 | H242: Non-current receivables from exchange transactions | I242: These are accounts or promissory notes due for payment to an entity other than from its normal operations that is not expected to be collected within one year of the balance sheet date. Examples of non-trade receivables are amounts owed to a company by its employees for loans or wage advances, tax refunds owed to it by taxing authorities, or insurance claims owed to it by an insurance company
F244: 121 | H244: Non Current Receivables - Statutory Receivables - Exchange | I244: These are receivables that arise from legislation, supporting regulations, or similar means and require settlement by another entity in cash or using another financial instrument. These receivables are in exchange for a good or a service. | J244: E.g property rates, levies, licences
F246: 122 | H246: Non Current Receivables - Statutory Receivables - Non-Exchange | I246: These are receivables that arise from legislation, supporting regulations, or similar means and require settlement by another entity in cash or using another financial instrument. This receivable is not in exchange of anything. | J246: Income tax, grants and transfers, fines and penalties
F248: 123 | H248: Finance lease receivable | I248: The present value of the lease receipts expected during the lease term
F250: 124 | H250: Long term loan | I250: Long term loans and receivables are non-derivative financial assets with fixed or determinable payments that are not quoted in an active market. These are loans to other enterprises expected to be recoverd over twelve months period.
F252: 125 | H252: Other non-current financial assets | I252: A non curent financial assets is any asset that is cash, equity instrument of another entity e.g. investment in the ordinary shares of another entity; a contractual right to receive cash or another financial asset from another entity (e.g. bonds); a contractual right to exchange financial instruments with another entity under conditions that are potentially favourable (e.g. an option to acquire shares in another company); a contract that will or may be settled in the entity's own equity instrument (Derivative or Non- derivative). These are expected to be realised in a period of over twelve months.
F254: 126 | H254: Non-Current Investments | I254: Investments are long term shares such as real property, stocks, bonds, collectible annuities, mutual fund shares, etc., held by an entity in another company. An entity acquires these shares with the expectation of realizing income or capital gain, or both, in the long term future
F256: 127 | H256: Investments in Subsidiary / Municipal entity | I256: This is an investment in a subsidiary which is a company that is partly or completely owned by another company that holds a controlling interest in the subsidiary company
F258: 128 | H258: Investments in Joint Ventures | I258: This is an investment in a joint venture which is a business agreement in which parties agree to develop, for a finite time, a new entity and new assets by contributing equity. They exercise control over the enterprise and consequently share revenues, expenses and assets.
F260: 129 | H260: Investments in Associates | I260: This is an investment in an associate which is an entity over which an investor has significant influence, being the power to participate in the financial and operating policy decisions of the investee (but not control or joint control).
F262: 130 | H262: Deferred Tax Assets | I262: Deferred tax assets are amounts of income taxes recoverable in future periods in respect of deductible temporary differences; the carry forward of unused tax losses; and the carry forward of unused tax credits
F264: 131 | H264: Defined Benefit Plan Assets | I264: Defined Benefit Plans are plans in which the employer’s obligation is not limited to contribution toward a benefit, but rather based on the benefit promised to the employees. The amount could be determined with reference to a plan benefit formula, which stipulates the value of the benefit, a guarantee of a specified return on contribution, or informal practices that give rise to constructive obligation. Many defined benefit plans include early retirement provisions to encourage employees to retire early, before the attainment of normal retirement age (usually age 65). Companies would rather hire younger employees at lower wages.
F266: 132 | H266: Property, plant and equipment | I266: This is a term used in accounting for assets and property which cannot easily be converted into cash. These are items of value which the organization has bought and will use for an extended period of time; this normally include items such as land and buildings, motor vehicles, furniture, office equipment, computers, fixtures and fittings, and plant and machinery
F268: 133 | H268: Investment property | I268: These are properties not occupied by the owner held to earn rentals or for capital appreciation or both.
F270: 134 | H270: Intangible assets | I270: An intangible asset is an identifiable non-monetary asset without any physical substance. Examples of intangible assets are mineral exploration rights; computer software; literary and artistic originals; patents, copyrights, trademarks, trade names, licenses, goodwill and miscellaneous other items that lack physical substance but provide long term benefits to the company. To qualify as a fixed asset, the item must be intended for use in production for more that one year and its use must be restricted to the units that have established ownership rights over it or to units licensed by the owner.
F272: 135 | H272: Biological assets | I272: Biological and cultivated assets are animals and plants that are used repeatedly or continuously for more than one year to produce other goods or services. Examples of animals to be included in this category are dairy cattle, draft animals, wool-producing, breeding stocks, game and animals used for transportation and entertainment. Examples of plants are trees, vines and shrubs cultivated for production of fruits, nuts, sap, resin, bark and leaf products. Slaughter animals are not cultivated assets, because they can only be used once.
F274: 136 | H274: Heritage assets | I274: A heritage assets is an item that has value because of its contribution to a nation’s society, knowledge and/or culture. They are of such significant value that government intends to preserve indefinitely because they have unique history, cultural, educational, artistic or architectural significance. South African examples are archives, areas/land of historic significance and culture.
F276: 137 | H276: Living resources | I276: Living resources are those resources that undergo biological transformation. | J276: E.g animals and plants that are used or held for: research, conservation, recreation, agricultural activities, education/training and rehabilitation or breeding purposes.
F278: 138 | H278: Operating Lease Assets | I278: The receivable arising from a contract that allows an external party to use an asset, but rights or ownership do not pass to the lessee. | J278: e.g lease receivable from an opeerating lease agreement.
F280: 139 | H280: Bank overdraft | I280: A credit agreement made with a financial institution that permits an account holder to use or withdraw more than they have in their account, without exceeding a specified maximum negative balance. Establishing an overdraft facility with a bank can help an individual or small business with short term cash flowproblems, although the negative balance typically needs to be repaid within a month.
F282: 140 | H282: Trade and other payables from exchange transactions | I282: Accounts payable is an entity's short-term obligation to pay suppliers for products and services, which the entity purchased on credit. If accounts payable are not paid within the payment terms agreed to with the supplier, the payables are considered to be in default, which may trigger a penalty or interest payment, or the revocation or curtailment of additional credit from the supplier.
F284: 141 | H284: Benefits payable (for UIF only) | I284: This account group is used to record amounts due to eligible third party claimants within the current operating period. It consists of benefits to be paid to authorized or designated retirees within the current fiscal year.
F286: 142 | H286: Accrued interest | I286: Accrued interest is the amount of loan interest that has already occurred, but has not yet been paid to the lender by the borrower
F288: 143 | H288: VAT payable | I288: VAT registered businesses collect VAT on behalf of the government. Businesses add a certain percentage of the sales price as VAT and charge the full amount to the customer. For example, if a VAT registered dealer sells a car for R10, 000 and the VAT rate is 15 per cent, then the dealer charges the customer R11, 500. The dealer then forwards the R1, 500 to the government. The amount that the dealer is required to forward to the government is called VAT payable.
F290: 144 | H290: Income Tax Payable | I290: Income tax is a liability showing the income taxes now due, this includes the current portion (due) of any deferred taxes. It is paid by employees and people who are self-employed. It may also be payable if you aren't working if, for example, you have an income from a pension or savings.
F292: 145 | H292: Taxes and transfers payable | I292: Taxes and transfers payables are unrequited payments to other government units, corporations and households.Taxes are compulsory and there have no direct quid pro quo. Transfers can either be compulsory or voluntary
F294: 146 | H294: Current provisions(Other) | I294: Provision, generally, is to prepare in advance for an event that is projected to take place in the future. In accounting, it is an amount charged against profits for a specific liability (for example: bad debts, depreciation or taxes). A liability may be known, but the amount is often uncertain. This uncertainty may lead to an adjustment in a later income statement once the final amount of the liability is ascertained.
F296: 147 | H296: Current portion of unspent conditional grants and receipts | I296: A conditional grant is an allocation of money from one sphere of government to another, conditional on certain services being delivered or on compliance with specified requirements. It is payable within a specific period of time of less than a year.
F298: 148 | H298: Deferred income | I298: Deferred income is the converse of accruals. It is income received during an accounting period, but which is not yet reported as earned. For example, a business may receive payment for a service or a product that has not yet been supplied. Thus cannot be recognised as income up until such time the condition is fulfilled.
F300: 149 | H300: Current portion of long-term borrowings | I300: It is the amount of unpaid principal from long term loans or borrowings that has accrued in a normal operating cycle. | J300: E.g a portion or an instalment towards a long term loan that is paid or supoosed to be paid in that certain financial year. E.g an entity takes a long term loan from another entity and the agreement is that a quarter of that loan is to be paid every 3 years until the loan is paid up, within those financial years that the instalment is paid, it will be considered as current portion of long term loan.
F302: 150 | H302: Short-term loans | I302: Short-term loans are generally loans in which borrowers can receive cash quickly from a lender, typically a bank or a paycheck loan business. Usually, short-term loans are processed fast and the minimum amount of time for a short-term loan is about 3 months, and in some cases, short-term loans can extend to up to 1 year.
F304: 151 | H304: Other current financial liabilities | I304: A financial liability is a contractual obligation to deliver cash or similar to another entity or a potentially unfavourable exchange of financial assets or liabilities with another entity over a period of less than twelve months.
F306: 152 | H306: Current portion of finance lease liability | I306: A finance lease is a lease that is primarily a method of raising finance to pay for assets. It is also termed a capital lease. At the end of the lease, the ownership of the assets reverts to the lease. This is an estimated figure payable within twelve months period
F308: 153 | H308: Managed funds | I308: A fund in a public sector is a self-balancing set of financial books that is used to control and monitor the planned use of resources, often in compliance with legal and administrative requirements. Public-sector organizations use funds to demonstrate their fiscal accountability. The word "fund" in government has taken several meanings or connotations. It is sometimes used to refer an appropriation which is a legislative authorization to spend or an allotment which is an authorization by the Department of Budget and Management (DBM) to obligate, or as actual cash available | J308: E.g a fund manager manages a portfolio of investments such as shares and corporate bonds on behalf of the trust's beneficiaries.
F310: 154 | H310: Service Concession Arrangement | I310: It is an arrangement whereby a government or other public sector body contracts with a private operator to develop, operate and maintain an infrastructure asset. | J310: E.g an arrangement for building of a road, bridge, tunnel, airport etc
F312: 155 | H312: Derivatives financial instruments | I312: A derivative is a financial instrument whose value changes in relation to changes in a variable, such as an interest rate, commodity price, credit rating, or foreign exchange rate. It also requires either a small or no initial investment, and it is settled at a future date. It allows an entity to speculate on or hedge against future changes in market factors at minimal initial cost. Examples of derivatives are call options, put options, forwards, futures, and swaps. Examples of derivatives are call options, put options, forwards, futures, and swaps.
F314: 156 | H314: Deferred tax liabilities | I314: Deferred tax liability is the amount of income tax payable in future periods in respect of the taxable temporary differences. A deferred tax liability records the fact that the company will, in the future, pay more income tax because of a transaction that took place during the current period, such as an instalment sale receivable.
F316: 157 | H316: Unspent conditional grants and receipts | I316: A conditional grant is an allocation of money from one sphere of government to another. The grant is only recognised as revenue to the extent that the recipient/spending agency has complied with all of the criteria, conditions or obligations embodied in the agreement. The unspent conditional grants therefore represent the unspent portion of government grants, subsidies and contributions from the other spheres of government.
F318: 158 | H318: Benefits payable (UIF only) | I318: This account group is used to record amounts due to eligible third party claimants within the current operating period. It consists of benefits to be paid to authorized or designated retirees within the current fiscal year. The Non-current portion of this item represents the part recognised by the Fund in the year under review but only to be paid in future.
F320: 159 | H320: Long-term borrowings | I320: Borrowings comprise obligations under bank overdrafts, loans due to other group companies, redeemable debentures, bonds, commercial paper, bills of exchange and any other form of borrowing. These borrowings are payable over a period of twelve months. Accrued interest on borrowings should not be included here. Finance leases, although are borrowings too, should not be classified under this line.
F322: 160 | H322: Finance lease liability | I322: A finance lease is a lease that transfers substantially all the risks and rewards incidental to the ownership of an asset. The title may (through a bargain purchase option) or may not eventually be transferred to the lessee.
F324: 161 | H324: Operating Lease Liability | I324: An operating lease is the rental of an asset from a lessor, but not under the terms that would classify it as a capital lease. An operating lease tends to have a shorter duration than a capital lease, and the lessee does not have the option to acquire the asset through a bargain purchase option. The liability is the amount owed under the contract. Operating lease liability is the amount of money that a customer owes under the terms of a lease contract.
F326: 162 | H326: Other non-current financial liabilities | I326: A financial liability is any liability that is a contractual obligation to deliver cash or another financial asset to another entity or to exchange financial instruments with another entity under conditions that are potentially unfavourable. It is also a contract that will or may be settled in the entity's own equity instruments (could be a non-derivative for which the entity is/may be obliged to deliver a variable number of its own equity instruments or a derivative that will/may be settled other than by the exchange of fixed amount of cash for a fixed number of the entity's own equity instruments)
F328: 163 | H328: Non-current provisions(Post retirement benefits) | I328: Benefits provided by a company to retirees. Typical examples of potential benefits are pensions, life insurance, and health insurance.
F330: 164 | H330: Defined benefit plan obligations | I330: A defined benefit plan is a retirement benefit plan under which payments to former employees are fixed based on a formula that typically incorporates employee earnings and/or years of service. It has no direct relationship to the funding entity's payments to the fund from which payments are made
F332: 165 | H332: Deferred income | I332: Deferred income is the converse of accruals. It is income received during an accounting period, but which is not yet reported as earned. For example, a business may receive payment for a service or a product that has not yet been supplied. Thus cannot be recognised as income up until such time the condition is fulfilled.
F334: 166 | H334: Managed funds | I334: These are funds instituted by the fiscus to run activities across various government institutions to deliver on a particular national priority, e.g. poverty alleviation fund. Allocations are typically disbursed from those particular funds and are monitored from one central point. It is payable over a specific period of more than twelve months.
F336: 167 | H336: Service Concession Arrangement | I336: It is an arrangement whereby a government or other public sector body contracts with a private operator to develop, operate and maintain an infrastructure asset. | J336: E.g an arrangement for building of a road, bridge, tunnel, airport etc
F338: 168 | H338: Derivatives financial instruments | I338: A derivative is a financial instrument whose value changes in relation to changes in a variable, such as an interest rate, commodity price, credit rating, or foreign exchange rate. It also requires either a small or no initial investment, and it is settled at a future date. It allows an entity to speculate on or hedge against future changes in market factors at minimal initial cost. Examples of derivatives include structured debt obligations and deposits, swaps, futures, options, caps, floors, collars, forwards, and other various combinations.
F340: 169 | H340: Accumulated surplus / (deficit) | I340: Accumulated surplus refers to the portion of net income which is retained by the organization rather than distributed to its owners as dividends. Similarly, if the organization makes a loss, then that loss is retained and called variously accumulated losses or accumulated deficit. Accumulated surpluses and deficits are cumulative from year to year with losses offsetting earnings.
F342: 170 | H342: Reserves | I342: Capital, in economics, can mean: factories, machines, and other man-made inputs into a production process. In finance, capital is money and other property of a corporation or other enterprise used in transacting the business. Reserves are generally those accounts where retained earnings are set aside to satisfy dividends, improvements, contingencies, retirement of preferred stock, etc., thereby cannot be distributed for other uses. Included are Non-distributable reserves (other than share capital and share premium). It will include Capital Redemption reserves, contingency reserves and other capital reserves. Amounts attributable to minority interests (if applicable) should also be included in this category
F344: 171 | H344: Revaluation Reserve | I344: A revaluation reserve is a non-cash reserve created to reflect the true value of the asset when the market value of a certain category of asset is more or less than the value of such asset at which it is recorded in the books of account. | J344: For example, revaluation reserves are often used when an asset’s market value greatly fluctuates or is volatile due to currency relationships.
F346: 172 | H346: Translation Reserve | I346: Is a type of reserve that is created to account for foreign currency translation. | J346: For example, if your company has its headquarters in the US but has operations in the UK, you must translate the British pound into US dollar.
F348: 173 | H348: Share capital / capital fund | I348: Share capital is the proportion of a company’s equity that came from the sale of its shares to the shareholders for cash. | J348: Examples of share capital: authorized capital, issued capital, subscribed capital etc.
F350: 174 | H350: Capitalised value of pensions (for Comp Fund only) | I350: Whenever a compensation claim has been approved and registered as a permanent disability, the total amount payable will be calculated and capitalised, and the monthly pension payments will be made from that capitalised value amount up to the last month of pension ( normally is up to 68 years or when the beneficiary pass on, whichever comes first).
F352: 175 | H352: Non-Controlling Interests | I352: A non-controlling interest, also known as a minority interest, is an ownership position wherein a shareholder owns less than 50% of outstanding shares and has no control over decisions. Non-controlling interests are measured at the net asset value of entities and do not account for potential voting rights.
F354: 176 | H354: Consumer deposits | I354: Consumer deposits are refundable deposits paid by consumer on securing a contract for services. Examples are deposits for electricity and water.
F356: 177 | H356: Taxation | I356: A means by which governments finance their expenditure by imposing charges on citizens and corporate entities. Governments use taxation to encourage or discourage certain economic decisions. For example, reduction in taxable personal (or household) income by the amount paid as interest on home mortgage loans results in greater construction activity, and generates more jobs. See also taxation principles.
F358: 178 | H358: Payments received in advance | I358: The satisfaction of a debt or installment payment before its official due date. A prepayment can be for the entire balance or for any upcoming payment that is paid in advance of the date for which the borrower is contractually obligated to pay it. Examples of a prepayment come in the form of rent or early loan repayments.
F360: 179 | H360: Official development assistance | I360: Official resource flows (from international development partners) to South Africa in the form of grants, technical assistance and concessional loans and guarantees, where the South African Government is held at least partially responsible or accountable for the management of such resources.
F362: 180 | H362: Partner (Country) | I362: The common name of the foreign country from which the funds originate, i.e. the home country of the partner (institution); or regional/international organisation (e.g. European Union, African Union etc.) or multilateral institution (e.g. United Nations, World Bank etc.)
F364: 190 | H364: Partner (Institution) | I364: The name of the foreign government department or agency (e.g. Federal Foreign Office, European Investment Bank etc.); or regional/international organisation agency (e.g. European Investment Bank, African Development Bank etc.) or multilateral institution agency (United Nations Environment Programme, International Reconstruction and Development Bank etc.)
F366: 200 | H366: Programme/Project | I366: The non-abbreviated name of the programme/project as it appears in the allocation letter/notice of award/agreement with the partner (institution)
F368: 201 | H368: Total Commitment | I368: Total funds committed by the partner (institution) to the programme/project denominated in the relevant currency per the allocation letter/notice of award/agreement with the partner (institution)
F370: 202 | H370: Receipts | I370: Funds received (cash receipts) from the partner (institution) for the programme/project denominated in Rands
F372: 203 | H372: Payments | I372: Funds disbursed or spent (cash payments) against the funds received from the partner (institution) for the programme/project) denominated in Rands

Sheet Revenue
F6: PE No | G6: =Settings!$O$2 -> PE206
F7: Entity name | G7: =Settings!$E$2 -> Culture, Arts, Tourism, Hospitality and Sports Education and Training Authority | S7: =IF(S65<R65/2,"Complete outer year budget","") -> Complete outer year budget
G9: Notes | I9: =MyYearM3 -> 2021/22 | J9: =MyYearM2 -> 2022/23 | K9: =MyYearM1 -> 2023/24 | M9: =MyYear0 -> 2024/25 | O9: =MyYearP1 -> 2025/26 | Q9: =MyYearP2 -> 2026/27 | S9: =MyYearP3 -> 2027/28
A10: ItemCat | B10: Item code | F10: Revenue | I10: =Hist_year2RestatedAudited -> Audited outcome | J10: =Hist_year2RestatedAudited -> Audited outcome | K10: =Hist_year1Budget -> Budget | L10: =Hist_year1Audited -> Audited outcome | M10: =Cur_YearBudgEst -> Budget estimate | N10: =Cur_YearApprovedBudg -> Approved budget | O10: =MTEF1BudgEst -> Budget estimate | P10: =MTEF1RevBudgEst -> Revised budget estimate | Q10: =MTEF2BudgEst -> Budget estimate | R10: =MTEF2RevBudgEst -> Revised budget estimate | S10: =MTEF3PlanBudgetEst -> Planning budget estimate
A11: 1 | F11: R Thousand
A12: 1 | B12: RE1 | F12: Revenue
A13: 1 | B13: RE11 | F13: Tax revenue | G13: 1 | I13: 0 | J13: 0 | K13: 0 | L13: 0 | M13: 0 | N13: 0 | O13: 0 | P13: 0 | Q13: 0 | R13: 0 | S13: 0
A14: 1 | B14: RE12 | F14: Sales of goods and services other than capital assets | G14: 3 | I14: =SUM(I15,I29,I30) -> 48152 | J14: =SUM(J15,J29,J30) -> 64900 | K14: 32275 | L14: 32275 | M14: 28120 | N14: 28120 | O14: 29441 | P14: 29441 | Q14: 30795.43 | R14: 30795.43 | S14: 0
A15: 1 | B15: RE121 | F15: Sales of goods and services produced by entity | G15: 3 | I15: =SUM(I16,I21,I26) -> 0 | J15: =SUM(J16,J21,J26) -> 0 | K15: 0 | L15: 0 | M15: 0 | N15: 0 | O15: 0 | P15: 0 | Q15: 0 | R15: 0 | S15: 0
A16: 1 | B16: RE1211 | F16: Administration fees | G16: 4 | I16: =SUM(I17:I20) -> 0 | J16: 0 | K16: 0 | L16: 0 | M16: 0 | N16: 0 | O16: 0 | P16: 0 | Q16: 0 | R16: 0 | S16: 0
A17: 1 | B17: RE12111 | F17: Please specify | I17: 0 | J17: 0 | K17: 0 | L17: 0 | M17: 0 | N17: 0 | O17: 0 | P17: 0 | Q17: 0 | R17: 0 | S17: 0
A18: 1 | B18: RE12112 | F18: Please specify | I18: 0 | J18: 0 | K18: 0 | L18: 0 | M18: 0 | N18: 0 | O18: 0 | P18: 0 | Q18: 0 | R18: 0 | S18: 0
A19: 1 | B19: RE12113 | F19: Please specify | I19: 0 | J19: 0 | K19: 0 | L19: 0 | M19: 0 | N19: 0 | O19: 0 | P19: 0 | Q19: 0 | R19: 0 | S19: 0
A20: 1 | B20: RE12114 | F20: Please specify | I20: 0 | J20: 0 | K20: 0 | L20: 0 | M20: 0 | N20: 0 | O20: 0 | P20: 0 | Q20: 0 | R20: 0 | S20: 0
A21: 1 | B21: RE1212 | F21: Sales by market establishments | G21: 5 | I21: =SUM(I22:I25) -> 0 | J21: 0 | K21: 0 | L21: 0 | M21: 0 | N21: 0 | O21: 0 | P21: 0 | Q21: 0 | R21: 0 | S21: 0
A22: 1 | B22: RE12121 | F22: Please specify | I22: 0 | J22: 0 | K22: 0 | L22: 0 | M22: 0 | N22: 0 | O22: 0 | P22: 0 | Q22: 0 | R22: 0 | S22: 0
A23: 1 | B23: RE12122 | F23: Please specify | I23: 0 | J23: 0 | K23: 0 | L23: 0 | M23: 0 | N23: 0 | O23: 0 | P23: 0 | Q23: 0 | R23: 0 | S23: 0
A24: 1 | B24: RE12123 | F24: Please specify | I24: 0 | J24: 0 | K24: 0 | L24: 0 | M24: 0 | N24: 0 | O24: 0 | P24: 0 | Q24: 0 | R24: 0 | S24: 0
A25: 1 | B25: RE12124 | F25: 0 | I25: 0 | J25: 0 | K25: 0 | L25: 0 | M25: 0 | N25: 0 | O25: 0 | P25: 0 | Q25: 0 | R25: 0 | S25: 0
A26: 1 | B26: RE1213 | F26: Other sales | G26: 6 | I26: =SUM(I27:I28) -> 0 | J26: =SUM(J27:J28) -> 0 | K26: =SUM(K27:K28) -> 0 | L26: =SUM(L27:L28) -> 0 | M26: 0 | N26: =SUM(N27:N28) -> 0 | O26: 0 | P26: =SUM(P27:P28) -> 0 | Q26: 0 | R26: =SUM(R27:R28) -> 0 | S26: =SUM(S27:S28) -> 0
A27: 1 | B27: RE12131 | F27: User charges | I27: 0 | J27: 0 | K27: 0 | L27: 0 | M27: 0 | N27: 0 | O27: 0 | P27: 0 | Q27: 0 | R27: 0 | S27: 0
A28: 1 | B28: RE12132 | F28: Sales other than user charges | I28: 0 | J28: 0 | K28: 0 | L28: 0 | M28: 0 | N28: 0 | O28: 0 | P28: 0 | Q28: 0 | R28: 0 | S28: 0
B29: RE1214 | F29: Sales of scrap, waste, arms and other used current goods | G29: 7 | I29: 0 | J29: 0 | K29: 0 | L29: 0 | M29: 0 | N29: 0 | O29: 0 | P29: 0 | Q29: 0 | R29: 0 | S29: 0
A30: 1 | B30: RE122 | F30: Entity revenue other than sales | I30: =SUM(I31,I32,I36,I40) -> 48152 | J30: 64900 | K30: 32275 | L30: 32275 | M30: 28120 | N30: 28120 | O30: 29441 | P30: 29441 | Q30: 30795.43 | R30: 30795.43 | S30: 0
A31: 1 | B31: RE1221 | F31: Fines penalties and forfeits | G31: 19 | I31: 6630 | J31: 5179 | K31: 6962 | L31: 6962 | M31: 7296 | N31: 7296 | O31: 7639 | P31: 7639 | Q31: 7990 | R31: 7990 | S31: 0
A32: 1 | B32: RE1222 | F32: Gains from | I32: =SUM(I33:I35) -> 272 | J32: =SUM(J33:J35) -> 458 | K32: 0 | L32: 0 | M32: 0 | N32: 0 | O32: 0 | P32: 0 | Q32: 0 | R32: 0 | S32: 0
A33: 1 | B33: RE12221 | F33: Sale of fixed assets | I33: 0 | J33: 0 | K33: 0 | L33: 0 | M33: 0 | N33: 0 | O33: 0 | P33: 0 | Q33: 0 | R33: 0 | S33: 0
A34: 1 | B34: RE12222 | F34: Adjustments to fair value of assets | I34: 0 | J34: 0 | K34: 0 | L34: 0 | M34: 0 | N34: 0 | O34: 0 | P34: 0 | Q34: 0 | R34: 0 | S34: 0
A35: 1 | B35: RE12223 | F35: Other | I35: 272 | J35: 458 | K35: 0 | L35: 0 | M35: 0 | N35: 0 | O35: 0 | P35: 0 | Q35: 0 | R35: 0 | S35: 0
A36: 1 | B36: RE1223 | F36: Interest, dividends and rent on land | G36: 20 | I36: =SUM(I37:I39) -> 18920 | J36: =SUM(J37:J39) -> 37301 | K36: 19756 | L36: 19756 | M36: 15000 | N36: 15000 | O36: 15705 | P36: 15705 | Q36: 16427.43 | R36: 16427.43 | S36: 0
A37: 1 | B37: RE12231 | F37: Interest | G37: 21 | I37: 18920 | J37: 37301 | K37: 19756 | L37: 19756 | M37: 15000 | N37: 15000 | O37: 15705 | P37: 15705 | Q37: 16427.43 | R37: 16427.43 | S37: 0
A38: 1 | B38: RE12232 | F38: Dividends | G38: 22 | I38: 0 | J38: 0 | K38: 0 | L38: 0 | M38: 0 | N38: 0 | O38: 0 | P38: 0 | Q38: 0 | R38: 0 | S38: 0
A39: 1 | B39: RE12233 | F39: Rent on land | G39: 23 | I39: 0 | J39: 0 | K39: 0 | L39: 0 | M39: 0 | N39: 0 | O39: 0 | P39: 0 | Q39: 0 | R39: 0 | S39: 0
A40: 1 | B40: RE1224 | F40: Unclassified revenue | G40: 24 | I40: =SUM(I41:I43) -> 22330 | J40: =SUM(J41:J43) -> 21962 | K40: 5557 | L40: =SUM(L41:L43) -> 5557 | M40: 5824 | N40: =SUM(N41:N43) -> 5824 | O40: 6097 | P40: =SUM(P41:P43) -> 6097 | Q40: 6378 | R40: =SUM(R41:R43) -> 6378 | S40: =SUM(S41:S43) -> 0
A41: 1 | B41: RE12241 | F41: Realisation of deferred income (other than transfers) | I41: 0 | J41: 0 | K41: 0 | L41: 0 | M41: 0 | N41: 0 | O41: 0 | P41: 0 | Q41: 0 | R41: 0 | S41: 0
A42: 1 | B42: RE12242 | F42: Retention of surplus | I42: 0 | J42: 0 | K42: 0 | L42: 0 | M42: 0 | N42: 0 | O42: 0 | P42: 0 | Q42: 0 | R42: 0 | S42: 0
A43: 1 | B43: RE12243 | F43: Other income | I43: 22330 | J43: 21962 | K43: 5557 | L43: 5557 | M43: 5824 | N43: 5824 | O43: 6097 | P43: 6097 | Q43: 6378 | R43: 6378 | S43: 0
A44: 1 | B44: RE13 | F44: Transfers received | G44: 8 | I44: =SUM(I45:I46,I54,I60:I62) -> 312289 | J44: 385679 | K44: 289595 | L44: 289595 | M44: 433503 | N44: 433503 | O44: 453878 | P44: 453878 | Q44: 474755 | R44: 474755 | S44: 0
A45: 4 | B45: RE131 | F45: Social contributions received (social security funds only) | I45: 0 | J45: 0 | K45: 0 | L45: 0 | M45: 0 | N45: 0 | O45: 0 | P45: 0 | Q45: 0 | R45: 0 | S45: 0
A46: 1 | B46: RE132 | F46: Other government units | G46: 9 | I46: =SUM(I47,I51:I53) -> 0 | J46: =SUM(J47,J51:J53) -> 0 | K46: =SUM(K47,K51:K53) -> 0 | L46: =SUM(L47,L51:L53) -> 0 | M46: 0 | N46: =SUM(N47,N51:N53) -> 0 | O46: 0 | P46: =SUM(P47,P51:P53) -> 0 | Q46: 0 | R46: =SUM(R47,R51:R53) -> 0 | S46: =SUM(S47,S51:S53) -> 0
A47: 1 | B47: RE1321 | F47: National government | G47: 10 | I47: =SUM(I48:I50) -> 0 | J47: =SUM(J48:J50) -> 0 | K47: =SUM(K48:K50) -> 0 | L47: =SUM(L48:L50) -> 0 | M47: 0 | N47: =SUM(N48:N50) -> 0 | O47: 0 | P47: =SUM(P48:P50) -> 0 | Q47: 0 | R47: =SUM(R48:R50) -> 0 | S47: =SUM(S48:S50) -> 0
A48: 1 | B48: RE13211 | F48: Departmental transfers | I48: 0 | J48: 0 | K48: 0 | L48: 0 | M48: 0 | N48: 0 | O48: 0 | P48: 0 | Q48: 0 | R48: 0 | S48: 0
A49: 1 | B49: RE13212 | F49: Realisation of deferred transfers | I49: 0 | J49: 0 | K49: 0 | L49: 0 | M49: 0 | N49: 0 | O49: 0 | P49: 0 | Q49: 0 | R49: 0 | S49: 0
A50: 1 | B50: RE13213 | F50: Other government units | I50: 0 | J50: 0 | K50: 0 | L50: 0 | M50: 0 | N50: 0 | O50: 0 | P50: 0 | Q50: 0 | R50: 0 | S50: 0
A51: 1 | B51: RE1322 | F51: Departmental agencies and accounts | G51: 13 | I51: 0 | J51: 0 | K51: 0 | L51: 0 | M51: 0 | N51: 0 | O51: 0 | P51: 0 | Q51: 0 | R51: 0 | S51: 0
A52: 1 | B52: RE1323 | F52: Provincial governments | G52: 14 | I52: 0 | J52: 0 | K52: 0 | L52: 0 | M52: 0 | N52: 0 | O52: 0 | P52: 0 | Q52: 0 | R52: 0 | S52: 0
A53: 1 | B53: RE1324 | F53: Local governments | G53: 15 | I53: 0 | J53: 0 | K53: 0 | L53: 0 | M53: 0 | N53: 0 | O53: 0 | P53: 0 | Q53: 0 | R53: 0 | S53: 0
A54: 2 | B54: RE133 | F54: Skills development (SETAS only) | I54: =SUM(I55,I59) -> 312289 | J54: =SUM(J55,J59) -> 385679 | K54: 289595 | L54: 289595 | M54: 433503 | N54: 433503 | O54: 453878 | P54: 453878 | Q54: 474755 | R54: 474755 | S54: 0
A55: 2 | B55: RE1331 | F55: Skills development levies | I55: =SUM(I56:I58) -> 312289 | J55: =SUM(J56:J58) -> 385679 | K55: 289595 | L55: 289595 | M55: 433503 | N55: 433503 | O55: 453878 | P55: 453878 | Q55: 474755 | R55: 474755 | S55: 0
A56: 2 | B56: RE13311 | F56: Admin - 10.5% | I56: 40987 | J56: 50627 | K56: 38009 | L56: 38009 | M56: 56897 | N56: 56897 | O56: 59571 | P56: 59571 | Q56: 62311 | R56: 62311 | S56: 0
A57: 2 | B57: RE13312 | F57: Employer grant fund levy - 20% | I57: 78482 | J57: 96499 | K57: 72399 | L57: 72399 | M57: 108376 | N57: 108376 | O57: 113470 | P57: 113470 | Q57: 118689 | R57: 118689 | S57: 0
A58: 2 | B58: RE13313 | F58: Discretionary grants - 49.5% | I58: 192820 | J58: 238553 | K58: 179187 | L58: 179187 | M58: 268230 | N58: 268230 | O58: 280837 | P58: 280837 | Q58: 293755 | R58: 293755 | S58: 0
A59: 2 | B59: RE1332 | F59: National skills fund | I59: 0 | J59: 0 | K59: 0 | L59: 0 | M59: 0 | N59: 0 | O59: 0 | P59: 0 | Q59: 0 | R59: 0 | S59: 0
A60: 1 | B60: RE134 | F60: Higher education institutions | G60: 16 | I60: 0 | J60: 0 | K60: 0 | L60: 0 | M60: 0 | N60: 0 | O60: 0 | P60: 0 | Q60: 0 | R60: 0 | S60: 0
A61: 1 | B61: RE136 | F61: Foreign governments and international organisations | G61: 17 | I61: 0 | J61: 0 | K61: 0 | L61: 0 | M61: 0 | N61: 0 | O61: 0 | P61: 0 | Q61: 0 | R61: 0 | S61: 0
A62: 1 | B62: RE135 | F62: Local non-government donors | G62: 18 | I62: 0 | J62: 0 | K62: 0 | L62: 0 | M62: 0 | N62: 0 | O62: 0 | P62: 0 | Q62: 0 | R62: 0 | S62: 0
A63: 1 | B63: RE14 | F63: Tax benefit | G63: 25 | I63: 0 | J63: 0 | K63: 0 | L63: 0 | M63: 0 | N63: 0 | O63: 0 | P63: 0 | Q63: 0 | R63: 0 | S63: 0
A64: 1 | B64: RE15 | F64: Outside shareholders interest | G64: 26 | I64: 0 | J64: 0 | K64: 0 | L64: 0 | M64: 0 | N64: 0 | O64: 0 | P64: 0 | Q64: 0 | R64: 0 | S64: 0
A65: 1 | B65: RE16 | F65: Total revenue | I65: =SUM(I13:I14,I44,I63:I64) -> 360441 | J65: =SUM(J13:J14,J44,J63:J64) -> 450579 | K65: 321870 | L65: 321870 | M65: 461623 | N65: 461623 | O65: 483319 | P65: 483319 | Q65: 505550.43 | R65: 505550.43 | S65: 0 | U65: =IF(S65<R65/2,"Complete outer year budget","") -> Complete outer year budget
A66: 1
A67: 1 | F67: Check
A68: 1 | F68: Total revenue | I68: =I65 -> 360441 | J68: =J65 -> 450579 | K68: =K65 -> 321870 | L68: =L65 -> 321870 | M68: =M65 -> 461623 | N68: 461623 | O68: =O65 -> 483319 | P68: 483319 | Q68: 505550.43 | R68: 505550.43 | S68: 0
A69: 1 | F69: Total expenses | I69: ='Expend summary'!I140 -> 254244 | J69: ='Expend summary'!J140 -> 278676 | K69: ='Expend summary'!K140 -> 349967 | L69: ='Expend summary'!L140 -> 349967 | M69: ='Expend summary'!M140 -> 718950 | N69: ='Expend summary'!N140 -> 718950 | O69: ='Expend summary'!P140 -> 494423.793 | P69: ='Expend summary'!Q140 -> 494423.793 | Q69: ='Expend summary'!S140 -> 517168.2915 | R69: ='Expend summary'!T140 -> 517168.2915 | S69: ='Expend summary'!V140 -> 0
A70: 1 | F70: Surplus / (Deficit) | I70: =I68-I69 -> 106197 | J70: =J68-J69 -> 171903 | K70: =K68-K69 -> -28097 | L70: =L68-L69 -> -28097 | M70: -257327 | N70: -257327 | O70: =O68-O69 -> -11104.793 | P70: -11104.793 | Q70: -11617.86148 | R70: -11617.86148 | S70: 0
A71: 1 | F71: Annual report Surplus / (Deficit) | J71: 171903 | L71: -28097
A72: 1 | F72: Differences | J72: =ROUND(IF(J70-J71>0,IF(J70-J71<1,0,J70-J71),J70-J71),0) -> 0 | L72: =ROUND(IF(L70-L71>0,IF(L70-L71<1,0,L70-L71),L70-L71),0) -> 0
A73: 1

Sheet Admin
F6: PE No | G6: =Settings!O2 -> PE206
F7: Entity name | G7: =Settings!$E$2 -> Culture, Arts, Tourism, Hospitality and Sports Education and Training Authority
F9: Performance and operations information
A10: ItemCat | B10: Item code | C10: Hide/unhide | F10: Activity/Output/Outcome/Efficiency Indicator | G10: Priorities | I10: =MyYearM3 -> 2021/22 | J10: =MyYearM2 -> 2022/23 | K10: =MyYearM1 -> 2023/24 | L10: =MyYear0 -> 2024/25 | M10: =MyYearP1 -> 2025/26 | N10: =MyYearP2 -> 2026/27 | O10: =MyYearP3 -> 2027/28 | P10: Related Objectives | Q10: Add to 'Performance Indicators' Sheet | R10: Comments
A11: 1 | F11: % of employees that received training as per approved training plan | G11: Priority 3: Education, Skills and Health | H11: 0 | I11: 50% | J11: 80% | K11: 100% | L11: 0 | M11: 0 | N11: 0 | P11: Administration | Q11: No | R11: 0
A12: 1 | F12: % Achievement of the ICT Strategy as per implementation plan | G12: Priority 3: Education, Skills and Health | H12: 0 | I12: 60% | J12: 70% | K12: 80% | L12: 0 | M12: 0 | N12: 0 | P12: Administration | Q12: No | R12: 0
A13: 1 | F13: % reduction in cases of unauthorised Irregular and fruitless abd wasteful expenditure | G13: Priority 3: Education, Skills and Health | H13: 0 | I13: 50% | J13: 80% | K13: 85% | L13: 0 | M13: 0 | N13: 0 | P13: Administration | Q13: No | R13: 0
A14: 1 | F14: Number # of governance reports submitted to DHET | G14: Priority 3: Education, Skills and Health | H14: 0 | I14: 4 | J14: 4 | K14: 4 | L14: 0 | M14: 0 | N14: 0 | P14: Administration | Q14: No | R14: 0
A15: 1 | F15: Achivement of Risk Maturity level in accordance with Risk management framework | G15: Priority 3: Education, Skills and Health | H15: 0 | I15: 2 | J15: 3 | K15: 4 | L15: 4 | M15: 4 | N15: 4 | P15: Administration | Q15: No | R15: 0
A16: 1 | F16: # of careers guidance Interventions | G16: Priority 3: Education, Skills and Health | H16: 0 | I16: 18 | J16: 16 | K16: 20 | L16: 0 | M16: 0 | N16: 0 | P16: Administration | Q16: No | R16: 0
A17: 1 | F17: % Reduction in material misstatements | G17: Priority 3: Education, Skills and Health | H17: 0 | I17: NEW INDICATOR | J17: 70% | K17: 0 | L17: 0 | M17: 0 | N17: 0 | P17: Administration | Q17: No | R17: 0
A18: 1 | F18: Audit opinion received from the Auditor-General | G18: Priority 3: Education, Skills and Health | H18: 0 | I18: N/A | J18: Unqualified audit opinion | K18: Unqualified audit opinion | L18: Unqualified audit opinion | M18: Unqualified audit opinion | N18: Unqualified audit opinion | P18: 0 | Q18: 0 | R18: 0
A19: 1 | F19: 0 | G19: 0 | H19: 0 | I19: 0 | J19: 0 | K19: 0 | L19: 0 | M19: 0 | N19: 0 | P19: 0 | Q19: 0 | R19: 0
A20: 1 | F20: 0 | G20: 0 | H20: 0 | I20: 0 | J20: 0 | K20: 0 | L20: 0 | M20: 0 | N20: 0 | P20: 0 | Q20: 0 | R20: 0
A21: 1 | F21: 0 | G21: 0 | H21: 0 | I21: 0 | J21: 0 | K21: 0 | L21: 0 | M21: 0 | N21: 0 | P21: 0 | Q21: 0 | R21: 0
A22: 1 | F22: 0 | G22: 0 | H22: 0 | I22: 0 | J22: 0 | K22: 0 | L22: 0 | M22: 0 | N22: 0 | P22: 0 | Q22: 0 | R22: 0
A23: 1 | F23: 0 | G23: 0 | H23: 0 | I23: 0 | J23: 0 | K23: 0 | L23: 0 | M23: 0 | N23: 0 | P23: 0 | Q23: 0 | R23: 0
A24: 1 | F24: 0 | G24: 0 | H24: 0 | I24: 0 | J24: 0 | K24: 0 | L24: 0 | M24: 0 | N24: 0 | P24: 0 | Q24: 0 | R24: 0
A25: 1 | F25: 0 | G25: 0 | H25: 0 | I25: 0 | J25: 0 | K25: 0 | L25: 0 | M25: 0 | N25: 0 | P25: 0 | Q25: 0 | R25: 0
A26: 1 | F26: Notes:
A27: 1 | F27: Performance indicators are an explanation of objectives performance.
A28: 1 | F28: 1. They are specific measurements that track progress towards achieving the goals and objectives of an institution.
A29: 1 | F29: 2. Institutions should use performance indicators in the 2023/24 Annual Performance Plans and those in the 2024 ENE.
A30: 1 | F30: 3. Institutions should also indicate instances where targets are not affected by budget baseline reprioritisation.
A31: 1
A32: 1 | I32: =MyYearM3 -> 2021/22 | J32: =MyYearM2 -> 2022/23 | K32: =MyYearM1 -> 2023/24 | M32: =MyYear0 -> 2024/25 | P32: =MyYearP1 -> 2025/26 | S32: =MyYearP2 -> 2026/27 | V32: =MyYearP3 -> 2027/28
A33: 1 | F33: Expenses | I33: =Hist_year3RestatedAudited -> Audited outcome | J33: =Hist_year2RestatedAudited -> Audited outcome | K33: =Hist_year1Budget -> Budget | L33: =Hist_year1Audited -> Audited outcome | M33: =Cur_YearBudgEst -> Budget estimate | N33: =Cur_YearApprovedBudg -> Approved budget | O33: =Cur_YearChangeFrRevBudg -> Changes from budget estimate | P33: =MTEF1BudgEst -> Budget estimate | Q33: =MTEF1RevBudgEst -> Revised budget estimate | R33: =MTEF1_ChangeFrBudgEst -> Changes from budget estimate | S33: =MTEF2BudgEst -> Budget estimate | T33: =MTEF2RevBudgEst -> Revised budget estimate | U33: =MTEF2_ChangeFrBudgEst -> Changes from budget estimate | V33: =MTEF3PlanBudgetEst -> Planning budget estimate
A34: 1
A35: 1 | F35: Rand thousand
A36: 1 | F36: Objective/Activity
A37: 1 | F37: Administration | I37: 84944 | J37: 84497 | K37: 98381 | L37: 98381 | M37: 95623 | N37: 95623 | O37: =SUM(N37-M37) -> 0 | P37: 100117 | Q37: 100117 | R37: =SUM(Q37-P37) -> 0 | S37: 104723 | T37: 104723 | U37: =SUM(T37-S37) -> 0
A38: 1 | F38: Economic classification
A39: 1 | B39: EX11 | F39: Current payments | I39: =SUM(I40,I43,I98:I99,I105) -> 84944 | J39: 84497 | K39: 98381 | L39: 98381 | M39: 95623 | N39: 95623 | O39: =SUM(N39-M39) -> 0 | P39: =SUM(P40,P43,P98:P99,P105) -> 100117.322 | Q39: =SUM(Q40,Q43,Q98:Q99,Q105) -> 100117.322 | R39: =SUM(Q39-P39) -> 0 | S39: =SUM(S40,S43,S98:S99,S105) -> 104723.2768 | T39: =SUM(T40,T43,T98:T99,T105) -> 104723.2768 | U39: =SUM(T39-S39) -> 0 | V39: =SUM(V40,V43,V98:V99,V105) -> 0
A40: 1 | B40: EX111 | F40: Compensation of employees | I40: =SUM(I41:I42) -> 55861 | J40: 53821 | K40: 58197 | L40: 58197 | M40: 55169 | N40: 55169 | O40: =SUM(N40-M40) -> 0 | P40: =SUM(P41:P42) -> 57761.943 | Q40: =SUM(Q41:Q42) -> 57761.943 | R40: =SUM(Q40-P40) -> 0 | S40: =SUM(S41:S42) -> 60418.99238 | T40: =SUM(T41:T42) -> 60418.99238 | U40: =SUM(T40-S40) -> 0 | V40: =SUM(V41:V42) -> 0
A41: 1 | B41: EX1111 | F41: Salaries and wages | I41: 55861 | J41: 53821 | K41: 48868 | L41: 48868 | M41: 55169 | N41: 55169 | O41: =SUM(N41-M41) -> 0 | P41: 57761.943 | Q41: 57761.943 | R41: =SUM(Q41-P41) -> 0 | S41: 60418.99238 | T41: 60418.99238 | U41: =SUM(T41-S41) -> 0
A42: 1 | B42: EX1112 | F42: Social contributions | I42: 0 | J42: 0 | K42: 9329 | L42: 9329 | M42: 0 | N42: 0 | O42: =SUM(N42-M42) -> 0 | P42: 0 | Q42: 0 | R42: =SUM(Q42-P42) -> 0 | S42: 0 | T42: 0 | U42: =SUM(T42-S42) -> 0
A43: 1 | B43: EX112 | F43: Goods and services | I43: =SUM(I45:I54,I58:I61,I73,I75:I97) -> 25514 | J43: =SUM(J45:J54,J58:J61,J73,J75:J97) -> 27719 | K43: =SUM(K45:K54,K58:K61,K73,K75:K97) -> 37684 | L43: 37684 | M43: 37454 | N43: 37454 | O43: 0 | P43: =SUM(P45:P54,P58:P61,P73,P75:P97) -> 39214.379 | Q43: =SUM(Q45:Q54,Q58:Q61,Q73,Q75:Q97) -> 39214.379 | R43: =SUM(R45:R54,R58:R61,R73,R75:R97) -> 0 | S43: 41019.28443 | T43: 41019.28443 | U43: 0 | V43: 0 | W43: 0
A44: 1 | B44: EX000 | F44: Of which 1
A45: 1 | B45: EX1133 | F45: Administrative fees | I45: 14749 | J45: 8947 | K45: 13049 | L45: 13049 | M45: 12157 | N45: 12157 | O45: =SUM(N45-M45) -> 0 | P45: 12728.379 | Q45: 12728.379 | R45: =SUM(Q45-P45) -> 0 | S45: 13313.88443 | T45: 13313.88443 | U45: =SUM(T45-S45) -> 0
A46: 1 | B46: EX1134 | F46: Advertising | I46: 555 | J46: 1959 | K46: 897 | L46: 897 | M46: 400 | N46: 400 | O46: 0 | P46: 419 | Q46: 419 | R46: 0 | S46: 438 | T46: 438 | U46: 0
A47: 1 | B47: EX1135 | F47: Minor assets | I47: 0 | J47: 0 | K47: 0 | L47: 0 | M47: 0 | N47: 0 | O47: 0 | P47: 0 | Q47: 0 | R47: 0 | S47: 0 | T47: 0 | U47: 0
A48: 1 | B48: EX1136 | F48: Audit costs: External | I48: 3503 | J48: 4281 | K48: 3316 | L48: 3316 | M48: 4500 | N48: 4500 | O48: 0 | P48: 4712 | Q48: 4712 | R48: 0 | S48: 4928 | T48: 4928 | U48: 0
A49: 1 | B49: EX1139 | F49: Bursaries: Employees | I49: 0 | J49: 0 | K49: 0 | L49: 0 | M49: 0 | N49: 0 | O49: 0 | P49: 0 | Q49: 0 | R49: 0 | S49: 0 | T49: 0 | U49: 0
A50: 1 | B50: EX1140 | F50: Catering: Internal activities | I50: 0 | J50: 0 | K50: 0 | L50: 0 | M50: 0 | N50: 0 | O50: 0 | P50: 0 | Q50: 0 | R50: 0 | S50: 0 | T50: 0 | U50: 0
A51: 1 | B51: EX1122 | F51: Communication (G&S) | I51: 0 | J51: 0 | K51: 0 | L51: 0 | M51: 0 | N51: 0 | O51: 0 | P51: 0 | Q51: 0 | R51: 0 | S51: 0 | T51: 0 | U51: 0
A52: 1 | B52: EX1123 | F52: Computer services | I52: 0 | J52: 0 | K52: 0 | L52: 0 | M52: 0 | N52: 0 | O52: 0 | P52: 0 | Q52: 0 | R52: 0 | S52: 0 | T52: 0 | U52: 0
A53: 1 | B53: EX1124 | F53: Consultants: Business and advisory services | I53: 208 | J53: 3299 | K53: 4390 | L53: 4390 | M53: 4920 | N53: 4920 | O53: 0 | P53: 5151 | Q53: 5151 | R53: 0 | S53: 5388 | T53: 5388 | U53: 0
A54: 1 | B54: EX1180 | F54: Infrastructure and planning services | I54: =SUM(I55:I57) -> 0 | J54: 0 | K54: 0 | L54: 0 | M54: 0 | N54: 0 | O54: =SUM(N54-M54) -> 0 | P54: =SUM(P55:P57) -> 0 | Q54: =SUM(Q55:Q57) -> 0 | R54: =SUM(Q54-P54) -> 0 | S54: =SUM(S55:S57) -> 0 | T54: =SUM(T55:T57) -> 0 | U54: =SUM(T54-S54) -> 0 | V54: =SUM(V55:V57) -> 0
A55: 1 | B55: EX11801 | F55: Maintenance and repairs: Buildings: Consultants | I55: 0 | J55: 0 | K55: 0 | L55: 0 | M55: 0 | N55: 0 | O55: =SUM(N55-M55) -> 0 | P55: 0 | Q55: 0 | R55: =SUM(Q55-P55) -> 0 | S55: 0 | T55: 0 | U55: 0
A56: 1 | B56: EX11802 | F56: Maintenance and repairs: Other fixed structures: Consultants | I56: 0 | J56: 0 | K56: 0 | L56: 0 | M56: 0 | N56: 0 | O56: 0 | P56: 0 | Q56: 0 | R56: 0 | S56: 0 | T56: 0 | U56: 0
A57: 1 | B57: EX11803 | F57: Other | I57: 0 | J57: 0 | K57: 0 | L57: 0 | M57: 0 | N57: 0 | O57: 0 | P57: 0 | Q57: 0 | R57: 0 | S57: 0 | T57: 0 | U57: 0
A58: 1 | B58: EX1164 | F58: Laboratory services | I58: 0 | J58: 0 | K58: 0 | L58: 0 | M58: 0 | N58: 0 | O58: 0 | P58: 0 | Q58: 0 | R58: 0 | S58: 0 | T58: 0 | U58: 0
A59: 1 | B59: EX1162 | F59: Legal services (G&S) | I59: 1267 | J59: 662 | K59: 1200 | L59: 1200 | M59: 1500 | N59: 1500 | O59: 0 | P59: 1571 | Q59: 1571 | R59: 0 | S59: 1643 | T59: 1643 | U59: 0
A60: 1 | B60: EX1165 | F60: Science and technological services | I60: 0 | J60: 0 | K60: 0 | L60: 0 | M60: 0 | N60: 0 | O60: 0 | P60: 0 | Q60: 0 | R60: 0 | S60: 0 | T60: 0 | U60: 0
A61: 1 | B61: EX1125 | F61: Contractors | I61: =SUM(I62:I66,I72) -> 296 | J61: 243 | K61: 630 | L61: 630 | M61: 325 | N61: 325 | O61: =SUM(N61-M61) -> 0 | P61: =SUM(P62:P66,P72) -> 340 | Q61: =SUM(Q62:Q66,Q72) -> 340 | R61: =SUM(Q61-P61) -> 0 | S61: =SUM(S62:S66,S72) -> 357 | T61: =SUM(T62:T66,T72) -> 357 | U61: 0 | V61: =SUM(V62:V66,V72) -> 0
A62: 1 | B62: EX11251 | F62: Maintenance and repairs of other fixed structures | I62: 234 | J62: 233 | K62: 130 | L62: 130 | M62: 310 | N62: 310 | O62: 0 | P62: 325 | Q62: 325 | R62: 0 | S62: 340 | T62: 340 | U62: 0
A63: 1 | B63: EX11252 | F63: Maintenance and repairs of other machinery and equipment | I63: 0 | J63: 0 | K63: 0 | L63: 0 | M63: 0 | N63: 0 | O63: 0 | P63: 0 | Q63: 0 | R63: 0 | S63: 0 | T63: 0 | U63: 0
A64: 1 | B64: EX11253 | F64: Maintenance and repairs of heritage buildings | I64: 0 | J64: 0 | K64: 0 | L64: 0 | M64: 0 | N64: 0 | O64: 0 | P64: 0 | Q64: 0 | R64: 0 | S64: 0 | T64: 0 | U64: 0
A65: 1 | B65: EX11254 | F65: Maintenance and repairs of other heritage fixed structures | I65: 0 | J65: 0 | K65: 0 | L65: 0 | M65: 0 | N65: 0 | O65: 0 | P65: 0 | Q65: 0 | R65: 0 | S65: 0 | T65: 0 | U65: 0
A66: 5 | B66: EX11255 | F66: South african social security agency payment contractors | I66: =SUM(I67:I71) -> 0 | J66: 0 | K66: 0 | L66: 0 | M66: 0 | N66: 0 | O66: 0 | P66: =SUM(P67:P71) -> 0 | Q66: =SUM(Q67:Q71) -> 0 | R66: 0 | S66: =SUM(S67:S71) -> 0 | T66: =SUM(T67:T71) -> 0 | U66: 0 | V66: =SUM(V67:V71) -> 0
A67: 5 | B67: EX112551 | F67: SASSA Admin fees | I67: 0 | J67: 0 | K67: 0 | L67: 0 | M67: 0 | N67: 0 | O67: =SUM(N67-M67) -> 0 | P67: 0 | Q67: 0 | R67: =SUM(Q67-P67) -> 0 | S67: 0 | T67: 0 | U67: =SUM(T67-S67) -> 0
A68: 5 | B68: EX112552 | F68: SASSA Bankcard fees | I68: 0 | J68: 0 | K68: 0 | L68: 0 | M68: 0 | N68: 0 | O68: 0 | P68: 0 | Q68: 0 | R68: 0 | S68: 0 | T68: 0 | U68: 0
A69: 5 | B69: EX112553 | F69: SASSA registration fees | I69: 0 | J69: 0 | K69: 0 | L69: 0 | M69: 0 | N69: 0 | O69: 0 | P69: 0 | Q69: 0 | R69: 0 | S69: 0 | T69: 0 | U69: 0
A70: 5 | B70: EX112554 | F70: SASSA beneficiary fees | I70: 0 | J70: 0 | K70: 0 | L70: 0 | M70: 0 | N70: 0 | O70: 0 | P70: 0 | Q70: 0 | R70: 0 | S70: 0 | T70: 0 | U70: 0
A71: 5 | B71: EX112555 | F71: SASSA help desk fees | I71: 0 | J71: 0 | K71: 0 | L71: 0 | M71: 0 | N71: 0 | O71: 0 | P71: 0 | Q71: 0 | R71: 0 | S71: 0 | T71: 0 | U71: 0
A72: 1 | B72: EX11256 | F72: Other | I72: 62 | J72: 10 | K72: 500 | L72: 500 | M72: 15 | N72: 15 | O72: 0 | P72: 15 | Q72: 15 | R72: 0 | S72: 17 | T72: 17 | U72: 0
A73: 1 | B73: EX1121 | F73: Agency and support/outsourced services | I73: 0 | J73: 0 | K73: 0 | L73: 0 | M73: 0 | N73: 0 | O73: 0 | P73: 0 | Q73: 0 | R73: 0 | S73: 0 | T73: 0 | U73: 0
A74: 5 | B74: EX11211 | F74: Of Which: Medical assessments | I74: 0 | J74: 0 | K74: 0 | L74: 0 | M74: 0 | N74: 0 | O74: 0 | P74: 0 | Q74: 0 | R74: 0 | S74: 0 | T74: 0 | U74: 0
A75: 1 | B75: EX1161 | F75: Entertainment | I75: 7 | J75: 22 | K75: 102 | L75: 102 | M75: 29 | N75: 29 | O75: 0 | P75: 30 | Q75: 30 | R75: 0 | S75: 32 | T75: 32 | U75: 0
A76: 1 | B76: EX1166 | F76: Fleet services (including government motor transport) | I76: 0 | J76: 0 | K76: 0 | L76: 0 | M76: 0 | N76: 0 | O76: 0 | P76: 0 | Q76: 0 | R76: 0 | S76: 0 | T76: 0 | U76: 0
A77: 1 | B77: EX1167 | F77: Housing | I77: 0 | J77: 0 | K77: 0 | L77: 0 | M77: 0 | N77: 0 | O77: 0 | P77: 0 | Q77: 0 | R77: 0 | S77: 0 | T77: 0 | U77: 0
A78: 1 | B78: EX1168 | F78: Inventory: Clothing material and accessories | I78: 0 | J78: 0 | K78: 0 | L78: 0 | M78: 0 | N78: 0 | O78: 0 | P78: 0 | Q78: 0 | R78: 0 | S78: 0 | T78: 0 | U78: 0
A79: 1 | B79: EX1169 | F79: Inventory: Farming supplies | I79: 0 | J79: 0 | K79: 0 | L79: 0 | M79: 0 | N79: 0 | O79: 0 | P79: 0 | Q79: 0 | R79: 0 | S79: 0 | T79: 0 | U79: 0
A80: 1 | B80: EX1170 | F80: Inventory: Food and food supplies | I80: 0 | J80: 0 | K80: 0 | L80: 0 | M80: 0 | N80: 0 | O80: 0 | P80: 0 | Q80: 0 | R80: 0 | S80: 0 | T80: 0 | U80: 0
A81: 1 | B81: EX1171 | F81: Inventory: Fuel, oil and gas | I81: 0 | J81: 0 | K81: 0 | L81: 0 | M81: 0 | N81: 0 | O81: 0 | P81: 0 | Q81: 0 | R81: 0 | S81: 0 | T81: 0 | U81: 0
A82: 1 | B82: EX1172 | F82: Inventory: Learner and teacher support material | I82: 0 | J82: 0 | K82: 0 | L82: 0 | M82: 0 | N82: 0 | O82: 0 | P82: 0 | Q82: 0 | R82: 0 | S82: 0 | T82: 0 | U82: 0
A83: 1 | B83: EX1126 | F83: Inventory: Materials and supplies | I83: 0 | J83: 0 | K83: 0 | L83: 0 | M83: 0 | N83: 0 | O83: 0 | P83: 0 | Q83: 0 | R83: 0 | S83: 0 | T83: 0 | U83: 0
A84: 1 | B84: EX1173 | F84: Inventory: Medical supplies | I84: 0 | J84: 0 | K84: 0 | L84: 0 | M84: 0 | N84: 0 | O84: 0 | P84: 0 | Q84: 0 | R84: 0 | S84: 0 | T84: 0 | U84: 0
A85: 1 | B85: EX1174 | F85: Inventory: Medicine | I85: 0 | J85: 0 | K85: 0 | L85: 0 | M85: 0 | N85: 0 | O85: 0 | P85: 0 | Q85: 0 | R85: 0 | S85: 0 | T85: 0 | U85: 0
A86: 1 | B86: EX1175 | F86: Medsas inventory interface | I86: 0 | J86: 0 | K86: 0 | L86: 0 | M86: 0 | N86: 0 | O86: 0 | P86: 0 | Q86: 0 | R86: 0 | S86: 0 | T86: 0 | U86: 0
A87: 1 | B87: EX1176 | F87: Inventory: Other supplies | I87: 0 | J87: 0 | K87: 0 | L87: 0 | M87: 0 | N87: 0 | O87: 0 | P87: 0 | Q87: 0 | R87: 0 | S87: 0 | T87: 0 | U87: 0
A88: 1 | B88: EX1177 | F88: Consumable supplies | I88: 0 | J88: 0 | K88: 0 | L88: 0 | M88: 0 | N88: 0 | O88: 0 | P88: 0 | Q88: 0 | R88: 0 | S88: 0 | T88: 0 | U88: 0
A89: 1 | B89: EX1144 | F89: Consumables: Stationery, printing and office supplies | I89: 0 | J89: 0 | K89: 0 | L89: 0 | M89: 0 | N89: 0 | O89: 0 | P89: 0 | Q89: 0 | R89: 0 | S89: 0 | T89: 0 | U89: 0
A90: 1 | B90: EX1127 | F90: Operating leases | I90: 3593 | J90: 4122 | K90: 5800 | L90: 5800 | M90: 3520 | N90: 3520 | O90: 0 | P90: 3685 | Q90: 3685 | R90: 0 | S90: 3855.4 | T90: 3855.4 | U90: 0
A91: 1 | B91: EX1178 | F91: Rental and hiring | I91: 0 | J91: 0 | K91: 0 | L91: 0 | M91: 0 | N91: 0 | O91: 0 | P91: 0 | Q91: 0 | R91: 0 | S91: 0 | T91: 0 | U91: 0
A92: 1 | B92: EX1145 | F92: Property payments | I92: 0 | J92: 0 | K92: 0 | L92: 0 | M92: 0 | N92: 0 | O92: 0 | P92: 0 | Q92: 0 | R92: 0 | S92: 0 | T92: 0 | U92: 0
A93: 1 | B93: EX1179 | F93: Transport provided: Internal activities | I93: 0 | J93: 0 | K93: 0 | L93: 0 | M93: 0 | N93: 0 | O93: 0 | P93: 0 | Q93: 0 | R93: 0 | S93: 0 | T93: 0 | U93: 0
A94: 1 | B94: EX1131 | F94: Travel and subsistence | I94: 325 | J94: 584 | K94: 1250 | L94: 1250 | M94: 1271 | N94: 1271 | O94: 0 | P94: 1331 | Q94: 1331 | R94: 0 | S94: 1392 | T94: 1392 | U94: 0
A95: 1 | B95: EX1130 | F95: Training and development | I95: 919 | J95: 1238 | K95: 2150 | L95: 2150 | M95: 3260 | N95: 3260 | O95: 0 | P95: 3413 | Q95: 3413 | R95: 0 | S95: 3570 | T95: 3570 | U95: 0
A96: 1 | B96: EX1132 | F96: Operating payments | I96: 0 | J96: 2262 | K96: 2900 | L96: 2900 | M96: 2500 | N96: 2500 | O96: 0 | P96: 3216 | Q96: 3216 | R96: 0 | S96: 3364 | T96: 3364 | U96: 0
A97: 1 | B97: EX1146 | F97: Venues and facilities | I97: 92 | J97: 100 | K97: 2000 | L97: 2000 | M97: 3072 | N97: 3072 | O97: 0 | P97: 2618 | Q97: 2618 | R97: 0 | S97: 2738 | T97: 2738 | U97: 0
A98: 1 | B98: EX113 | F98: Depreciation | I98: 2340 | J98: 2446 | K98: 2500 | L98: 2500 | M98: 3000 | N98: 3000 | O98: 0 | P98: 3141 | Q98: 3141 | R98: 0 | S98: 3285 | T98: 3285 | U98: 0
A99: 1 | B99: EX114 | F99: Losses from | I99: =SUM(I100:I101,I104) -> 1229 | J99: 511 | K99: 0 | L99: 0 | M99: 0 | N99: 0 | O99: =SUM(N99-M99) -> 0 | P99: =SUM(P100:P101,P104) -> 0 | Q99: =SUM(Q100:Q101,Q104) -> 0 | R99: =SUM(Q99-P99) -> 0 | S99: =SUM(S100:S101,S104) -> 0 | T99: =SUM(T100:T101,T104) -> 0 | U99: =SUM(T99-S99) -> 0 | V99: =SUM(V100:V101,V104) -> 0
A100: 1 | B100: EX1141 | F100: Sale of fixed assets | I100: 1229 | J100: 511 | K100: 0 | L100: 0 | M100: 0 | N100: 0 | O100: 0 | P100: 0 | Q100: 0 | R100: 0 | S100: 0 | T100: 0 | U100: 0
A101: 1 | B101: EX1142 | F101: Impairments and adjustments to fair value | I101: =SUM(I102:I103) -> 0 | J101: 0 | K101: 0 | L101: 0 | M101: 0 | N101: 0 | O101: 0 | P101: =SUM(P102:P103) -> 0 | Q101: =SUM(Q102:Q103) -> 0 | R101: 0 | S101: =SUM(S102:S103) -> 0 | T101: =SUM(T102:T103) -> 0 | U101: 0 | V101: =SUM(V102:V103) -> 0
A102: 1 | B102: EX11421 | F102: Adjustments to fair value of assets | I102: 0 | J102: 0 | K102: 0 | L102: 0 | M102: 0 | N102: 0 | O102: 0 | P102: 0 | Q102: 0 | R102: 0 | S102: 0 | T102: 0 | U102: 0
A103: 1 | B103: EX11422 | F103: Impairments to assets | I103: 0 | J103: 0 | K103: 0 | L103: 0 | M103: 0 | N103: 0 | O103: 0 | P103: 0 | Q103: 0 | R103: 0 | S103: 0 | T103: 0 | U103: 0
A104: 1 | B104: EX1143 | F104: Other | I104: 0 | J104: 0 | K104: 0 | L104: 0 | M104: 0 | N104: 0 | O104: 0 | P104: 0 | Q104: 0 | R104: 0 | S104: 0 | T104: 0 | U104: 0
A105: 1 | B105: EX115 | F105: Interest, dividends and rent on land | I105: =SUM(I106:I108) -> 0 | J105: 0 | K105: 0 | L105: 0 | M105: 0 | N105: 0 | O105: 0 | P105: =SUM(P106:P108) -> 0 | Q105: =SUM(Q106:Q108) -> 0 | R105: 0 | S105: =SUM(S106:S108) -> 0 | T105: =SUM(T106:T108) -> 0 | U105: 0 | V105: =SUM(V106:V108) -> 0
A106: 1 | B106: EX1151 | F106: Interest | I106: 0 | J106: 0 | K106: 0 | L106: 0 | M106: 0 | N106: 0 | O106: 0 | P106: 0 | Q106: 0 | R106: 0 | S106: 0 | T106: 0 | U106: 0
A107: 1 | B107: EX1152 | F107: Dividends | I107: 0 | J107: 0 | K107: 0 | L107: 0 | M107: 0 | N107: 0 | O107: 0 | P107: 0 | Q107: 0 | R107: 0 | S107: 0 | T107: 0 | U107: 0
A108: 1 | B108: EX1153 | F108: Rent on land | I108: 0 | J108: 0 | K108: 0 | L108: 0 | M108: 0 | N108: 0 | O108: 0 | P108: 0 | Q108: 0 | R108: 0 | S108: 0 | T108: 0 | U108: 0
A109: 1 | B109: EX12 | F109: Transfers and subsidies | I109: =SUM(I110,I121,I132:I135) -> 0 | J109: 0 | K109: 0 | L109: 0 | M109: 0 | N109: 0 | O109: 0 | P109: =SUM(P110,P121,P132:P135) -> 0 | Q109: =SUM(Q110,Q121,Q132:Q135) -> 0 | R109: 0 | S109: =SUM(S110,S121,S132:S135) -> 0 | T109: =SUM(T110,T121,T132:T135) -> 0 | U109: 0 | V109: =SUM(V110,V121,V132:V135) -> 0
A110: 2 | B110: EX121 | F110: Employer Grant (SETAs only) | I110: =SUM(I111,I117,I120) -> 0 | J110: 0 | K110: 0 | L110: 0 | M110: 0 | N110: 0 | O110: 0 | P110: =SUM(P111,P117,P120) -> 0 | Q110: =SUM(Q111,Q117,Q120) -> 0 | R110: 0 | S110: =SUM(S111,S117,S120) -> 0 | T110: =SUM(T111,T117,T120) -> 0 | U110: 0 | V110: =SUM(V111,V117,V120) -> 0
A111: 1 | B111: EX122 | F111: Other government units | I111: =SUM(I112:I116) -> 0 | J111: 0 | K111: 0 | L111: 0 | M111: 0 | N111: 0 | O111: 0 | P111: =SUM(P112:P116) -> 0 | Q111: =SUM(Q112:Q116) -> 0 | R111: 0 | S111: =SUM(S112:S116) -> 0 | T111: =SUM(T112:T116) -> 0 | U111: 0 | V111: =SUM(V112:V116) -> 0
A112: 1 | B112: EX1221 | F112: National government | I112: 0 | J112: 0 | K112: 0 | L112: 0 | M112: 0 | N112: 0 | O112: 0 | P112: 0 | Q112: 0 | R112: 0 | S112: 0 | T112: 0 | U112: 0
A113: 1 | B113: EX1222 | F113: Departmental agencies and accounts | I113: 0 | J113: 0 | K113: 0 | L113: 0 | M113: 0 | N113: 0 | O113: 0 | P113: 0 | Q113: 0 | R113: 0 | S113: 0 | T113: 0 | U113: 0
A114: 1 | B114: EX1223 | F114: Provinces | I114: 0 | J114: 0 | K114: 0 | L114: 0 | M114: 0 | N114: 0 | O114: 0 | P114: 0 | Q114: 0 | R114: 0 | S114: 0 | T114: 0 | U114: 0
A115: 1 | B115: EX1224 | F115: Municipalities | I115: 0 | J115: 0 | K115: 0 | L115: 0 | M115: 0 | N115: 0 | O115: 0 | P115: 0 | Q115: 0 | R115: 0 | S115: 0 | T115: 0 | U115: 0
A116: 2 | B116: EX1225 | F116: National Skills Fund | I116: 0 | J116: 0 | K116: 0 | L116: 0 | M116: 0 | N116: 0 | O116: 0 | P116: 0 | Q116: 0 | R116: 0 | S116: 0 | T116: 0 | U116: 0
A117: 1 | B117: EX123 | F117: Public corporations and private enterprises (subsidies and other transfers) | I117: =SUM(I118:I119) -> 0 | J117: 0 | K117: 0 | L117: 0 | M117: 0 | N117: 0 | O117: 0 | P117: =SUM(P118:P119) -> 0 | Q117: =SUM(Q118:Q119) -> 0 | R117: 0 | S117: =SUM(S118:S119) -> 0 | T117: =SUM(T118:T119) -> 0 | U117: 0 | V117: =SUM(V118:V119) -> 0
A118: 1 | B118: EX1231 | F118: Public corporations | I118: 0 | J118: 0 | K118: 0 | L118: 0 | M118: 0 | N118: 0 | O118: 0 | P118: 0 | Q118: 0 | R118: 0 | S118: 0 | T118: 0 | U118: 0
A119: 1 | B119: EX1232 | F119: Private enterprises | I119: 0 | J119: 0 | K119: 0 | L119: 0 | M119: 0 | N119: 0 | O119: 0 | P119: 0 | Q119: 0 | R119: 0 | S119: 0 | T119: 0 | U119: 0
A120: 2 | B120: EX124 | F120: Households and non government units | I120: 0 | J120: 0 | K120: 0 | L120: 0 | M120: 0 | N120: 0 | O120: 0 | P120: 0 | Q120: 0 | R120: 0 | S120: 0 | T120: 0 | U120: 0
A121: 2 | B121: EX125 | F121: Discretionary Grant (SETAs only) | I121: =SUM(I122,I128,I131) -> 0 | J121: 0 | K121: 0 | L121: 0 | M121: 0 | N121: 0 | O121: 0 | P121: =SUM(P122,P128,P131) -> 0 | Q121: =SUM(Q122,Q128,Q131) -> 0 | R121: 0 | S121: =SUM(S122,S128,S131) -> 0 | T121: =SUM(T122,T128,T131) -> 0 | U121: 0 | V121: =SUM(V122,V128,V131) -> 0
A122: 2 | B122: EX126 | F122: Other government units | I122: =SUM(I123:I127) -> 0 | J122: 0 | K122: 0 | L122: 0 | M122: 0 | N122: 0 | O122: 0 | P122: =SUM(P123:P127) -> 0 | Q122: =SUM(Q123:Q127) -> 0 | R122: 0 | S122: =SUM(S123:S127) -> 0 | T122: =SUM(T123:T127) -> 0 | U122: 0 | V122: =SUM(V123:V127) -> 0
A123: 2 | B123: EX1261 | F123: National government | I123: 0 | J123: 0 | K123: 0 | L123: 0 | M123: 0 | N123: 0 | O123: 0 | P123: 0 | Q123: 0 | R123: 0 | S123: 0 | T123: 0 | U123: 0
A124: 2 | B124: EX1262 | F124: Departmental agencies and accounts | I124: 0 | J124: 0 | K124: 0 | L124: 0 | M124: 0 | N124: 0 | O124: 0 | P124: 0 | Q124: 0 | R124: 0 | S124: 0 | T124: 0 | U124: 0
A125: 2 | B125: EX1263 | F125: Provinces | I125: 0 | J125: 0 | K125: 0 | L125: 0 | M125: 0 | N125: 0 | O125: 0 | P125: 0 | Q125: 0 | R125: 0 | S125: 0 | T125: 0 | U125: 0
A126: 2 | B126: EX1264 | F126: Municipalities | I126: 0 | J126: 0 | K126: 0 | L126: 0 | M126: 0 | N126: 0 | O126: 0 | P126: 0 | Q126: 0 | R126: 0 | S126: 0 | T126: 0 | U126: 0
A127: 2 | B127: EX1265 | F127: National Skills Fund | I127: 0 | J127: 0 | K127: 0 | L127: 0 | M127: 0 | N127: 0 | O127: 0 | P127: 0 | Q127: 0 | R127: 0 | S127: 0 | T127: 0 | U127: 0
A128: 2 | B128: EX127 | F128: Public corporations and private enterprises (subsidies and other transfers) | I128: =SUM(I129:I130) -> 0 | J128: 0 | K128: 0 | L128: 0 | M128: 0 | N128: 0 | O128: 0 | P128: =SUM(P129:P130) -> 0 | Q128: =SUM(Q129:Q130) -> 0 | R128: 0 | S128: =SUM(S129:S130) -> 0 | T128: =SUM(T129:T130) -> 0 | U128: 0 | V128: =SUM(V129:V130) -> 0
A129: 2 | B129: EX1271 | F129: Public corporations | I129: 0 | J129: 0 | K129: 0 | L129: 0 | M129: 0 | N129: 0 | O129: 0 | P129: 0 | Q129: 0 | R129: 0 | S129: 0 | T129: 0 | U129: =SUM(T129-S129) -> 0
A130: 2 | B130: EX1272 | F130: Private enterprises | I130: 0 | J130: 0 | K130: 0 | L130: 0 | M130: 0 | N130: 0 | O130: 0 | P130: 0 | Q130: 0 | R130: 0 | S130: 0 | T130: 0 | U130: 0
A131: 2 | B131: EX128 | F131: Households and non government units | I131: 0 | J131: 0 | K131: 0 | L131: 0 | M131: 0 | N131: 0 | O131: 0 | P131: 0 | Q131: 0 | R131: 0 | S131: 0 | T131: 0 | U131: 0
A132: 1 | B132: EX129 | F132: Higher education institutions | I132: 0 | J132: 0 | K132: 0 | L132: 0 | M132: 0 | N132: 0 | O132: 0 | P132: 0 | Q132: 0 | R132: 0 | S132: 0 | T132: 0 | U132: 0
A133: 1 | B133: EX130 | F133: Foreign governments and international organisations | I133: 0 | J133: 0 | K133: 0 | L133: 0 | M133: 0 | N133: 0 | O133: 0 | P133: 0 | Q133: 0 | R133: 0 | S133: 0 | T133: 0 | U133: 0
A134: 1 | B134: EX131 | F134: Non-profit institutions | I134: 0 | J134: 0 | K134: 0 | L134: 0 | M134: 0 | N134: 0 | O134: 0 | P134: 0 | Q134: 0 | R134: 0 | S134: 0 | T134: 0 | U134: 0
A135: 1 | B135: EX132 | F135: Households | I135: =SUM(I136:I137) -> 0 | J135: 0 | K135: 0 | L135: 0 | M135: 0 | N135: 0 | O135: =SUM(N135-M135) -> 0 | P135: =SUM(P136:P137) -> 0 | Q135: =SUM(Q136:Q137) -> 0 | R135: =SUM(Q135-P135) -> 0 | S135: =SUM(S136:S137) -> 0 | T135: =SUM(T136:T137) -> 0 | U135: =SUM(T135-S135) -> 0 | V135: =SUM(V136:V137) -> 0
A136: 1 | B136: EX1301 | F136: Social benefits | I136: 0 | J136: 0 | K136: 0 | L136: 0 | M136: 0 | N136: 0 | O136: 0 | P136: 0 | Q136: 0 | R136: 0 | S136: 0 | T136: 0 | U136: 0
A137: 1 | B137: EX1302 | F137: Other transfers to households | I137: 0 | J137: 0 | K137: 0 | L137: 0 | M137: 0 | N137: 0 | O137: 0 | P137: 0 | Q137: 0 | R137: 0 | S137: 0 | T137: 0 | U137: 0
A138: 1 | B138: EX13 | F138: Tax payment | I138: 0 | J138: 0 | K138: 0 | L138: 0 | M138: 0 | N138: 0 | O138: 0 | P138: 0 | Q138: 0 | R138: 0 | S138: 0 | T138: 0 | U138: 0
A139: 1 | B139: EX14 | F139: Outside shareholders Interest | I139: 0 | J139: 0 | K139: 0 | L139: 0 | M139: 0 | N139: 0 | O139: 0 | P139: 0 | Q139: 0 | R139: 0 | S139: 0 | T139: 0 | U139: 0
A140: 1 | B140: EX15 | F140: Total Expenditure | I140: =SUM(I39,I109,I138:I139) -> 84944 | J140: 84497 | K140: 98381 | L140: 98381 | M140: 95623 | N140: 95623 | O140: 0 | P140: =SUM(P39,P109,P138:P139) -> 100117.322 | Q140: =SUM(Q39,Q109,Q138:Q139) -> 100117.322 | R140: 0 | S140: =SUM(S39,S109,S138:S139) -> 104723.2768 | T140: =SUM(T39,T109,T138:T139) -> 104723.2768 | U140: 0 | V140: =SUM(V39,V109,V138:V139) -> 0
A141: 1
A142: 1 | F142: Objective less Expenditure | I142: =ROUND(IF(I37-I140>0,IF(I37-I140<1,0,I37-I140),I37-I140),0) -> 0 | J142: 0 | L142: 0 | M142: 0 | N142: 0 | O142: =ROUND(IF(O37-O140>0,IF(O37-O140<1,0,O37-O140),O37-O140),0) -> 0 | P142: 0 | Q142: 0 | R142: 0 | S142: 0 | T142: 0 | U142: 0 | V142: 0
A143: 1

Sheet 2
F6: PE No | G6: =Settings!O2 -> PE206
F7: Entity name | G7: =Settings!$E$2 -> Culture, Arts, Tourism, Hospitality and Sports Education and Training Authority
F9: Performance and operations information
A10: ItemCat | B10: Item code | C10: Hide/unhide | F10: Activity/Output/Outcome/Efficiency Indicator | G10: Priorities | I10: =MyYearM3 -> 2021/22 | J10: =MyYearM2 -> 2022/23 | K10: =MyYearM1 -> 2023/24 | L10: =MyYear0 -> 2024/25 | M10: =MyYearP1 -> 2025/26 | N10: =MyYearP2 -> 2026/27 | O10: =MyYearP3 -> 2027/28 | P10: Related Objectives | Q10: Add to 'Performance Indicators' Sheet | R10: Comments
A11: 1 | F11: Per cent research agenda outputs achieved | G11: Priority 3: Education, Skills and Health | H11: 0 | I11: 50 per cent | J11: 70 per cent | K11: 0 | L11: 0 | M11: 0 | N11: 0 | P11: Skills Planning | Q11: Yes | R11: 0
A12: 1 | F12: Researched SSP approved by the AA | G12: Priority 3: Education, Skills and Health | H12: 0 | I12: 1 | J12: 1 | K12: 0 | L12: 0 | M12: 0 | N12: 0 | P12: Skills Planning | Q12: Yes | R12: 0
A13: 1 | F13: Number of performance information report produced | G13: Priority 3: Education, Skills and Health | H13: 0 | I13: 4 | J13: 4 | K13: 0 | L13: 0 | M13: 0 | N13: 0 | P13: Skills Planning | Q13: Yes | R13: 0
A14: 1 | F14: # of research and evaluation reports on skills capacity within the sector | G14: Priority 3: Education, Skills and Health | H14: 0 | I14: 100% | J14: 7 | K14: 7 | L14: 4 | M14: 5 | N14: 5 | P14: Skills Planning | Q14: Yes | R14: 0
A15: 1 | F15: 0 | G15: 0 | H15: 0 | I15: 0 | J15: 0 | K15: 0 | L15: 0 | M15: 0 | N15: 0 | P15: 0 | Q15: 0 | R15: 0
A16: 1 | F16: 0 | G16: 0 | H16: 0 | I16: 0 | J16: 0 | K16: 0 | L16: 0 | M16: 0 | N16: 0 | P16: 0 | Q16: 0 | R16: 0
A17: 1 | F17: 0 | G17: 0 | H17: 0 | I17: 0 | J17: 0 | K17: 0 | L17: 0 | M17: 0 | N17: 0 | P17: 0 | Q17: 0 | R17: 0
A18: 1 | F18: 0 | G18: 0 | H18: 0 | I18: 0 | J18: 0 | K18: 0 | L18: 0 | M18: 0 | N18: 0 | P18: 0 | Q18: 0 | R18: 0
A19: 1 | F19: 0 | G19: 0 | H19: 0 | I19: 0 | J19: 0 | K19: 0 | L19: 0 | M19: 0 | N19: 0 | P19: 0 | Q19: 0 | R19: 0
A20: 1 | F20: 0 | G20: 0 | H20: 0 | I20: 0 | J20: 0 | K20: 0 | L20: 0 | M20: 0 | N20: 0 | P20: 0 | Q20: 0 | R20: 0
A21: 1 | F21: 0 | G21: 0 | H21: 0 | I21: 0 | J21: 0 | K21: 0 | L21: 0 | M21: 0 | N21: 0 | P21: 0 | Q21: 0 | R21: 0
A22: 1 | F22: 0 | G22: 0 | H22: 0 | I22: 0 | J22: 0 | K22: 0 | L22: 0 | M22: 0 | N22: 0 | P22: 0 | Q22: 0 | R22: 0
A23: 1 | F23: 0 | G23: 0 | H23: 0 | I23: 0 | J23: 0 | K23: 0 | L23: 0 | M23: 0 | N23: 0 | P23: 0 | Q23: 0 | R23: 0
A24: 1 | F24: 0 | G24: 0 | H24: 0 | I24: 0 | J24: 0 | K24: 0 | L24: 0 | M24: 0 | N24: 0 | P24: 0 | Q24: 0 | R24: 0
A25: 1 | F25: 0 | G25: 0 | H25: 0 | I25: 0 | J25: 0 | K25: 0 | L25: 0 | M25: 0 | N25: 0 | P25: 0 | Q25: 0 | R25: 0
A26: 1 | F26: Notes:
A27: 1 | F27: Performance indicators are an explanation of objectives performance.
A28: 1 | F28: 1. They are specific measurements that track progress towards achieving the goals and objectives of an institution.
A29: 1 | F29: 2. Institutions should use performance indicators in the 2023/24 Annual Performance Plans and those in the 2024 ENE.
A30: 1 | F30: 3. Institutions should also indicate instances where targets are not affected by budget baseline reprioritisation.
A31: 1
A32: 1 | I32: =MyYearM3 -> 2021/22 | J32: =MyYearM2 -> 2022/23 | K32: =MyYearM1 -> 2023/24 | M32: =MyYear0 -> 2024/25 | P32: =MyYearP1 -> 2025/26 | S32: =MyYearP2 -> 2026/27 | V32: =MyYearP3 -> 2027/28
A33: 1 | F33: Expenses | I33: =Hist_year3RestatedAudited -> Audited outcome | J33: =Hist_year2RestatedAudited -> Audited outcome | K33: =Hist_year1Budget -> Budget | L33: =Hist_year1Audited -> Audited outcome | M33: =Cur_YearBudgEst -> Budget estimate | N33: =Cur_YearApprovedBudg -> Approved budget | O33: =Cur_YearChangeFrRevBudg -> Changes from budget estimate | P33: =MTEF1BudgEst -> Budget estimate | Q33: =MTEF1RevBudgEst -> Revised budget estimate | R33: =MTEF1_ChangeFrBudgEst -> Changes from budget estimate | S33: =MTEF2BudgEst -> Budget estimate | T33: =MTEF2RevBudgEst -> Revised budget estimate | U33: =MTEF2_ChangeFrBudgEst -> Changes from budget estimate | V33: =MTEF3PlanBudgetEst -> Planning budget estimate
A34: 1
A35: 1 | F35: Rand thousand
A36: 1 | F36: Objective/Activity
A37: 1 | F37: Skills Planning | I37: 3763 | J37: 4069 | K37: 8612 | L37: 8612 | M37: 8213 | N37: 8213 | O37: =SUM(N37-M37) -> 0 | P37: 8599 | Q37: 8599 | R37: =SUM(Q37-P37) -> 0 | S37: 8995 | T37: 8995 | U37: =SUM(T37-S37) -> 0
A38: 1 | F38: Economic classification
A39: 1 | B39: EX11 | F39: Current payments | I39: =SUM(I40,I43,I98:I99,I105) -> 0 | J39: 0 | K39: 0 | L39: 0 | M39: 0 | N39: 0 | O39: =SUM(N39-M39) -> 0 | P39: =SUM(P40,P43,P98:P99,P105) -> 0 | Q39: =SUM(Q40,Q43,Q98:Q99,Q105) -> 0 | R39: =SUM(Q39-P39) -> 0 | S39: =SUM(S40,S43,S98:S99,S105) -> 0 | T39: =SUM(T40,T43,T98:T99,T105) -> 0 | U39: =SUM(T39-S39) -> 0 | V39: =SUM(V40,V43,V98:V99,V105) -> 0
A40: 1 | B40: EX111 | F40: Compensation of employees | I40: =SUM(I41:I42) -> 0 | J40: 0 | K40: 0 | L40: 0 | M40: 0 | N40: 0 | O40: =SUM(N40-M40) -> 0 | P40: =SUM(P41:P42) -> 0 | Q40: =SUM(Q41:Q42) -> 0 | R40: =SUM(Q40-P40) -> 0 | S40: =SUM(S41:S42) -> 0 | T40: =SUM(T41:T42) -> 0 | U40: =SUM(T40-S40) -> 0 | V40: =SUM(V41:V42) -> 0
A41: 1 | B41: EX1111 | F41: Salaries and wages | I41: 0 | J41: 0 | K41: 0 | L41: 0 | M41: 0 | N41: 0 | O41: =SUM(N41-M41) -> 0 | P41: 0 | Q41: 0 | R41: =SUM(Q41-P41) -> 0 | S41: 0 | T41: 0 | U41: =SUM(T41-S41) -> 0
A42: 1 | B42: EX1112 | F42: Social contributions | I42: 0 | J42: 0 | K42: 0 | L42: 0 | M42: 0 | N42: 0 | O42: =SUM(N42-M42) -> 0 | P42: 0 | Q42: 0 | R42: =SUM(Q42-P42) -> 0 | S42: 0 | T42: 0 | U42: =SUM(T42-S42) -> 0
A43: 1 | B43: EX112 | F43: Goods and services | I43: =SUM(I45:I54,I58:I61,I73,I75:I97) -> 0 | J43: =SUM(J45:J54,J58:J61,J73,J75:J97) -> 0 | K43: =SUM(K45:K54,K58:K61,K73,K75:K97) -> 0 | L43: 0 | M43: 0 | N43: 0 | O43: 0 | P43: 0 | Q43: 0 | R43: 0 | S43: 0 | T43: 0 | U43: 0 | V43: 0 | W43: =SUM(W45:W54,W58:W61,W73,W75:W97) -> 0
A44: 1 | B44: EX000 | F44: Of which 1
A45: 1 | B45: EX1133 | F45: Administrative fees | I45: 0 | J45: 0 | K45: 0 | L45: 0 | M45: 0 | N45: 0 | O45: =SUM(N45-M45) -> 0 | P45: 0 | Q45: 0 | R45: =SUM(Q45-P45) -> 0 | S45: 0 | T45: 0 | U45: =SUM(T45-S45) -> 0
A46: 1 | B46: EX1134 | F46: Advertising | I46: 0 | J46: 0 | K46: 0 | L46: 0 | M46: 0 | N46: 0 | O46: 0 | P46: 0 | Q46: 0 | R46: 0 | S46: 0 | T46: 0 | U46: 0
A47: 1 | B47: EX1135 | F47: Minor assets | I47: 0 | J47: 0 | K47: 0 | L47: 0 | M47: 0 | N47: 0 | O47: 0 | P47: 0 | Q47: 0 | R47: 0 | S47: 0 | T47: 0 | U47: 0
A48: 1 | B48: EX1136 | F48: Audit costs: External | I48: 0 | J48: 0 | K48: 0 | L48: 0 | M48: 0 | N48: 0 | O48: 0 | P48: 0 | Q48: 0 | R48: 0 | S48: 0 | T48: 0 | U48: 0
A49: 1 | B49: EX1139 | F49: Bursaries: Employees | I49: 0 | J49: 0 | K49: 0 | L49: 0 | M49: 0 | N49: 0 | O49: 0 | P49: 0 | Q49: 0 | R49: 0 | S49: 0 | T49: 0 | U49: 0
A50: 1 | B50: EX1140 | F50: Catering: Internal activities | I50: 0 | J50: 0 | K50: 0 | L50: 0 | M50: 0 | N50: 0 | O50: 0 | P50: 0 | Q50: 0 | R50: 0 | S50: 0 | T50: 0 | U50: 0
A51: 1 | B51: EX1122 | F51: Communication (G&S) | I51: 0 | J51: 0 | K51: 0 | L51: 0 | M51: 0 | N51: 0 | O51: 0 | P51: 0 | Q51: 0 | R51: 0 | S51: 0 | T51: 0 | U51: 0
A52: 1 | B52: EX1123 | F52: Computer services | I52: 0 | J52: 0 | K52: 0 | L52: 0 | M52: 0 | N52: 0 | O52: 0 | P52: 0 | Q52: 0 | R52: 0 | S52: 0 | T52: 0 | U52: 0
A53: 1 | B53: EX1124 | F53: Consultants: Business and advisory services | I53: 0 | J53: 0 | K53: 0 | L53: 0 | M53: 0 | N53: 0 | O53: 0 | P53: 0 | Q53: 0 | R53: 0 | S53: 0 | T53: 0 | U53: 0
A54: 1 | B54: EX1180 | F54: Infrastructure and planning services | I54: =SUM(I55:I57) -> 0 | J54: 0 | K54: 0 | L54: 0 | M54: 0 | N54: 0 | O54: =SUM(N54-M54) -> 0 | P54: =SUM(P55:P57) -> 0 | Q54: =SUM(Q55:Q57) -> 0 | R54: =SUM(Q54-P54) -> 0 | S54: =SUM(S55:S57) -> 0 | T54: =SUM(T55:T57) -> 0 | U54: =SUM(T54-S54) -> 0 | V54: =SUM(V55:V57) -> 0
A55: 1 | B55: EX11801 | F55: Maintenance and repairs: Buildings: Consultants | I55: 0 | J55: 0 | K55: 0 | L55: 0 | M55: 0 | N55: 0 | O55: =SUM(N55-M55) -> 0 | P55: 0 | Q55: 0 | R55: =SUM(Q55-P55) -> 0 | S55: 0 | T55: 0 | U55: 0
A56: 1 | B56: EX11802 | F56: Maintenance and repairs: Other fixed structures: Consultants | I56: 0 | J56: 0 | K56: 0 | L56: 0 | M56: 0 | N56: 0 | O56: 0 | P56: 0 | Q56: 0 | R56: 0 | S56: 0 | T56: 0 | U56: 0
A57: 1 | B57: EX11803 | F57: Other | I57: 0 | J57: 0 | K57: 0 | L57: 0 | M57: 0 | N57: 0 | O57: 0 | P57: 0 | Q57: 0 | R57: 0 | S57: 0 | T57: 0 | U57: 0
A58: 1 | B58: EX1164 | F58: Laboratory services | I58: 0 | J58: 0 | K58: 0 | L58: 0 | M58: 0 | N58: 0 | O58: 0 | P58: 0 | Q58: 0 | R58: 0 | S58: 0 | T58: 0 | U58: 0
A59: 1 | B59: EX1162 | F59: Legal services (G&S) | I59: 0 | J59: 0 | K59: 0 | L59: 0 | M59: 0 | N59: 0 | O59: 0 | P59: 0 | Q59: 0 | R59: 0 | S59: 0 | T59: 0 | U59: 0
A60: 1 | B60: EX1165 | F60: Science and technological services | I60: 0 | J60: 0 | K60: 0 | L60: 0 | M60: 0 | N60: 0 | O60: 0 | P60: 0 | Q60: 0 | R60: 0 | S60: 0 | T60: 0 | U60: 0
A61: 1 | B61: EX1125 | F61: Contractors | I61: =SUM(I62:I66,I72) -> 0 | J61: 0 | K61: 0 | L61: 0 | M61: 0 | N61: 0 | O61: =SUM(N61-M61) -> 0 | P61: =SUM(P62:P66,P72) -> 0 | Q61: =SUM(Q62:Q66,Q72) -> 0 | R61: =SUM(Q61-P61) -> 0 | S61: =SUM(S62:S66,S72) -> 0 | T61: =SUM(T62:T66,T72) -> 0 | U61: 0 | V61: =SUM(V62:V66,V72) -> 0
A62: 1 | B62: EX11251 | F62: Maintenance and repairs of other fixed structures | I62: 0 | J62: 0 | K62: 0 | L62: 0 | M62: 0 | N62: 0 | O62: 0 | P62: 0 | Q62: 0 | R62: 0 | S62: 0 | T62: 0 | U62: 0
A63: 1 | B63: EX11252 | F63: Maintenance and repairs of other machinery and equipment | I63: 0 | J63: 0 | K63: 0 | L63: 0 | M63: 0 | N63: 0 | O63: 0 | P63: 0 | Q63: 0 | R63: 0 | S63: 0 | T63: 0 | U63: 0
A64: 1 | B64: EX11253 | F64: Maintenance and repairs of heritage buildings | I64: 0 | J64: 0 | K64: 0 | L64: 0 | M64: 0 | N64: 0 | O64: 0 | P64: 0 | Q64: 0 | R64: 0 | S64: 0 | T64: 0 | U64: 0
A65: 1 | B65: EX11254 | F65: Maintenance and repairs of other heritage fixed structures | I65: 0 | J65: 0 | K65: 0 | L65: 0 | M65: 0 | N65: 0 | O65: 0 | P65: 0 | Q65: 0 | R65: 0 | S65: 0 | T65: 0 | U65: 0
A66: 5 | B66: EX11255 | F66: South african social security agency payment contractors | I66: =SUM(I67:I71) -> 0 | J66: 0 | K66: 0 | L66: 0 | M66: 0 | N66: 0 | O66: 0 | P66: =SUM(P67:P71) -> 0 | Q66: =SUM(Q67:Q71) -> 0 | R66: 0 | S66: =SUM(S67:S71) -> 0 | T66: =SUM(T67:T71) -> 0 | U66: 0 | V66: =SUM(V67:V71) -> 0
A67: 5 | B67: EX112551 | F67: SASSA Admin fees | I67: 0 | J67: 0 | K67: 0 | L67: 0 | M67: 0 | N67: 0 | O67: =SUM(N67-M67) -> 0 | P67: 0 | Q67: 0 | R67: =SUM(Q67-P67) -> 0 | S67: 0 | T67: 0 | U67: =SUM(T67-S67) -> 0
A68: 5 | B68: EX112552 | F68: SASSA Bankcard fees | I68: 0 | J68: 0 | K68: 0 | L68: 0 | M68: 0 | N68: 0 | O68: 0 | P68: 0 | Q68: 0 | R68: 0 | S68: 0 | T68: 0 | U68: 0
A69: 5 | B69: EX112553 | F69: SASSA registration fees | I69: 0 | J69: 0 | K69: 0 | L69: 0 | M69: 0 | N69: 0 | O69: 0 | P69: 0 | Q69: 0 | R69: 0 | S69: 0 | T69: 0 | U69: 0
A70: 5 | B70: EX112554 | F70: SASSA beneficiary fees | I70: 0 | J70: 0 | K70: 0 | L70: 0 | M70: 0 | N70: 0 | O70: 0 | P70: 0 | Q70: 0 | R70: 0 | S70: 0 | T70: 0 | U70: 0
A71: 5 | B71: EX112555 | F71: SASSA help desk fees | I71: 0 | J71: 0 | K71: 0 | L71: 0 | M71: 0 | N71: 0 | O71: 0 | P71: 0 | Q71: 0 | R71: 0 | S71: 0 | T71: 0 | U71: 0
A72: 1 | B72: EX11256 | F72: Other | I72: 0 | J72: 0 | K72: 0 | L72: 0 | M72: 0 | N72: 0 | O72: 0 | P72: 0 | Q72: 0 | R72: 0 | S72: 0 | T72: 0 | U72: 0
A73: 1 | B73: EX1121 | F73: Agency and support/outsourced services | I73: 0 | J73: 0 | K73: 0 | L73: 0 | M73: 0 | N73: 0 | O73: 0 | P73: 0 | Q73: 0 | R73: 0 | S73: 0 | T73: 0 | U73: 0
A74: 5 | B74: EX11211 | F74: Of Which: Medical assessments | I74: 0 | J74: 0 | K74: 0 | L74: 0 | M74: 0 | N74: 0 | O74: 0 | P74: 0 | Q74: 0 | R74: 0 | S74: 0 | T74: 0 | U74: 0
A75: 1 | B75: EX1161 | F75: Entertainment | I75: 0 | J75: 0 | K75: 0 | L75: 0 | M75: 0 | N75: 0 | O75: 0 | P75: 0 | Q75: 0 | R75: 0 | S75: 0 | T75: 0 | U75: 0
A76: 1 | B76: EX1166 | F76: Fleet services (including government motor transport) | I76: 0 | J76: 0 | K76: 0 | L76: 0 | M76: 0 | N76: 0 | O76: 0 | P76: 0 | Q76: 0 | R76: 0 | S76: 0 | T76: 0 | U76: 0
A77: 1 | B77: EX1167 | F77: Housing | I77: 0 | J77: 0 | K77: 0 | L77: 0 | M77: 0 | N77: 0 | O77: 0 | P77: 0 | Q77: 0 | R77: 0 | S77: 0 | T77: 0 | U77: 0
A78: 1 | B78: EX1168 | F78: Inventory: Clothing material and accessories | I78: 0 | J78: 0 | K78: 0 | L78: 0 | M78: 0 | N78: 0 | O78: 0 | P78: 0 | Q78: 0 | R78: 0 | S78: 0 | T78: 0 | U78: 0
A79: 1 | B79: EX1169 | F79: Inventory: Farming supplies | I79: 0 | J79: 0 | K79: 0 | L79: 0 | M79: 0 | N79: 0 | O79: 0 | P79: 0 | Q79: 0 | R79: 0 | S79: 0 | T79: 0 | U79: 0
A80: 1 | B80: EX1170 | F80: Inventory: Food and food supplies | I80: 0 | J80: 0 | K80: 0 | L80: 0 | M80: 0 | N80: 0 | O80: 0 | P80: 0 | Q80: 0 | R80: 0 | S80: 0 | T80: 0 | U80: 0
A81: 1 | B81: EX1171 | F81: Inventory: Fuel, oil and gas | I81: 0 | J81: 0 | K81: 0 | L81: 0 | M81: 0 | N81: 0 | O81: 0 | P81: 0 | Q81: 0 | R81: 0 | S81: 0 | T81: 0 | U81: 0
A82: 1 | B82: EX1172 | F82: Inventory: Learner and teacher support material | I82: 0 | J82: 0 | K82: 0 | L82: 0 | M82: 0 | N82: 0 | O82: 0 | P82: 0 | Q82: 0 | R82: 0 | S82: 0 | T82: 0 | U82: 0
A83: 1 | B83: EX1126 | F83: Inventory: Materials and supplies | I83: 0 | J83: 0 | K83: 0 | L83: 0 | M83: 0 | N83: 0 | O83: 0 | P83: 0 | Q83: 0 | R83: 0 | S83: 0 | T83: 0 | U83: 0
A84: 1 | B84: EX1173 | F84: Inventory: Medical supplies | I84: 0 | J84: 0 | K84: 0 | L84: 0 | M84: 0 | N84: 0 | O84: 0 | P84: 0 | Q84: 0 | R84: 0 | S84: 0 | T84: 0 | U84: 0
A85: 1 | B85: EX1174 | F85: Inventory: Medicine | I85: 0 | J85: 0 | K85: 0 | L85: 0 | M85: 0 | N85: 0 | O85: 0 | P85: 0 | Q85: 0 | R85: 0 | S85: 0 | T85: 0 | U85: 0
A86: 1 | B86: EX1175 | F86: Medsas inventory interface | I86: 0 | J86: 0 | K86: 0 | L86: 0 | M86: 0 | N86: 0 | O86: 0 | P86: 0 | Q86: 0 | R86: 0 | S86: 0 | T86: 0 | U86: 0
A87: 1 | B87: EX1176 | F87: Inventory: Other supplies | I87: 0 | J87: 0 | K87: 0 | L87: 0 | M87: 0 | N87: 0 | O87: 0 | P87: 0 | Q87: 0 | R87: 0 | S87: 0 | T87: 0 | U87: 0
A88: 1 | B88: EX1177 | F88: Consumable supplies | I88: 0 | J88: 0 | K88: 0 | L88: 0 | M88: 0 | N88: 0 | O88: 0 | P88: 0 | Q88: 0 | R88: 0 | S88: 0 | T88: 0 | U88: 0
A89: 1 | B89: EX1144 | F89: Consumables: Stationery, printing and office supplies | I89: 0 | J89: 0 | K89: 0 | L89: 0 | M89: 0 | N89: 0 | O89: 0 | P89: 0 | Q89: 0 | R89: 0 | S89: 0 | T89: 0 | U89: 0
A90: 1 | B90: EX1127 | F90: Operating leases | I90: 0 | J90: 0 | K90: 0 | L90: 0 | M90: 0 | N90: 0 | O90: 0 | P90: 0 | Q90: 0 | R90: 0 | S90: 0 | T90: 0 | U90: 0
A91: 1 | B91: EX1178 | F91: Rental and hiring | I91: 0 | J91: 0 | K91: 0 | L91: 0 | M91: 0 | N91: 0 | O91: 0 | P91: 0 | Q91: 0 | R91: 0 | S91: 0 | T91: 0 | U91: 0
A92: 1 | B92: EX1145 | F92: Property payments | I92: 0 | J92: 0 | K92: 0 | L92: 0 | M92: 0 | N92: 0 | O92: 0 | P92: 0 | Q92: 0 | R92: 0 | S92: 0 | T92: 0 | U92: 0
A93: 1 | B93: EX1179 | F93: Transport provided: Internal activities | I93: 0 | J93: 0 | K93: 0 | L93: 0 | M93: 0 | N93: 0 | O93: 0 | P93: 0 | Q93: 0 | R93: 0 | S93: 0 | T93: 0 | U93: 0
A94: 1 | B94: EX1131 | F94: Travel and subsistence | I94: 0 | J94: 0 | K94: 0 | L94: 0 | M94: 0 | N94: 0 | O94: 0 | P94: 0 | Q94: 0 | R94: 0 | S94: 0 | T94: 0 | U94: 0
A95: 1 | B95: EX1130 | F95: Training and development | I95: 0 | J95: 0 | K95: 0 | L95: 0 | M95: 0 | N95: 0 | O95: 0 | P95: 0 | Q95: 0 | R95: 0 | S95: 0 | T95: 0 | U95: 0
A96: 1 | B96: EX1132 | F96: Operating payments | I96: 0 | J96: 0 | K96: 0 | L96: 0 | M96: 0 | N96: 0 | O96: 0 | P96: 0 | Q96: 0 | R96: 0 | S96: 0 | T96: 0 | U96: 0
A97: 1 | B97: EX1146 | F97: Venues and facilities | I97: 0 | J97: 0 | K97: 0 | L97: 0 | M97: 0 | N97: 0 | O97: 0 | P97: 0 | Q97: 0 | R97: 0 | S97: 0 | T97: 0 | U97: 0
A98: 1 | B98: EX113 | F98: Depreciation | I98: 0 | J98: 0 | K98: 0 | L98: 0 | M98: 0 | N98: 0 | O98: 0 | P98: 0 | Q98: 0 | R98: 0 | S98: 0 | T98: 0 | U98: 0
A99: 1 | B99: EX114 | F99: Losses from | I99: =SUM(I100:I101,I104) -> 0 | J99: 0 | K99: 0 | L99: 0 | M99: 0 | N99: 0 | O99: =SUM(N99-M99) -> 0 | P99: =SUM(P100:P101,P104) -> 0 | Q99: =SUM(Q100:Q101,Q104) -> 0 | R99: =SUM(Q99-P99) -> 0 | S99: =SUM(S100:S101,S104) -> 0 | T99: =SUM(T100:T101,T104) -> 0 | U99: =SUM(T99-S99) -> 0 | V99: =SUM(V100:V101,V104) -> 0
A100: 1 | B100: EX1141 | F100: Sale of fixed assets | I100: 0 | J100: 0 | K100: 0 | L100: 0 | M100: 0 | N100: 0 | O100: 0 | P100: 0 | Q100: 0 | R100: 0 | S100: 0 | T100: 0 | U100: 0
A101: 1 | B101: EX1142 | F101: Impairments and adjustments to fair value | I101: =SUM(I102:I103) -> 0 | J101: 0 | K101: 0 | L101: 0 | M101: 0 | N101: 0 | O101: 0 | P101: =SUM(P102:P103) -> 0 | Q101: =SUM(Q102:Q103) -> 0 | R101: 0 | S101: =SUM(S102:S103) -> 0 | T101: =SUM(T102:T103) -> 0 | U101: 0 | V101: =SUM(V102:V103) -> 0
A102: 1 | B102: EX11421 | F102: Adjustments to fair value of assets | I102: 0 | J102: 0 | K102: 0 | L102: 0 | M102: 0 | N102: 0 | O102: 0 | P102: 0 | Q102: 0 | R102: 0 | S102: 0 | T102: 0 | U102: 0
A103: 1 | B103: EX11422 | F103: Impairments to assets | I103: 0 | J103: 0 | K103: 0 | L103: 0 | M103: 0 | N103: 0 | O103: 0 | P103: 0 | Q103: 0 | R103: 0 | S103: 0 | T103: 0 | U103: 0
A104: 1 | B104: EX1143 | F104: Other | I104: 0 | J104: 0 | K104: 0 | L104: 0 | M104: 0 | N104: 0 | O104: 0 | P104: 0 | Q104: 0 | R104: 0 | S104: 0 | T104: 0 | U104: 0
A105: 1 | B105: EX115 | F105: Interest, dividends and rent on land | I105: =SUM(I106:I108) -> 0 | J105: 0 | K105: 0 | L105: 0 | M105: 0 | N105: 0 | O105: 0 | P105: =SUM(P106:P108) -> 0 | Q105: =SUM(Q106:Q108) -> 0 | R105: 0 | S105: =SUM(S106:S108) -> 0 | T105: =SUM(T106:T108) -> 0 | U105: 0 | V105: =SUM(V106:V108) -> 0
A106: 1 | B106: EX1151 | F106: Interest | I106: 0 | J106: 0 | K106: 0 | L106: 0 | M106: 0 | N106: 0 | O106: 0 | P106: 0 | Q106: 0 | R106: 0 | S106: 0 | T106: 0 | U106: 0
A107: 1 | B107: EX1152 | F107: Dividends | I107: 0 | J107: 0 | K107: 0 | L107: 0 | M107: 0 | N107: 0 | O107: 0 | P107: 0 | Q107: 0 | R107: 0 | S107: 0 | T107: 0 | U107: 0
A108: 1 | B108: EX1153 | F108: Rent on land | I108: 0 | J108: 0 | K108: 0 | L108: 0 | M108: 0 | N108: 0 | O108: 0 | P108: 0 | Q108: 0 | R108: 0 | S108: 0 | T108: 0 | U108: 0
A109: 1 | B109: EX12 | F109: Transfers and subsidies | I109: =SUM(I110,I121,I132:I135) -> 3763 | J109: 4069 | K109: 8612 | L109: 8612 | M109: 8213 | N109: 8213 | O109: 0 | P109: =SUM(P110,P121,P132:P135) -> 8599 | Q109: =SUM(Q110,Q121,Q132:Q135) -> 8599 | R109: 0 | S109: =SUM(S110,S121,S132:S135) -> 8995 | T109: =SUM(T110,T121,T132:T135) -> 8995 | U109: 0 | V109: =SUM(V110,V121,V132:V135) -> 0
A110: 2 | B110: EX121 | F110: Employer Grant (SETAs only) | I110: =SUM(I111,I117,I120) -> 3763 | J110: 4069 | K110: 8612 | L110: 8612 | M110: 8213 | N110: 8213 | O110: 0 | P110: =SUM(P111,P117,P120) -> 8599 | Q110: =SUM(Q111,Q117,Q120) -> 8599 | R110: 0 | S110: =SUM(S111,S117,S120) -> 8995 | T110: =SUM(T111,T117,T120) -> 8995 | U110: 0 | V110: =SUM(V111,V117,V120) -> 0
A111: 1 | B111: EX122 | F111: Other government units | I111: =SUM(I112:I116) -> 0 | J111: 0 | K111: 0 | L111: 0 | M111: 0 | N111: 0 | O111: 0 | P111: =SUM(P112:P116) -> 0 | Q111: =SUM(Q112:Q116) -> 0 | R111: 0 | S111: =SUM(S112:S116) -> 0 | T111: =SUM(T112:T116) -> 0 | U111: 0 | V111: =SUM(V112:V116) -> 0
A112: 1 | B112: EX1221 | F112: National government | I112: 0 | J112: 0 | K112: 0 | L112: 0 | M112: 0 | N112: 0 | O112: 0 | P112: 0 | Q112: 0 | R112: 0 | S112: 0 | T112: 0 | U112: 0
A113: 1 | B113: EX1222 | F113: Departmental agencies and accounts | I113: 0 | J113: 0 | K113: 0 | L113: 0 | M113: 0 | N113: 0 | O113: 0 | P113: 0 | Q113: 0 | R113: 0 | S113: 0 | T113: 0 | U113: 0
A114: 1 | B114: EX1223 | F114: Provinces | I114: 0 | J114: 0 | K114: 0 | L114: 0 | M114: 0 | N114: 0 | O114: 0 | P114: 0 | Q114: 0 | R114: 0 | S114: 0 | T114: 0 | U114: 0
A115: 1 | B115: EX1224 | F115: Municipalities | I115: 0 | J115: 0 | K115: 0 | L115: 0 | M115: 0 | N115: 0 | O115: 0 | P115: 0 | Q115: 0 | R115: 0 | S115: 0 | T115: 0 | U115: 0
A116: 2 | B116: EX1225 | F116: National Skills Fund | I116: 0 | J116: 0 | K116: 0 | L116: 0 | M116: 0 | N116: 0 | O116: 0 | P116: 0 | Q116: 0 | R116: 0 | S116: 0 | T116: 0 | U116: 0
